Workbook

Sheet Read me - LAs
C8: JBA Strategic Flood Risk Assessment Site Screening Tool - v1.0
C10: This spreadsheet has been designed to assist local authorities with the selection of development sites for inclusion within their local plan.
C12: Note on calculations:
C13: Site boundaries have been screened against flood risk information to determine the proportion of the site at risk. The following flood risk information has been used in the assessment ● Flood Zones (from Environment Agency Flood Zones and results from detailed hydraulic models) ● Surface Water (from the Risk of Flooding from Surface Water mapping) ● Environment Agency's Historic Flood Map ● Reservoirs (from the National Reservoir Inundation Mapping)
C15: Additional information:
C16: The sites have also been considered against the following information to provide additional information to support decision making ● Located in an IDB administrative area - to determine if the site may be affected by an IDB watercourse ● Defended? - to determine if the site benefits from formal flood defences ● Ordinary watercourse with catchment less than 3km2 flowing adjacent - to determine if their is a watercourse with a catchment less than 3km2 flowing through or adjacent to a site, which would not have been included in the Environment Agency's Flood Zones
C18: Note on Flood Zone and Surface Water percentages:
C19: The values quoted in the Level 1 Screening tab show the percentage of the site at flood risk from that particular Flood Zone / event, including the percentage of the site at flood risk at a higher zone. For example 50% of a site is in the Flood Zones. Taking each Flood Zone individually, 50% is in Flood Zone 2 but only 30% is in Flood Zone 3a and only 10% is in Flood Zone 3b. In the Level 1 Screening tab this will be displayed as stated above, i.e. the total % of that particular Flood Zone in that site. If you would like to know how much of the site is in say Flood Zone 2 'only' (i.e. less the overlapping Flood Zone 3) then these percentages can be subtracted, e.g. 50% of the site is in Flood Zone 2, but as 30% is in Flood Zone 3 (which overlaps Flood Zone 2), this leaves 20% of the site in Flood Zone 2 'only'. Note that the FZ3a and FZ3b used in the screening is derived from the 100-year undefended and 20-year (or 25-year) defended model outlines supplied by the Environment Agency where available respectively. Where no modelled data was available, the Environment Agency Flood Mapping for Planning Flood Zone 3 was used to give an "Indicative 3b". Therefore, it is common for the percentage of a site located in FZ3a to be the same as the percentage of the site located in FZ3b, as they will only differ where modelled data is available.
C21: Using the spreadsheet
C22: The spreadsheet has been designed to assist the selection of sites. A number of screening options are available at the top of the Level 1 Screening tab. Each option will allow sites to be screened against a user defined value. For example To select sites that are more than 50% in Flood Zone 2, click on 'Screen sites against a user-defined % in Flood Zone 2' icon, and enter 50 (do not include a % sign) when prompted.

Sheet Level 1 Screening
A8: Site code | B8: Location | C8: Area (ha) | J8: Area of site outside of Flood Zones
G9: Risk of flooding from surface water (Total %s)
D10: FZ 3a | E10: FZ 2 | F10: FZ 1 | G10: 30yr | H10: 100yr | I10: 1,000yr | J10: (hectares)
A11: =Calculations!B2 -> 203 | B11: =Calculations!A2 -> Land south of Pedmore Lane, Pedmore, Stourbridge | C11: =Calculations!C2 -> 8.54 | D11: =Calculations!G2 -> 0 | E11: =Calculations!O2 -> 0 | F11: =Calculations!P2 -> 1 | G11: =Calculations!U2 -> 0 | H11: =Calculations!X2 -> 0 | I11: =Calculations!AB2 -> 0 | J11: =C11*F11 -> 8.54
A12: =Calculations!B3 -> 203 | B12: =Calculations!A3 -> Land south of Pedmore Lane, Pedmore, Stourbridge | C12: =Calculations!C3 -> 11.23 | D12: =Calculations!G3 -> 0 | E12: =Calculations!O3 -> 0 | F12: =Calculations!P3 -> 1 | G12: =Calculations!U3 -> <1% | H12: =Calculations!X3 -> 0.0004373232683 | I12: =Calculations!AB3 -> 0.002720020821 | J12: 11.23
A13: =Calculations!B4 -> 138 | B13: =Calculations!A4 -> Land North of Linthouse Lane, south of the Dismantled Railway Line, west of Kitchen Lane and east of | C13: =Calculations!C4 -> 148 | D13: =Calculations!G4 -> 0 | E13: =Calculations!O4 -> 0 | F13: =Calculations!P4 -> 1 | G13: =Calculations!U4 -> <1% | H13: =Calculations!X4 -> 0.00284667316 | I13: =Calculations!AB4 -> 0.004112058955 | J13: 148
A14: =Calculations!B5 -> 192 | B14: =Calculations!A5 -> Land at Perton Road, Perton | C14: =Calculations!C5 -> 2.4 | D14: =Calculations!G5 -> 0 | E14: =Calculations!O5 -> 0 | F14: =Calculations!P5 -> 1 | G14: =Calculations!U5 -> 0 | H14: =Calculations!X5 -> 0 | I14: =Calculations!AB5 -> 0 | J14: 2.4
A15: =Calculations!B6 -> 187 | B15: =Calculations!A6 -> Dadford’s Bridge Industrial Estate, Plant Street Wordsley | C15: =Calculations!C6 -> 0.46 | D15: =Calculations!G6 -> 0 | E15: =Calculations!O6 -> 0 | F15: =Calculations!P6 -> 1 | G15: =Calculations!U6 -> 0 | H15: =Calculations!X6 -> 0 | I15: =Calculations!AB6 -> 0.03400650453 | J15: 0.46
A16: =Calculations!B7 -> 185 | B16: =Calculations!A7 -> Opposite One Hundred acre school, Aldridge Road, Walsall | C16: =Calculations!C7 -> 7.5 | D16: =Calculations!G7 -> 0 | E16: =Calculations!O7 -> 0 | F16: =Calculations!P7 -> 1 | G16: =Calculations!U7 -> 0.006132798263 | H16: =Calculations!X7 -> 0.01948722994 | I16: =Calculations!AB7 -> 0.1385650073 | J16: 7.5
A17: =Calculations!B8 -> 184 | B17: =Calculations!A8 -> Merry Hill, Brierley Hill | C17: =Calculations!C8 -> 53.06 | D17: =Calculations!G8 -> 0 | E17: =Calculations!O8 -> 0 | F17: =Calculations!P8 -> 1 | G17: =Calculations!U8 -> 0.02888004111 | H17: =Calculations!X8 -> 0.09569526276 | I17: =Calculations!AB8 -> 0.3226964848 | J17: 53.06
A18: =Calculations!B9 -> 184 | B18: =Calculations!A9 -> Merry Hill, Brierley Hill | C18: =Calculations!C9 -> 21.85 | D18: =Calculations!G9 -> 0 | E18: =Calculations!O9 -> 0 | F18: =Calculations!P9 -> 1 | G18: =Calculations!U9 -> 0.01349243356 | H18: =Calculations!X9 -> 0.04464702388 | I18: =Calculations!AB9 -> 0.1459665334 | J18: 21.85
A19: =Calculations!B10 -> 183 | B19: =Calculations!A10 -> Land at Electrium Point, Forge Road, Willenhall, Walsall | C19: =Calculations!C10 -> 0.4 | D19: =Calculations!G10 -> 0 | E19: =Calculations!O10 -> 0 | F19: =Calculations!P10 -> 1 | G19: =Calculations!U10 -> 0.009353629034 | H19: =Calculations!X10 -> 0.02635362903 | I19: =Calculations!AB10 -> 0.04192184419 | J19: 0.4
A20: =Calculations!B11 -> 182 | B20: =Calculations!A11 -> Aldridge Wyevale Garden Centre, Chester Road, Aldridge, Walsall | C20: =Calculations!C11 -> 1.03 | D20: =Calculations!G11 -> 0 | E20: =Calculations!O11 -> 0 | F20: =Calculations!P11 -> 1 | G20: =Calculations!U11 -> 0 | H20: =Calculations!X11 -> 0 | I20: =Calculations!AB11 -> 0 | J20: 1.03
A21: =Calculations!B12 -> 180 | B21: =Calculations!A12 -> Land at Pennwood, Wolverhampton | C21: =Calculations!C12 -> 114.8 | D21: =Calculations!G12 -> 0 | E21: =Calculations!O12 -> 0 | F21: =Calculations!P12 -> 1 | G21: =Calculations!U12 -> 0.006580178288 | H21: =Calculations!X12 -> 0.009698671013 | I21: =Calculations!AB12 -> 0.02882710206 | J21: 114.8
A22: =Calculations!B13 -> 179 | B22: =Calculations!A13 -> Turls Hill Drive | C22: =Calculations!C13 -> 0.82 | D22: =Calculations!G13 -> 0 | E22: =Calculations!O13 -> 0 | F22: =Calculations!P13 -> 1 | G22: =Calculations!U13 -> 0 | H22: =Calculations!X13 -> 0 | I22: =Calculations!AB13 -> 0 | J22: 0.82
A23: =Calculations!B14 -> 178 | B23: =Calculations!A14 -> Land west of foxcote farm, Oldnall Lane, Wollescote, Stourbridge | C23: =Calculations!C14 -> 6.87 | D23: =Calculations!G14 -> 0 | E23: =Calculations!O14 -> 0 | F23: =Calculations!P14 -> 1 | G23: =Calculations!U14 -> <1% | H23: =Calculations!X14 -> 0.004433367021 | I23: =Calculations!AB14 -> 0.03611470393 | J23: 6.87
A24: =Calculations!B15 -> 176 | B24: =Calculations!A15 -> 263a Land adjacent to Sutton Road, Wzlsall | C24: =Calculations!C15 -> 11.92 | D24: =Calculations!G15 -> 0 | E24: =Calculations!O15 -> 0 | F24: =Calculations!P15 -> 1 | G24: =Calculations!U15 -> 0.007978195825 | H24: =Calculations!X15 -> 0.01787971502 | I24: =Calculations!AB15 -> 0.08086217597 | J24: 11.92
A25: =Calculations!B16 -> 175 | B25: =Calculations!A16 -> Land adjoining Bilston Street/Whites Drive, Dudley | C25: =Calculations!C16 -> 2.5 | D25: =Calculations!G16 -> 0 | E25: =Calculations!O16 -> 0 | F25: =Calculations!P16 -> 1 | G25: =Calculations!U16 -> 0.04347424688 | H25: =Calculations!X16 -> 0.06585198459 | I25: =Calculations!AB16 -> 0.1043592845 | J25: 2.5
A26: =Calculations!B17 -> 173 | B26: =Calculations!A17 -> Land at Little Aston Road, Aldridge. | C26: =Calculations!C17 -> 7.8 | D26: =Calculations!G17 -> 0 | E26: =Calculations!O17 -> 0 | F26: =Calculations!P17 -> 1 | G26: =Calculations!U17 -> 0 | H26: =Calculations!X17 -> 0 | I26: =Calculations!AB17 -> 0 | J26: 7.8
A27: =Calculations!B18 -> 172 | B27: =Calculations!A18 -> Land at Chester Road, Streetly, Walsall | C27: =Calculations!C18 -> 25.6 | D27: =Calculations!G18 -> 0 | E27: =Calculations!O18 -> 0 | F27: =Calculations!P18 -> 1 | G27: =Calculations!U18 -> 0.009301408984 | H27: =Calculations!X18 -> 0.05038611025 | I27: =Calculations!AB18 -> 0.2420922439 | J27: 25.6
A28: =Calculations!B19 -> 171 | B28: =Calculations!A19 -> Swindon Road/Enville Road, Wall Heath, Kingswinford | C28: =Calculations!C19 -> 26 | D28: =Calculations!G19 -> 0 | E28: =Calculations!O19 -> <1% | F28: =Calculations!P19 -> 0.9996153846 | G28: =Calculations!U19 -> 0.00556797645 | H28: =Calculations!X19 -> 0.02212118258 | I28: =Calculations!AB19 -> 0.04899217763 | J28: 25.99
A29: =Calculations!B20 -> 169 | B29: =Calculations!A20 -> Watery Lane, Wordsley, Stourbridge | C29: =Calculations!C20 -> 0.9 | D29: =Calculations!G20 -> 0.04444444444 | E29: =Calculations!O20 -> 0.05555555556 | F29: =Calculations!P20 -> 0.9444444444 | G29: =Calculations!U20 -> 0.01078838828 | H29: =Calculations!X20 -> 0.03864810593 | I29: =Calculations!AB20 -> 0.05193457804 | J29: 0.85
A30: =Calculations!B21 -> 169 | B30: =Calculations!A21 -> Watery Lane, Wordsley, Stourbridge | C30: =Calculations!C21 -> 0.9 | D30: =Calculations!G21 -> 0.02222222222 | E30: =Calculations!O21 -> 0.02222222222 | F30: =Calculations!P21 -> 0.9777777778 | G30: =Calculations!U21 -> 0 | H30: =Calculations!X21 -> 0.009997063917 | I30: =Calculations!AB21 -> 0.02646910601 | J30: 0.88
A31: =Calculations!B22 -> 164 | B31: =Calculations!A22 -> Skip Lane Walsall | C31: =Calculations!C22 -> 5.85 | D31: =Calculations!G22 -> 0 | E31: =Calculations!O22 -> 0 | F31: =Calculations!P22 -> 1 | G31: =Calculations!U22 -> 0.01489429112 | H31: =Calculations!X22 -> 0.01996564336 | I31: =Calculations!AB22 -> 0.03625428485 | J31: 5.85
A32: =Calculations!B23 -> 163 | B32: =Calculations!A23 -> Skip Lane Walsall | C32: =Calculations!C23 -> 2.35 | D32: =Calculations!G23 -> 0 | E32: =Calculations!O23 -> 0 | F32: =Calculations!P23 -> 1 | G32: =Calculations!U23 -> <1% | H32: =Calculations!X23 -> 0.00543016114 | I32: =Calculations!AB23 -> 0.02623526787 | J32: 2.35
A33: =Calculations!B24 -> 162 | B33: =Calculations!A24 -> Land north of Stonnall Road, Aldridge, Walsall | C33: =Calculations!C24 -> 13.9 | D33: =Calculations!G24 -> 0 | E33: =Calculations!O24 -> 0 | F33: =Calculations!P24 -> 1 | G33: =Calculations!U24 -> 0.008791801457 | H33: =Calculations!X24 -> 0.01330953275 | I33: =Calculations!AB24 -> 0.06341426542 | J33: 13.9
A34: =Calculations!B25 -> 152 | B34: =Calculations!A25 -> Land at Yorks Bridge, Lichfield Road, Pelsall, Walsall | C34: =Calculations!C25 -> 21 | D34: =Calculations!G25 -> 0 | E34: =Calculations!O25 -> 0 | F34: =Calculations!P25 -> 1 | G34: =Calculations!U25 -> 0.009923921361 | H34: =Calculations!X25 -> 0.01853976546 | I34: =Calculations!AB25 -> 0.0513227312 | J34: 21
A35: =Calculations!B26 -> 151 | B35: =Calculations!A26 -> Former Goodyear Factory, Bushbury Lane/Stafford Road, Wolverhampton | C35: =Calculations!C26 -> 7.87 | D35: =Calculations!G26 -> 0 | E35: =Calculations!O26 -> 0 | F35: =Calculations!P26 -> 1 | G35: =Calculations!U26 -> 0.02033036849 | H35: =Calculations!X26 -> 0.05463842602 | I35: =Calculations!AB26 -> 0.1424555013 | J35: 7.87
A36: =Calculations!B27 -> 150 | B36: =Calculations!A27 -> Land north of Mucklow Hill, Coombswood, Dudley | C36: =Calculations!C27 -> 35.2 | D36: =Calculations!G27 -> 0 | E36: =Calculations!O27 -> 0 | F36: =Calculations!P27 -> 1 | G36: =Calculations!U27 -> 0.01403938614 | H36: =Calculations!X27 -> 0.02254041268 | I36: =Calculations!AB27 -> 0.09029869855 | J36: 35.2
A37: =Calculations!B28 -> 149 | B37: =Calculations!A28 -> Land at Birchley Island, Junction 2 of M5, Oldbury, Sandwell | C37: =Calculations!C28 -> 1 | D37: =Calculations!G28 -> 0 | E37: =Calculations!O28 -> 0 | F37: =Calculations!P28 -> 1 | G37: =Calculations!U28 -> 0 | H37: =Calculations!X28 -> 0.01535786349 | I37: =Calculations!AB28 -> 0.1272061262 | J37: 1
A38: =Calculations!B29 -> 148 | B38: =Calculations!A29 -> Land at King Hays Farm, Off Walsall Wood Road, Walsall | C38: =Calculations!C29 -> 8.5 | D38: =Calculations!G29 -> 0 | E38: =Calculations!O29 -> 0 | F38: =Calculations!P29 -> 1 | G38: =Calculations!U29 -> 0.02284572829 | H38: =Calculations!X29 -> 0.056996778 | I38: =Calculations!AB29 -> 0.2971858811 | J38: 8.5
A39: =Calculations!B30 -> 147 | B39: =Calculations!A30 -> Land Off Viewfield Crescent, Dudley | C39: =Calculations!C30 -> 1.56 | D39: =Calculations!G30 -> 0 | E39: =Calculations!O30 -> 0 | F39: =Calculations!P30 -> 1 | G39: =Calculations!U30 -> 0 | H39: =Calculations!X30 -> 0 | I39: =Calculations!AB30 -> 0.005080913212 | J39: 1.56
A40: =Calculations!B31 -> 131 | B40: =Calculations!A31 -> Home Farm, Sandhills, Walsall Wood, Walsall, West Midlands | C40: =Calculations!C31 -> 84.55 | D40: =Calculations!G31 -> 0 | E40: =Calculations!O31 -> 0 | F40: =Calculations!P31 -> 1 | G40: =Calculations!U31 -> 0.02351921348 | H40: =Calculations!X31 -> 0.0580847032 | I40: =Calculations!AB31 -> 0.2484239294 | J40: 84.55
A41: =Calculations!B32 -> 137 | B41: =Calculations!A32 -> Land east of Ounty John Lane, Pedmore, Stourbridge | C41: =Calculations!C32 -> 1.2 | D41: =Calculations!G32 -> 0 | E41: =Calculations!O32 -> 0 | F41: =Calculations!P32 -> 1 | G41: =Calculations!U32 -> 0 | H41: =Calculations!X32 -> 0 | I41: =Calculations!AB32 -> 0 | J41: 1.2
A42: =Calculations!B33 -> 135 | B42: =Calculations!A33 -> Darlaston Road, Willenhall | C42: =Calculations!C33 -> 1.31 | D42: =Calculations!G33 -> 0.3435114504 | E42: =Calculations!O33 -> 0.6564885496 | F42: =Calculations!P33 -> 0.3435114504 | G42: =Calculations!U33 -> 0.1187681355 | H42: =Calculations!X33 -> 0.2118490427 | I42: =Calculations!AB33 -> 0.5690790621 | J42: 0.45
A43: =Calculations!B34 -> 134 | B43: =Calculations!A34 -> Former Junction Works, Cemetery Road, Darlaston, Walsall | C43: =Calculations!C34 -> 1.31 | D43: =Calculations!G34 -> 0.4961832061 | E43: =Calculations!O34 -> 0.5190839695 | F43: =Calculations!P34 -> 0.4809160305 | G43: =Calculations!U34 -> 0 | H43: =Calculations!X34 -> 0 | I43: =Calculations!AB34 -> 0.1192966006 | J43: =C43*F43 -> 0.63
A44: =Calculations!B35 -> 133 | B44: =Calculations!A35 -> Former Goscote Lane Copper Works, Goscote Lane, Walsall | C44: =Calculations!C35 -> 8.92 | D44: =Calculations!G35 -> 0 | E44: =Calculations!O35 -> 0 | F44: =Calculations!P35 -> 1 | G44: =Calculations!U35 -> <1% | H44: =Calculations!X35 -> 0.01127349712 | I44: =Calculations!AB35 -> 0.05060969797 | J44: 8.92
A45: =Calculations!B36 -> 132 | B45: =Calculations!A36 -> Former Deeling Castings, Leamore Lane, Bloxwich, Walsall | C45: =Calculations!C36 -> 2.54 | D45: =Calculations!G36 -> 0 | E45: =Calculations!O36 -> 0 | F45: =Calculations!P36 -> 1 | G45: =Calculations!U36 -> 0.007052749488 | H45: =Calculations!X36 -> 0.01812013764 | I45: =Calculations!AB36 -> 0.08551960263 | J45: 2.54
A46: =Calculations!B37 -> 126 | B46: =Calculations!A37 -> Brownhills Business Park, Lindon Road, Walsall | C46: =Calculations!C37 -> 2.59 | D46: =Calculations!G37 -> 0 | E46: =Calculations!O37 -> 0 | F46: =Calculations!P37 -> 1 | G46: =Calculations!U37 -> <1% | H46: =Calculations!X37 -> 0.03096560328 | I46: =Calculations!AB37 -> 0.09210071893 | J46: 2.59
A47: =Calculations!B38 -> 125 | B47: =Calculations!A38 -> Land at Stencils Farm, Aldridge Road (A454), Walsall | C47: =Calculations!C38 -> 37 | D47: =Calculations!G38 -> 0 | E47: =Calculations!O38 -> 0 | F47: =Calculations!P38 -> 1 | G47: =Calculations!U38 -> 0.009091170123 | H47: =Calculations!X38 -> 0.01561653203 | I47: =Calculations!AB38 -> 0.06398089862 | J47: 37
A48: =Calculations!B39 -> 124 | B48: =Calculations!A39 -> Land at Coneygre, Newcomen Drive, Sandwell | C48: =Calculations!C39 -> 9.16 | D48: =Calculations!G39 -> 0 | E48: =Calculations!O39 -> 0 | F48: =Calculations!P39 -> 1 | G48: =Calculations!U39 -> 0.01021792502 | H48: =Calculations!X39 -> 0.02169422731 | I48: =Calculations!AB39 -> 0.07346678413 | J48: 9.16
A49: =Calculations!B40 -> 120 | B49: =Calculations!A40 -> Land off Heath Road, Darlaston, Walsall | C49: =Calculations!C40 -> 0.13 | D49: =Calculations!G40 -> 0 | E49: =Calculations!O40 -> 0 | F49: =Calculations!P40 -> 1 | G49: =Calculations!U40 -> 0 | H49: =Calculations!X40 -> 0.1163728685 | I49: =Calculations!AB40 -> 0.2944478351 | J49: 0.13
A50: =Calculations!B41 -> 118 | B50: =Calculations!A41 -> Land at Bosty Lane, Aldridge, Walsall. | C50: =Calculations!C41 -> 37 | D50: =Calculations!G41 -> 0 | E50: =Calculations!O41 -> 0 | F50: =Calculations!P41 -> 1 | G50: =Calculations!U41 -> 0.01379828931 | H50: =Calculations!X41 -> 0.02152313771 | I50: =Calculations!AB41 -> 0.05117696378 | J50: 37
A51: =Calculations!B42 -> 116 | B51: =Calculations!A42 -> Columba Park, Land at Queslett Road/ Aldridge Road, Walsall | C51: =Calculations!C42 -> 82 | D51: =Calculations!G42 -> 0 | E51: =Calculations!O42 -> 0 | F51: =Calculations!P42 -> 1 | G51: =Calculations!U42 -> <1% | H51: =Calculations!X42 -> 0.002625446093 | I51: =Calculations!AB42 -> 0.02672330913 | J51: 82
A52: =Calculations!B43 -> 129 | B52: =Calculations!A43 -> Land north of Park Hall Road, Walsall | C52: =Calculations!C43 -> 16 | D52: =Calculations!G43 -> 0 | E52: =Calculations!O43 -> 0 | F52: =Calculations!P43 -> 1 | G52: =Calculations!U43 -> <1% | H52: =Calculations!X43 -> 0.003665262887 | I52: =Calculations!AB43 -> 0.01315864216 | J52: 16
A53: =Calculations!B44 -> 208 | B53: =Calculations!A44 -> Land adjacent to Barr Common Road, Aldridge | C53: =Calculations!C44 -> 2.16 | D53: =Calculations!G44 -> 0 | E53: =Calculations!O44 -> 0 | F53: =Calculations!P44 -> 1 | G53: =Calculations!U44 -> 0.03086806425 | H53: =Calculations!X44 -> 0.05376887476 | I53: =Calculations!AB44 -> 0.2824592468 | J53: 2.16
A54: =Calculations!B45 -> 130 | B54: =Calculations!A45 -> Land at Heathfield Lane West, Darlaston | C54: =Calculations!C45 -> 7.4 | D54: =Calculations!G45 -> 0.01216216216 | E54: =Calculations!O45 -> 0.1202702703 | F54: =Calculations!P45 -> 0.8797297297 | G54: =Calculations!U45 -> 0 | H54: =Calculations!X45 -> 0.005608107928 | I54: =Calculations!AB45 -> 0.05610606737 | J54: 6.51
A55: =Calculations!B46 -> 114 | B55: =Calculations!A46 -> Racecourse Lane, Stourbridge | C55: =Calculations!C46 -> 38 | D55: =Calculations!G46 -> 0 | E55: =Calculations!O46 -> 0 | F55: =Calculations!P46 -> 1 | G55: =Calculations!U46 -> 0.01122254863 | H55: =Calculations!X46 -> 0.02092845683 | I55: =Calculations!AB46 -> 0.05047307296 | J55: 38
A56: =Calculations!B47 -> 114 | B56: =Calculations!A47 -> Racecourse Lane, Stourbridge | C56: =Calculations!C47 -> 18.47 | D56: =Calculations!G47 -> 0 | E56: =Calculations!O47 -> 0 | F56: =Calculations!P47 -> 1 | G56: =Calculations!U47 -> 0.02573108672 | H56: =Calculations!X47 -> 0.0468731378 | I56: =Calculations!AB47 -> 0.1186384606 | J56: 18.47
A57: =Calculations!B48 -> 114 | B57: =Calculations!A48 -> Racecourse Lane, Stourbridge | C57: =Calculations!C48 -> 167.46 | D57: =Calculations!G48 -> 0 | E57: =Calculations!O48 -> 0 | F57: =Calculations!P48 -> 1 | G57: =Calculations!U48 -> <1% | H57: =Calculations!X48 -> 0.001413488531 | I57: =Calculations!AB48 -> 0.008031592876 | J57: 167.46
A58: =Calculations!B49 -> 50 | B58: =Calculations!A49 -> Site B, Land off Worceter Lane, Stourbridge | C58: =Calculations!C49 -> 2.29 | D58: =Calculations!G49 -> 0 | E58: =Calculations!O49 -> 0 | F58: =Calculations!P49 -> 1 | G58: =Calculations!U49 -> 0 | H58: =Calculations!X49 -> 0 | I58: =Calculations!AB49 -> 0 | J58: 2.29
A59: =Calculations!B50 -> 50 | B59: =Calculations!A50 -> Site A, Land off Worceter Lane, Stourbridge | C59: =Calculations!C50 -> 0.61 | D59: =Calculations!G50 -> 0 | E59: =Calculations!O50 -> 0 | F59: =Calculations!P50 -> 1 | G59: =Calculations!U50 -> 0.07423005883 | H59: =Calculations!X50 -> 0.1148056999 | I59: =Calculations!AB50 -> 0.1865726923 | J59: 0.61
A60: =Calculations!B51 -> 64 | B60: =Calculations!A51 -> Land at Codsall Road, Wolverhampton | C60: =Calculations!C51 -> 0.8 | D60: =Calculations!G51 -> 0 | E60: =Calculations!O51 -> 0 | F60: =Calculations!P51 -> 1 | G60: =Calculations!U51 -> 0 | H60: =Calculations!X51 -> 0 | I60: =Calculations!AB51 -> 0 | J60: 0.8
A61: =Calculations!B52 -> 23 | B61: =Calculations!A52 -> Wildside Activity Centre, Horden Road, Wolverhampton | C61: =Calculations!C52 -> 0.18 | D61: =Calculations!G52 -> 0.05555555556 | E61: =Calculations!O52 -> 0.7222222222 | F61: =Calculations!P52 -> 0.2777777778 | G61: =Calculations!U52 -> 0 | H61: =Calculations!X52 -> 0 | I61: =Calculations!AB52 -> 0 | J61: 0.05
A62: =Calculations!B53 -> 61 | B62: =Calculations!A53 -> City of Wolverhampton College and associated alnd to the rear, Padget Road, Wolverhampton | C62: =Calculations!C53 -> 7.4 | D62: =Calculations!G53 -> 0 | E62: =Calculations!O53 -> 0 | F62: =Calculations!P53 -> 1 | G62: =Calculations!U53 -> 0 | H62: =Calculations!X53 -> 0 | I62: =Calculations!AB53 -> 0.00242393826 | J62: 7.4
A63: =Calculations!B54 -> 106 | B63: =Calculations!A54 -> Land at Yieldsfarm, Stafford Road, north of Bloxwich | C63: =Calculations!C54 -> 122 | D63: =Calculations!G54 -> 0 | E63: =Calculations!O54 -> 0 | F63: =Calculations!P54 -> 1 | G63: =Calculations!U54 -> 0.008498376268 | H63: =Calculations!X54 -> 0.01309572833 | I63: =Calculations!AB54 -> 0.03136736306 | J63: 122
A64: =Calculations!B55 -> 105 | B64: =Calculations!A55 -> Land at former Caparo Works, Walsall | C64: =Calculations!C55 -> 6.67 | D64: =Calculations!G55 -> 0 | E64: =Calculations!O55 -> 0 | F64: =Calculations!P55 -> 1 | G64: =Calculations!U55 -> <1% | H64: =Calculations!X55 -> 0.002020204338 | I64: =Calculations!AB55 -> 0.01266178978 | J64: 6.67
A65: =Calculations!B56 -> 70 | B65: =Calculations!A56 -> Land at Former Goscote Hospital, Goscote Lane, Walsall | C65: =Calculations!C56 -> 2 | D65: =Calculations!G56 -> 0 | E65: =Calculations!O56 -> 0 | F65: =Calculations!P56 -> 1 | G65: =Calculations!U56 -> 0.0678 | H65: =Calculations!X56 -> 0.0828 | I65: =Calculations!AB56 -> 0.1786801721 | J65: 2
A66: =Calculations!B57 -> 107 | B66: =Calculations!A57 -> Land to the East and West of Chester Road, Hardwick, Walsall | C66: =Calculations!C57 -> 23.6 | D66: =Calculations!G57 -> 0 | E66: =Calculations!O57 -> 0 | F66: =Calculations!P57 -> 1 | G66: =Calculations!U57 -> 0.005580992116 | H66: =Calculations!X57 -> 0.01178928569 | I66: =Calculations!AB57 -> 0.02367737049 | J66: 23.6
A67: =Calculations!B58 -> 107 | B67: =Calculations!A58 -> Land to the East and West of Chester Road, Hardwick, Walsall | C67: =Calculations!C58 -> 23.6 | D67: =Calculations!G58 -> 0 | E67: =Calculations!O58 -> 0 | F67: =Calculations!P58 -> 1 | G67: =Calculations!U58 -> 0.01037473297 | H67: =Calculations!X58 -> 0.04646782772 | I67: =Calculations!AB58 -> 0.1269125535 | J67: 23.6
A68: =Calculations!B59 -> 46 | B68: =Calculations!A59 -> Land on the East side of Chester Road, Aldridge | C68: =Calculations!C59 -> 4.99 | D68: =Calculations!G59 -> 0 | E68: =Calculations!O59 -> 0 | F68: =Calculations!P59 -> 1 | G68: =Calculations!U59 -> 0 | H68: =Calculations!X59 -> 0 | I68: =Calculations!AB59 -> 0.03433385891 | J68: 4.99
A69: =Calculations!B60 -> 67 | B69: =Calculations!A60 -> Land to the north of Lapal Lane South, Halesowen | C69: =Calculations!C60 -> 14.7 | D69: =Calculations!G60 -> 0 | E69: =Calculations!O60 -> 0 | F69: =Calculations!P60 -> 1 | G69: =Calculations!U60 -> <1% | H69: =Calculations!X60 -> 0.005156500436 | I69: =Calculations!AB60 -> 0.02792250271 | J69: 14.7
A70: =Calculations!B61 -> 39 | B70: =Calculations!A61 -> Lye Close Lane, Halesowen | C70: =Calculations!C61 -> 1.24 | D70: =Calculations!G61 -> 0 | E70: =Calculations!O61 -> 0 | F70: =Calculations!P61 -> 1 | G70: =Calculations!U61 -> 0 | H70: =Calculations!X61 -> 0 | I70: =Calculations!AB61 -> 0 | J70: 1.24
A71: =Calculations!B62 -> 111 | B71: =Calculations!A62 -> Holbeache Lane/Wolverhampton Road, Kingswinford | C71: =Calculations!C62 -> 14.8 | D71: =Calculations!G62 -> 0 | E71: =Calculations!O62 -> 0 | F71: =Calculations!P62 -> 1 | G71: =Calculations!U62 -> <1% | H71: =Calculations!X62 -> 0.01332432432 | I71: =Calculations!AB62 -> 0.04121977668 | J71: 14.8
A72: =Calculations!B63 -> 56 | B72: =Calculations!A63 -> Land south west side of Lapel lane South, Halesowen | C72: =Calculations!C63 -> 0.71 | D72: =Calculations!G63 -> 0 | E72: =Calculations!O63 -> 0 | F72: =Calculations!P63 -> 1 | G72: =Calculations!U63 -> 0.1312366051 | H72: =Calculations!X63 -> 0.2608341262 | I72: =Calculations!AB63 -> 0.4736497067 | J72: 0.71
A73: =Calculations!B64 -> 60 | B73: =Calculations!A64 -> Land at Highfields, Walsall Road, Walsall Wood | C73: =Calculations!C64 -> 4.1 | D73: =Calculations!G64 -> 0 | E73: =Calculations!O64 -> 0 | F73: =Calculations!P64 -> 1 | G73: =Calculations!U64 -> 0.01237744002 | H73: =Calculations!X64 -> 0.02880708159 | I73: =Calculations!AB64 -> 0.1153942761 | J73: 4.1
A74: =Calculations!B65 -> 68 | B74: =Calculations!A65 -> Former MEB site, Bull Street | C74: =Calculations!C65 -> 2.06 | D74: =Calculations!G65 -> 0 | E74: =Calculations!O65 -> 0 | F74: =Calculations!P65 -> 1 | G74: =Calculations!U65 -> 0.01108933939 | H74: =Calculations!X65 -> 0.01469302414 | I74: =Calculations!AB65 -> 0.05988659273 | J74: 2.06
A75: =Calculations!B66 -> 74 | B75: =Calculations!A66 -> Land off 385 Penn Road, Wolverhampton | C75: =Calculations!C66 -> 2.8 | D75: =Calculations!G66 -> 0 | E75: =Calculations!O66 -> 0 | F75: =Calculations!P66 -> 1 | G75: =Calculations!U66 -> 0 | H75: =Calculations!X66 -> 0 | I75: =Calculations!AB66 -> 0 | J75: =C75*F75 -> 2.8
A76: =Calculations!B67 -> 76 | B76: =Calculations!A67 -> Wightwick Mill Field, Land south of Bridgnorth Road, Compton, Wolverhampton | C76: =Calculations!C67 -> 2.7 | D76: =Calculations!G67 -> 0.4111111111 | E76: =Calculations!O67 -> 0.7259259259 | F76: =Calculations!P67 -> 0.2740740741 | G76: =Calculations!U67 -> 0.1121767285 | H76: =Calculations!X67 -> 0.2033819518 | I76: =Calculations!AB67 -> 0.6925551591 | J76: 0.74
A77: =Calculations!B68 -> 66 | B77: =Calculations!A68 -> Cookley Works, Leys Road, Brockmoor, Brierley Hill | C77: =Calculations!C68 -> 3 | D77: =Calculations!G68 -> 0 | E77: =Calculations!O68 -> 0 | F77: =Calculations!P68 -> 1 | G77: =Calculations!U68 -> 0 | H77: =Calculations!X68 -> 0.0007423304792 | I77: =Calculations!AB68 -> 0.02145517956 | J77: 3
A78: =Calculations!B69 -> 57 | B78: =Calculations!A69 -> Field at Woodsetton, Adj to Tipton Road/Setton Drive, Sedgley | C78: =Calculations!C69 -> 2 | D78: =Calculations!G69 -> 0 | E78: =Calculations!O69 -> 0 | F78: =Calculations!P69 -> 1 | G78: =Calculations!U69 -> 0 | H78: =Calculations!X69 -> 0 | I78: =Calculations!AB69 -> 0.007406807567 | J78: 2
A79: =Calculations!B70 -> 59 | B79: =Calculations!A70 -> Land to rear of City of Wolverhampton College, Compton Park, Wolverhampton | C79: =Calculations!C70 -> 3.9 | D79: =Calculations!G70 -> 0 | E79: =Calculations!O70 -> 0 | F79: =Calculations!P70 -> 1 | G79: =Calculations!U70 -> <1% | H79: =Calculations!X70 -> 0.004362476522 | I79: =Calculations!AB70 -> 0.01075812728 | J79: 3.9
A80: =Calculations!B71 -> 58 | B80: =Calculations!A71 -> City of Wolverhampton College, Padget Road, Wolverhampton | C80: =Calculations!C71 -> 3.35 | D80: =Calculations!G71 -> 0 | E80: =Calculations!O71 -> 0 | F80: =Calculations!P71 -> 1 | G80: =Calculations!U71 -> 0 | H80: =Calculations!X71 -> 0.003820895522 | I80: =Calculations!AB71 -> 0.01408955224 | J80: 3.35
A81: =Calculations!B72 -> 40 | B81: =Calculations!A72 -> land at Tanhouse Avenue, Great Barr | C81: =Calculations!C72 -> 2.51 | D81: =Calculations!G72 -> 0 | E81: =Calculations!O72 -> 0 | F81: =Calculations!P72 -> 1 | G81: =Calculations!U72 -> 0 | H81: =Calculations!X72 -> 0.001145760956 | I81: =Calculations!AB72 -> 0.1462739022 | J81: 2.51
A82: =Calculations!B73 -> 45 | B82: =Calculations!A73 -> Old Farm, Norton Road, Norton, Stourbridge | C82: =Calculations!C73 -> 1.04 | D82: =Calculations!G73 -> 0 | E82: =Calculations!O73 -> 0 | F82: =Calculations!P73 -> 1 | G82: =Calculations!U73 -> 0.02653846154 | H82: =Calculations!X73 -> 0.04023235801 | I82: =Calculations!AB73 -> 0.08784254968 | J82: 1.04
A83: =Calculations!B74 -> 18 | B83: =Calculations!A74 -> Clothier Street, Willenhall | C83: =Calculations!C74 -> 0.5 | D83: =Calculations!G74 -> 0 | E83: =Calculations!O74 -> 0 | F83: =Calculations!P74 -> 1 | G83: =Calculations!U74 -> 0 | H83: =Calculations!X74 -> 0 | I83: =Calculations!AB74 -> 0.05072860715 | J83: 0.5
A84: =Calculations!B75 -> 24 | B84: =Calculations!A75 -> Ketley Quarry, Dudley Road, Kingswinford | C84: =Calculations!C75 -> 20.81 | D84: =Calculations!G75 -> 0 | E84: =Calculations!O75 -> 0 | F84: =Calculations!P75 -> 1 | G84: =Calculations!U75 -> 0.03807981067 | H84: =Calculations!X75 -> 0.05884799916 | I84: =Calculations!AB75 -> 0.1180335497 | J84: 20.81
A85: =Calculations!B76 -> 26 | B85: =Calculations!A76 -> Land north and South of Himley Road, Himley, Dudley | C85: =Calculations!C76 -> 8.02 | D85: =Calculations!G76 -> 0.04488778055 | E85: =Calculations!O76 -> 0.06483790524 | F85: =Calculations!P76 -> 0.9351620948 | G85: =Calculations!U76 -> 0.0702056426 | H85: =Calculations!X76 -> 0.1242287006 | I85: =Calculations!AB76 -> 0.2634605062 | J85: 7.5
A86: =Calculations!B77 -> 26 | B86: =Calculations!A77 -> Land north and South of Himley Road, Himley, Dudley | C86: =Calculations!C77 -> 17.44 | D86: =Calculations!G77 -> 0.03612385321 | E86: =Calculations!O77 -> 0.04587155963 | F86: =Calculations!P77 -> 0.9541284404 | G86: =Calculations!U77 -> 0.06137001556 | H86: =Calculations!X77 -> 0.09901810173 | I86: =Calculations!AB77 -> 0.1833461833 | J86: 16.64
A87: =Calculations!B78 -> 44 | B87: =Calculations!A78 -> Land at Wilderness Lane/Greenhill Gardens, Great Barr | C87: =Calculations!C78 -> 2.8 | D87: =Calculations!G78 -> 0 | E87: =Calculations!O78 -> 0 | F87: =Calculations!P78 -> 1 | G87: =Calculations!U78 -> <1% | H87: =Calculations!X78 -> 0.007638531113 | I87: =Calculations!AB78 -> 0.09492430909 | J87: 2.8
A88: =Calculations!B79 -> 47 | B88: =Calculations!A79 -> Grassy Lane, Wolverhampton | C88: =Calculations!C79 -> 2.38 | D88: =Calculations!G79 -> 0 | E88: =Calculations!O79 -> 0 | F88: =Calculations!P79 -> 1 | G88: =Calculations!U79 -> 0.03219733507 | H88: =Calculations!X79 -> 0.07636733756 | I88: =Calculations!AB79 -> 0.2389614305 | J88: 2.38
A89: =Calculations!B80 -> 48 | B89: =Calculations!A80 -> Land north of Vicarage Road, Amblecote, Stourbridge | C89: =Calculations!C80 -> 5.72 | D89: =Calculations!G80 -> 0 | E89: =Calculations!O80 -> 0 | F89: =Calculations!P80 -> 1 | G89: =Calculations!U80 -> 0.02979020979 | H89: =Calculations!X80 -> 0.03636363636 | I89: =Calculations!AB80 -> 0.06445177146 | J89: 5.72
A90: =Calculations!B81 -> 49 | B90: =Calculations!A81 -> 237 Watling Street, Brownhills, Walsall | C90: =Calculations!C81 -> 6 | D90: =Calculations!G81 -> 0 | E90: =Calculations!O81 -> 0 | F90: =Calculations!P81 -> 1 | G90: =Calculations!U81 -> 0 | H90: =Calculations!X81 -> 0 | I90: =Calculations!AB81 -> 0.01995217167 | J90: 6
A91: =Calculations!B82 -> 54 | B91: =Calculations!A82 -> Land rear of Greenhill Road, Halesowen | C91: =Calculations!C82 -> 1 | D91: =Calculations!G82 -> 0 | E91: =Calculations!O82 -> 0 | F91: =Calculations!P82 -> 1 | G91: =Calculations!U82 -> 0 | H91: =Calculations!X82 -> 0.009381313953 | I91: =Calculations!AB82 -> 0.04895548775 | J91: 1
A92: =Calculations!B83 -> 93 | B92: =Calculations!A83 -> Land off Overend Road, Cradley Heath Business Park, Cradley Heath | C92: =Calculations!C83 -> 3.01 | D92: =Calculations!G83 -> 0 | E92: =Calculations!O83 -> 0 | F92: =Calculations!P83 -> 1 | G92: =Calculations!U83 -> <1% | H92: =Calculations!X83 -> 0.01909836638 | I92: =Calculations!AB83 -> 0.05874051562 | J92: 3.01
A93: =Calculations!B84 -> 102 | B93: =Calculations!A84 -> Land off Sutton Road, Longwood Lane, Walsall | C93: =Calculations!C84 -> 11.92 | D93: =Calculations!G84 -> 0 | E93: =Calculations!O84 -> 0 | F93: =Calculations!P84 -> 1 | G93: =Calculations!U84 -> 0.02533085688 | H93: =Calculations!X84 -> 0.06629456543 | I93: =Calculations!AB84 -> 0.2406627996 | J93: 11.92
A94: =Calculations!B85 -> 103 | B94: =Calculations!A85 -> Land off Bromwich Lane, Pedmore, Dudley | C94: =Calculations!C85 -> 4.24 | D94: =Calculations!G85 -> 0 | E94: =Calculations!O85 -> 0 | F94: =Calculations!P85 -> 1 | G94: =Calculations!U85 -> 0 | H94: =Calculations!X85 -> 0.003679245283 | I94: =Calculations!AB85 -> 0.03115867919 | J94: 4.24
A95: =Calculations!B86 -> 112 | B95: =Calculations!A86 -> Middlemore Lane West, Aldridge | C95: =Calculations!C86 -> 1.46 | D95: =Calculations!G86 -> 0 | E95: =Calculations!O86 -> 0 | F95: =Calculations!P86 -> 1 | G95: =Calculations!U86 -> 0 | H95: =Calculations!X86 -> 0 | I95: =Calculations!AB86 -> 0 | J95: 1.46
A96: =Calculations!B87 -> 113 | B96: =Calculations!A87 -> 30 Gorge Road, Sedgley | C96: =Calculations!C87 -> 0.37 | D96: =Calculations!G87 -> 0 | E96: =Calculations!O87 -> 0 | F96: =Calculations!P87 -> 1 | G96: =Calculations!U87 -> <1% | H96: =Calculations!X87 -> 0.0007622471692 | I96: =Calculations!AB87 -> 0.006249586953 | J96: 0.37
A97: =Calculations!B88 -> 197 | B97: =Calculations!A88 -> Wolverhampton North SUE | C97: =Calculations!C88 -> 54.3 | D97: =Calculations!G88 -> 0.01639042357 | E97: =Calculations!O88 -> 0.01878453039 | F97: =Calculations!P88 -> 0.9812154696 | G97: =Calculations!U88 -> <1% | H97: =Calculations!X88 -> 0.0146972968 | I97: =Calculations!AB88 -> 0.02241666768 | J97: 53.28
A98: =Calculations!B89 -> 197 | B98: =Calculations!A89 -> Wolverhampton North SUE | C98: =Calculations!C89 -> 34.79 | D98: =Calculations!G89 -> 0.03650474274 | E98: =Calculations!O89 -> 0.046277666 | F98: =Calculations!P89 -> 0.953722334 | G98: =Calculations!U89 -> 0.0180345355 | H98: =Calculations!X89 -> 0.03577398897 | I98: =Calculations!AB89 -> 0.06205628782 | J98: 33.18
A99: =Calculations!B90 -> 197 | B99: =Calculations!A90 -> Wolverhampton North SUE | C99: =Calculations!C90 -> 99.23 | D99: =Calculations!G90 -> 0.00020155195 | E99: =Calculations!O90 -> <1% | F99: =Calculations!P90 -> 0.9995968961 | G99: =Calculations!U90 -> <1% | H99: =Calculations!X90 -> 5.861068088e-05 | I99: =Calculations!AB90 -> 0.0005769159925 | J99: 99.19
A100: =Calculations!B91 -> 197 | B100: =Calculations!A91 -> Wolverhampton North SUE | C100: =Calculations!C91 -> 99.23 | D100: =Calculations!G91 -> 0 | E100: =Calculations!O91 -> 0 | F100: =Calculations!P91 -> 1 | G100: =Calculations!U91 -> 0 | H100: =Calculations!X91 -> 0 | I100: =Calculations!AB91 -> 0 | J100: 99.23
A101: =Calculations!B92 -> 209 | B101: =Calculations!A92 -> Land adjacent to Holbeche House Care Home, Wolverhampton Road, Kingswinford, Dudley | C101: =Calculations!C92 -> 1.7 | D101: =Calculations!G92 -> 0 | E101: =Calculations!O92 -> 0 | F101: =Calculations!P92 -> 1 | G101: =Calculations!U92 -> 0 | H101: =Calculations!X92 -> 0 | I101: =Calculations!AB92 -> 0 | J101: 1.7
A102: =Calculations!B93 -> 123 | B102: =Calculations!A93 -> Land at Blackhalve Lane, Wednesfield, Wolverhampton | C102: =Calculations!C93 -> 4.9 | D102: =Calculations!G93 -> 0 | E102: =Calculations!O93 -> 0 | F102: =Calculations!P93 -> 1 | G102: =Calculations!U93 -> 0 | H102: =Calculations!X93 -> 0 | I102: =Calculations!AB93 -> 0.01705540759 | J102: 4.9
A103: =Calculations!B94 -> 41 | B103: =Calculations!A94 -> Land off Vicarage Road Road, Wolverhampton | C103: =Calculations!C94 -> 2.8 | D103: =Calculations!G94 -> 0 | E103: =Calculations!O94 -> 0 | F103: =Calculations!P94 -> 1 | G103: =Calculations!U94 -> 0 | H103: =Calculations!X94 -> 0 | I103: =Calculations!AB94 -> 0 | J103: 2.8
A104: =Calculations!B95 -> 212 | B104: =Calculations!A95 -> Land south of Bosty Lane, Aldridge, Walsall | C104: =Calculations!C95 -> 47 | D104: =Calculations!G95 -> 0 | E104: =Calculations!O95 -> 0 | F104: =Calculations!P95 -> 1 | G104: =Calculations!U95 -> 0 | H104: =Calculations!X95 -> 0 | I104: =Calculations!AB95 -> 0.0002133894221 | J104: 47
A105: =Calculations!B96 -> 212 | B105: =Calculations!A96 -> Land south of Bosty Lane, Aldridge, Walsall | C105: =Calculations!C96 -> 47 | D105: =Calculations!G96 -> 0 | E105: =Calculations!O96 -> 0 | F105: =Calculations!P96 -> 1 | G105: =Calculations!U96 -> 0.009559226874 | H105: =Calculations!X96 -> 0.01431136766 | I105: =Calculations!AB96 -> 0.05145333836 | J105: 47
A106: =Calculations!B97 -> 213 | B106: =Calculations!A97 -> Land at Vicarage Road / Coronation Road, High Heath, Walsall | C106: =Calculations!C97 -> 36 | D106: =Calculations!G97 -> 0.008888888889 | E106: =Calculations!O97 -> 0.09277777778 | F106: =Calculations!P97 -> 0.9072222222 | G106: =Calculations!U97 -> 0.008963988745 | H106: =Calculations!X97 -> 0.01816387952 | I106: =Calculations!AB97 -> 0.07599044574 | J106: 32.66
A107: =Calculations!B98 -> 214 | B107: =Calculations!A98 -> 56 Cartbridge Lane, Walsall | C107: =Calculations!C98 -> 0.28 | D107: =Calculations!G98 -> 0 | E107: =Calculations!O98 -> <1% | F107: =Calculations!P98 -> 1 | G107: =Calculations!U98 -> <1% | H107: =Calculations!X98 -> 0.01443445135 | I107: =Calculations!AB98 -> 0.1988949245 | J107: =C107*F107 -> 0.28
A108: =Calculations!B99 -> 210 | B108: =Calculations!A99 -> Land at Greenwood Road and Lazy Hill Road, Aldridge, Walsall | C108: =Calculations!C99 -> 2.6 | D108: =Calculations!G99 -> 0 | E108: =Calculations!O99 -> 0 | F108: =Calculations!P99 -> 1 | G108: =Calculations!U99 -> 0 | H108: =Calculations!X99 -> 0 | I108: =Calculations!AB99 -> 7.421407426e-05 | J108: 2.6
A109: =Calculations!B100 -> 152 | B109: =Calculations!A100 -> Land east of Longwood Lane, Daisy Bank, Walsall | C109: =Calculations!C100 -> 2.7 | D109: =Calculations!G100 -> 0 | E109: =Calculations!O100 -> 0 | F109: =Calculations!P100 -> 1 | G109: =Calculations!U100 -> 0.01040516674 | H109: =Calculations!X100 -> 0.02015965491 | I109: =Calculations!AB100 -> 0.04538280908 | J109: 2.7
A110: =Calculations!B101 -> 216 | B110: =Calculations!A101 -> Land to the north of Oldnall Road, Halesowen | C110: =Calculations!C101 -> 13.6 | D110: =Calculations!G101 -> 0 | E110: =Calculations!O101 -> 0 | F110: =Calculations!P101 -> 1 | G110: =Calculations!U101 -> 0 | H110: =Calculations!X101 -> 0.0008523169621 | I110: =Calculations!AB101 -> 0.009288497238 | J110: 13.6
A111: =Calculations!B102 -> 217 | B111: =Calculations!A102 -> Rear of 41 to approx. 59 Greenhill Road, Halesowen | C111: =Calculations!C102 -> 1.3 | D111: =Calculations!G102 -> 0 | E111: =Calculations!O102 -> 0 | F111: =Calculations!P102 -> 1 | G111: =Calculations!U102 -> 0.01230769231 | H111: =Calculations!X102 -> 0.03889592254 | I111: =Calculations!AB102 -> 0.07860368141 | J111: 1.3
A112: =Calculations!B103 -> 218 | B112: =Calculations!A103 -> Land adjacent to Abbey Road, Halesowen, | C112: =Calculations!C103 -> 3.83 | D112: =Calculations!G103 -> 0 | E112: =Calculations!O103 -> 0 | F112: =Calculations!P103 -> 1 | G112: =Calculations!U103 -> 0.01572932509 | H112: =Calculations!X103 -> 0.0181404169 | I112: =Calculations!AB103 -> 0.03048094244 | J112: 3.83
A113: =Calculations!B104 -> 219 | B113: =Calculations!A104 -> Land off Lutley Land, adjacent to Brookside Close, Halesowen | C113: =Calculations!C104 -> 3.81 | D113: =Calculations!G104 -> 0.188976378 | E113: =Calculations!O104 -> 0.2073490814 | F113: =Calculations!P104 -> 0.7926509186 | G113: =Calculations!U104 -> 0.01880753639 | H113: =Calculations!X104 -> 0.03139335745 | I113: =Calculations!AB104 -> 0.08915458202 | J113: 3.02
A114: =Calculations!B105 -> 220 | B114: =Calculations!A105 -> Chester Road North, Borwnhills, Walsall | C114: =Calculations!C105 -> 2.2 | D114: =Calculations!G105 -> 0 | E114: =Calculations!O105 -> 0 | F114: =Calculations!P105 -> 1 | G114: =Calculations!U105 -> 0.01129366818 | H114: =Calculations!X105 -> 0.01767872727 | I114: =Calculations!AB105 -> 0.04122619992 | J114: 2.2
A115: =Calculations!B106 -> 222 | B115: =Calculations!A106 -> Land to the rear of 118 Little Hardwick Road, Streetly | C115: =Calculations!C106 -> 0.68 | D115: =Calculations!G106 -> 0 | E115: =Calculations!O106 -> 0 | F115: =Calculations!P106 -> 1 | G115: =Calculations!U106 -> 0 | H115: =Calculations!X106 -> 0 | I115: =Calculations!AB106 -> 0.134365881 | J115: 0.68
A116: =Calculations!B107 -> 115 | B116: =Calculations!A107 -> Peak House Farm, Great Barr | C116: =Calculations!C107 -> 27 | D116: =Calculations!G107 -> 0 | E116: =Calculations!O107 -> 0 | F116: =Calculations!P107 -> 1 | G116: =Calculations!U107 -> <1% | H116: =Calculations!X107 -> 0.01153345234 | I116: =Calculations!AB107 -> 0.06818751853 | J116: 27
A117: =Calculations!B108 -> 221 | B117: =Calculations!A108 -> Land to the north of Northfields Way, Clayhanger, Borwnhills, Walsall | C117: =Calculations!C108 -> 1.87 | D117: =Calculations!G108 -> 0 | E117: =Calculations!O108 -> 0 | F117: =Calculations!P108 -> 1 | G117: =Calculations!U108 -> 0.007221657754 | H117: =Calculations!X108 -> 0.02018675873 | I117: =Calculations!AB108 -> 0.1084016135 | J117: 1.87
A118: =Calculations!B109 -> 224 | B118: =Calculations!A109 -> Hay Green / Lewis Rd, Lye | C118: =Calculations!C109 -> 4.14 | D118: =Calculations!G109 -> 0 | E118: =Calculations!O109 -> 0 | F118: =Calculations!P109 -> 1 | G118: =Calculations!U109 -> 0.06351524805 | H118: =Calculations!X109 -> 0.1363349737 | I118: =Calculations!AB109 -> 0.2397460888 | J118: 4.14
A119: =Calculations!B110 -> 225 | B119: =Calculations!A110 -> Land south of Cradley Town FC | C119: =Calculations!C110 -> 1.26 | D119: =Calculations!G110 -> 0 | E119: =Calculations!O110 -> 0 | F119: =Calculations!P110 -> 1 | G119: =Calculations!U110 -> 0 | H119: =Calculations!X110 -> 0 | I119: =Calculations!AB110 -> 0.02109296075 | J119: 1.26
A120: =Calculations!B111 -> 226 | B120: =Calculations!A111 -> High Farm Road, Halesowen | C120: =Calculations!C111 -> 0.37 | D120: =Calculations!G111 -> 0 | E120: =Calculations!O111 -> 0 | F120: =Calculations!P111 -> 1 | G120: =Calculations!U111 -> 0 | H120: =Calculations!X111 -> 0 | I120: =Calculations!AB111 -> 0 | J120: 0.37
A121: =Calculations!B112 -> 227 | B121: =Calculations!A112 -> Lapwood Avenue Kingswinford | C121: =Calculations!C112 -> 1.38 | D121: =Calculations!G112 -> 0 | E121: =Calculations!O112 -> 0 | F121: =Calculations!P112 -> 1 | G121: =Calculations!U112 -> 0.04693526089 | H121: =Calculations!X112 -> 0.110725483 | I121: =Calculations!AB112 -> 0.2783715701 | J121: 1.38
A122: =Calculations!B113 -> 228 | B122: =Calculations!A113 -> Land off Cradley Rd Netherton | C122: =Calculations!C113 -> 1.74 | D122: =Calculations!G113 -> 0 | E122: =Calculations!O113 -> 0 | F122: =Calculations!P113 -> 1 | G122: =Calculations!U113 -> 0 | H122: =Calculations!X113 -> 0.01942298074 | I122: =Calculations!AB113 -> 0.1367223553 | J122: 1.74
A123: =Calculations!B114 -> 229 | B123: =Calculations!A114 -> land off Bowling Green Rd Stourbridge | C123: =Calculations!C114 -> 0.62 | D123: =Calculations!G114 -> 0 | E123: =Calculations!O114 -> 0 | F123: =Calculations!P114 -> 1 | G123: =Calculations!U114 -> 0 | H123: =Calculations!X114 -> 0 | I123: =Calculations!AB114 -> 0 | J123: 0.62
A124: =Calculations!B115 -> 230 | B124: =Calculations!A115 -> Seymore Rd Wollescote | C124: =Calculations!C115 -> 0.2 | D124: =Calculations!G115 -> 0 | E124: =Calculations!O115 -> 0 | F124: =Calculations!P115 -> 1 | G124: =Calculations!U115 -> 0 | H124: =Calculations!X115 -> 0 | I124: =Calculations!AB115 -> 0 | J124: 0.2
A125: =Calculations!B116 -> 231 | B125: =Calculations!A116 -> Bank St / Bent St Brierley Hill | C125: =Calculations!C116 -> 0.15 | D125: =Calculations!G116 -> 0 | E125: =Calculations!O116 -> 0 | F125: =Calculations!P116 -> 1 | G125: =Calculations!U116 -> 0 | H125: =Calculations!X116 -> 0 | I125: =Calculations!AB116 -> 0 | J125: 0.15
A126: =Calculations!B117 -> 232 | B126: =Calculations!A117 -> Balfour Rd Kingswinford | C126: =Calculations!C117 -> 0.75 | D126: =Calculations!G117 -> 0 | E126: =Calculations!O117 -> 0.2 | F126: =Calculations!P117 -> 0.8 | G126: =Calculations!U117 -> 0 | H126: =Calculations!X117 -> 0 | I126: =Calculations!AB117 -> 0.0006760350659 | J126: 0.6
A127: =Calculations!B118 -> 233 | B127: =Calculations!A118 -> Brompton Drive Brierley Hill | C127: =Calculations!C118 -> 3.43 | D127: =Calculations!G118 -> 0 | E127: =Calculations!O118 -> 0 | F127: =Calculations!P118 -> 1 | G127: =Calculations!U118 -> 0 | H127: =Calculations!X118 -> 0 | I127: =Calculations!AB118 -> 0.01483985578 | J127: 3.43
A128: =Calculations!B119 -> 234 | B128: =Calculations!A119 -> Woodbury Close, Brielery Hill | C128: =Calculations!C119 -> 1.5 | D128: =Calculations!G119 -> 0 | E128: =Calculations!O119 -> 0 | F128: =Calculations!P119 -> 1 | G128: =Calculations!U119 -> 0.02471917069 | H128: =Calculations!X119 -> 0.03729667169 | I128: =Calculations!AB119 -> 0.08982305459 | J128: 1.5
A129: =Calculations!B120 -> 235 | B129: =Calculations!A120 -> Bryce Road, Pernsnett | C129: =Calculations!C120 -> 4.73 | D129: =Calculations!G120 -> 0 | E129: =Calculations!O120 -> 0 | F129: =Calculations!P120 -> 1 | G129: =Calculations!U120 -> <1% | H129: =Calculations!X120 -> 0.00584093139 | I129: =Calculations!AB120 -> 0.1259389728 | J129: 4.73
A130: =Calculations!B121 -> 236 | B130: =Calculations!A121 -> Enville Street Stourbridge | C130: =Calculations!C121 -> 0.42 | D130: =Calculations!G121 -> 0 | E130: =Calculations!O121 -> 0 | F130: =Calculations!P121 -> 1 | G130: =Calculations!U121 -> 0 | H130: =Calculations!X121 -> 0 | I130: =Calculations!AB121 -> 0 | J130: 0.42
A131: =Calculations!B122 -> 237 | B131: =Calculations!A122 -> Kingswinford Youth Centre, High Street, Kingswinford | C131: =Calculations!C122 -> 4.68 | D131: =Calculations!G122 -> 0 | E131: =Calculations!O122 -> 0 | F131: =Calculations!P122 -> 1 | G131: =Calculations!U122 -> <1% | H131: =Calculations!X122 -> 0.014502196 | I131: =Calculations!AB122 -> 0.06696461071 | J131: 4.68
A132: =Calculations!B123 -> 239 | B132: =Calculations!A123 -> Land off Back Lane, Walsall | C132: =Calculations!C123 -> 18.1 | D132: =Calculations!G123 -> 0 | E132: =Calculations!O123 -> 0 | F132: =Calculations!P123 -> 1 | G132: =Calculations!U123 -> 0 | H132: =Calculations!X123 -> 0 | I132: =Calculations!AB123 -> 0 | J132: 18.1
A133: =Calculations!B124 -> 240 | B133: =Calculations!A124 -> Located off Elan Road, Sedgley | C133: =Calculations!C124 -> 3.46 | D133: =Calculations!G124 -> 0 | E133: =Calculations!O124 -> 0 | F133: =Calculations!P124 -> 1 | G133: =Calculations!U124 -> 0.04620076603 | H133: =Calculations!X124 -> 0.0773140718 | I133: =Calculations!AB124 -> 0.1923321858 | J133: 3.46
A134: =Calculations!B125 -> 241 | B134: =Calculations!A125 -> Land adjacent to Anvil Crescent, Cannon Drive and Poole Crescent, Coseley | C134: =Calculations!C125 -> 3.34 | D134: =Calculations!G125 -> 0 | E134: =Calculations!O125 -> 0 | F134: =Calculations!P125 -> 1 | G134: =Calculations!U125 -> <1% | H134: =Calculations!X125 -> 0.01022329958 | I134: =Calculations!AB125 -> 0.07070754488 | J134: 3.34
A135: =Calculations!B126 -> 242 | B135: =Calculations!A126 -> Land located off Higgins Avenue, Harding Street, Coseley | C135: =Calculations!C126 -> 1.37 | D135: =Calculations!G126 -> 0 | E135: =Calculations!O126 -> 0 | F135: =Calculations!P126 -> 1 | G135: =Calculations!U126 -> 0.0124154243 | H135: =Calculations!X126 -> 0.02483543642 | I135: =Calculations!AB126 -> 0.09010513293 | J135: 1.37
A136: =Calculations!B127 -> 243 | B136: =Calculations!A127 -> Green space land off Downfield Road, Gornal. | C136: =Calculations!C127 -> 3.37 | D136: =Calculations!G127 -> 0 | E136: =Calculations!O127 -> 0 | F136: =Calculations!P127 -> 1 | G136: =Calculations!U127 -> 0.02996729049 | H136: =Calculations!X127 -> 0.05388382802 | I136: =Calculations!AB127 -> 0.1544991669 | J136: 3.37
A137: =Calculations!B128 -> 245 | B137: =Calculations!A128 -> Grazing Land Wollaston Farm, Wollaston, Stourbridge | C137: =Calculations!C128 -> 3.77 | D137: =Calculations!G128 -> 0 | E137: =Calculations!O128 -> 0 | F137: =Calculations!P128 -> 1 | G137: =Calculations!U128 -> 0.08929100255 | H137: =Calculations!X128 -> 0.1136375311 | I137: =Calculations!AB128 -> 0.1621193473 | J137: 3.77
A138: =Calculations!B129 -> 246 | B138: =Calculations!A129 -> Lower Gornal STW, Lower Gornal | C138: =Calculations!C129 -> 10.67 | D138: =Calculations!G129 -> 0.002811621368 | E138: =Calculations!O129 -> <1% | F138: =Calculations!P129 -> 0.9971883786 | G138: =Calculations!U129 -> 0.02011511694 | H138: =Calculations!X129 -> 0.03513558374 | I138: =Calculations!AB129 -> 0.0999806456 | J138: 10.64
A139: =Calculations!B130 -> 247 | B139: =Calculations!A130 -> Guys Lane, Lower Gornal | C139: =Calculations!C130 -> 1.05 | D139: =Calculations!G130 -> 0 | E139: =Calculations!O130 -> 0 | F139: =Calculations!P130 -> 1 | G139: =Calculations!U130 -> 0.05304425714 | H139: =Calculations!X130 -> 0.08719707485 | I139: =Calculations!AB130 -> 0.1444071223 | J139: =C139*F139 -> 1.05
A140: =Calculations!B131 -> 248 | B140: =Calculations!A131 -> Land off Tenacre Lane, Lower Gornal, DY3 1XH | C140: =Calculations!C131 -> 1.56 | D140: =Calculations!G131 -> 0 | E140: =Calculations!O131 -> 0 | F140: =Calculations!P131 -> 1 | G140: =Calculations!U131 -> 0.03251491977 | H140: =Calculations!X131 -> 0.06805385331 | I140: =Calculations!AB131 -> 0.1997509907 | J140: 1.56
A141: =Calculations!B132 -> 249 | B141: =Calculations!A132 -> Furber Place, Kingswinford, DY6 8DE | C141: =Calculations!C132 -> 2.52 | D141: =Calculations!G132 -> 0 | E141: =Calculations!O132 -> 0 | F141: =Calculations!P132 -> 1 | G141: =Calculations!U132 -> 0 | H141: =Calculations!X132 -> 0.005714285714 | I141: =Calculations!AB132 -> 0.02922516389 | J141: 2.52
A142: =Calculations!B133 -> 250 | B142: =Calculations!A133 -> Severn Drive, Pensnett, DY5 4QS | C142: =Calculations!C133 -> 0.95 | D142: =Calculations!G133 -> 0 | E142: =Calculations!O133 -> 0 | F142: =Calculations!P133 -> 1 | G142: =Calculations!U133 -> 0 | H142: =Calculations!X133 -> 0 | I142: =Calculations!AB133 -> 0.04366606699 | J142: 0.95
A143: =Calculations!B134 -> 251 | B143: =Calculations!A134 -> Pensnett Road, Pensnett, DY5 4NE | C143: =Calculations!C134 -> 1.42 | D143: =Calculations!G134 -> 0 | E143: =Calculations!O134 -> 0 | F143: =Calculations!P134 -> 1 | G143: =Calculations!U134 -> 0.06975216876 | H143: =Calculations!X134 -> 0.1869147087 | I143: =Calculations!AB134 -> 0.4940190972 | J143: 1.42
A144: =Calculations!B135 -> 252 | B144: =Calculations!A135 -> Vicarage Lane, Pensnett | C144: =Calculations!C135 -> 2.49 | D144: =Calculations!G135 -> 0 | E144: =Calculations!O135 -> 0 | F144: =Calculations!P135 -> 1 | G144: =Calculations!U135 -> 0.02501964543 | H144: =Calculations!X135 -> 0.04275310373 | I144: =Calculations!AB135 -> 0.06671051637 | J144: 2.49
A145: =Calculations!B136 -> 253 | B145: =Calculations!A136 -> Park Head Locks, Off Holly Hall Road, Dudley, DY2 0UN | C145: =Calculations!C136 -> 2.67 | D145: =Calculations!G136 -> 0 | E145: =Calculations!O136 -> 0 | F145: =Calculations!P136 -> 1 | G145: =Calculations!U136 -> 0 | H145: =Calculations!X136 -> 0 | I145: =Calculations!AB136 -> 0.0446496345 | J145: 2.67
A146: =Calculations!B137 -> 254 | B146: =Calculations!A137 -> Elizabeth Grove, Tansley Hill, Dudley, DY2 7TG | C146: =Calculations!C137 -> 1.04 | D146: =Calculations!G137 -> 0 | E146: =Calculations!O137 -> 0 | F146: =Calculations!P137 -> 1 | G146: =Calculations!U137 -> 0 | H146: =Calculations!X137 -> 0 | I146: =Calculations!AB137 -> 0 | J146: 1.04
A147: =Calculations!B138 -> 255 | B147: =Calculations!A138 -> Brierley Hill Road/Cooper Avenue, Brierley Hill, DY5 3PB | C147: =Calculations!C138 -> 4.73 | D147: =Calculations!G138 -> 0 | E147: =Calculations!O138 -> 0 | F147: =Calculations!P138 -> 1 | G147: =Calculations!U138 -> 0.008000238377 | H147: =Calculations!X138 -> 0.04008691724 | I147: =Calculations!AB138 -> 0.1185960344 | J147: 4.73
A148: =Calculations!B139 -> 256 | B148: =Calculations!A139 -> Lodge Crescent/Highbridge Road, Netherton, DY2 0HF | C148: =Calculations!C139 -> 1.63 | D148: =Calculations!G139 -> 0 | E148: =Calculations!O139 -> 0 | F148: =Calculations!P139 -> 1 | G148: =Calculations!U139 -> 0 | H148: =Calculations!X139 -> 0 | I148: =Calculations!AB139 -> 0.03015848903 | J148: 1.63
A149: =Calculations!B140 -> 257 | B149: =Calculations!A140 -> Copse Road, Netherton, DY2 0AJ | C149: =Calculations!C140 -> 0.76 | D149: =Calculations!G140 -> 0 | E149: =Calculations!O140 -> 0 | F149: =Calculations!P140 -> 1 | G149: =Calculations!U140 -> 0 | H149: =Calculations!X140 -> 0 | I149: =Calculations!AB140 -> 0.03197839668 | J149: 0.76
A150: =Calculations!B141 -> 258 | B150: =Calculations!A141 -> Saltwells Road, Netherton, DY2 9RR | C150: =Calculations!C141 -> 1.23 | D150: =Calculations!G141 -> 0 | E150: =Calculations!O141 -> 0 | F150: =Calculations!P141 -> 1 | G150: =Calculations!U141 -> <1% | H150: =Calculations!X141 -> 0.0018005327 | I150: =Calculations!AB141 -> 0.07893062324 | J150: 1.23
A151: =Calculations!B142 -> 259 | B151: =Calculations!A142 -> Charles Road, Quarry Bank., DY5 1AG | C151: =Calculations!C142 -> 0.72 | D151: =Calculations!G142 -> 0 | E151: =Calculations!O142 -> 0 | F151: =Calculations!P142 -> 1 | G151: =Calculations!U142 -> <1% | H151: =Calculations!X142 -> 0.008451155857 | I151: =Calculations!AB142 -> 0.03288308002 | J151: 0.72
A152: =Calculations!B143 -> 263 | B152: =Calculations!A143 -> Charlemont Community Centre, Beaconview Road, West Bromwich | C152: =Calculations!C143 -> 0.05 | D152: =Calculations!G143 -> 0 | E152: =Calculations!O143 -> 0 | F152: =Calculations!P143 -> 1 | G152: =Calculations!U143 -> 0 | H152: =Calculations!X143 -> 0 | I152: =Calculations!AB143 -> 0 | J152: 0.05
A153: =Calculations!B144 -> 264 | B153: =Calculations!A144 -> Three Fields, Dunsley Road, Norton, Stourbridge, DY8 3LR | C153: =Calculations!C144 -> 4.59 | D153: =Calculations!G144 -> 0 | E153: =Calculations!O144 -> 0 | F153: =Calculations!P144 -> 1 | G153: =Calculations!U144 -> 0 | H153: =Calculations!X144 -> 0 | I153: =Calculations!AB144 -> 0 | J153: 4.59
A154: =Calculations!B145 -> 265 | B154: =Calculations!A145 -> Portway Close, Kingswinford, DY6 8HD | C154: =Calculations!C145 -> 1.54 | D154: =Calculations!G145 -> 0 | E154: =Calculations!O145 -> 0 | F154: =Calculations!P145 -> 1 | G154: =Calculations!U145 -> 0 | H154: =Calculations!X145 -> 0 | I154: =Calculations!AB145 -> 0 | J154: 1.54
A155: =Calculations!B146 -> 266 | B155: =Calculations!A146 -> Mob Lane, Pelsall, Walsall | C155: =Calculations!C146 -> 40.11 | D155: =Calculations!G146 -> 0 | E155: =Calculations!O146 -> 0 | F155: =Calculations!P146 -> 1 | G155: =Calculations!U146 -> <1% | H155: =Calculations!X146 -> 2.613312411e-05 | I155: =Calculations!AB146 -> 0.002834072909 | J155: 40.11
A156: =Calculations!B147 -> 267 | B156: =Calculations!A147 -> Tenacre Lane, Eve lane, Dudley, DY1 2TU | C156: =Calculations!C147 -> 3.96 | D156: =Calculations!G147 -> 0 | E156: =Calculations!O147 -> 0 | F156: =Calculations!P147 -> 1 | G156: =Calculations!U147 -> 0.02558374894 | H156: =Calculations!X147 -> 0.04999424305 | I156: =Calculations!AB147 -> 0.08960840245 | J156: 3.96
A157: =Calculations!B148 -> 269 | B157: =Calculations!A148 -> Land to the South of Bentley Lane, Willenhall, Walsall | C157: =Calculations!C148 -> 11.31 | D157: =Calculations!G148 -> 0 | E157: =Calculations!O148 -> 0 | F157: =Calculations!P148 -> 1 | G157: =Calculations!U148 -> 0.01054082723 | H157: =Calculations!X148 -> 0.01516976756 | I157: =Calculations!AB148 -> 0.02618958399 | J157: 11.31
A158: =Calculations!B149 -> 271 | B158: =Calculations!A149 -> Land off Wynall Lane South, Wollescote, DY9 9AJ | C158: =Calculations!C149 -> 0.88 | D158: =Calculations!G149 -> 0 | E158: =Calculations!O149 -> 0 | F158: =Calculations!P149 -> 1 | G158: =Calculations!U149 -> 0 | H158: =Calculations!X149 -> 0.0002528805885 | I158: =Calculations!AB149 -> 0.001909044746 | J158: 0.88
A159: =Calculations!B150 -> 270 | B159: =Calculations!A150 -> Oxley Park Golf Club land adjacent to 1A Ribbesford Avenue, Wolverhampton, WV10 6DU | C159: =Calculations!C150 -> 0.06 | D159: =Calculations!G150 -> 0 | E159: =Calculations!O150 -> 0 | F159: =Calculations!P150 -> 1 | G159: =Calculations!U150 -> 0 | H159: =Calculations!X150 -> 0 | I159: =Calculations!AB150 -> 0 | J159: 0.06
A160: =Calculations!B151 -> 273 | B160: =Calculations!A151 -> Land off Timmis Road, Lye | C160: =Calculations!C151 -> 0.63 | D160: =Calculations!G151 -> 0 | E160: =Calculations!O151 -> 0 | F160: =Calculations!P151 -> 1 | G160: =Calculations!U151 -> 0.01469428588 | H160: =Calculations!X151 -> 0.06566517446 | I160: =Calculations!AB151 -> 0.9735819494 | J160: 0.63
A161: =Calculations!B152 -> 274 | B161: =Calculations!A152 -> Ketley Farm, Dudley Road, Kingswinford | C161: =Calculations!C152 -> 1.15 | D161: =Calculations!G152 -> 0 | E161: =Calculations!O152 -> 0 | F161: =Calculations!P152 -> 1 | G161: =Calculations!U152 -> 0 | H161: =Calculations!X152 -> 0.01217391304 | I161: =Calculations!AB152 -> 0.04268404524 | J161: 1.15
A162: =Calculations!B153 -> 275 | B162: =Calculations!A153 -> Land off Cradley Road, DY2 9SW | C162: =Calculations!C153 -> 0.39 | D162: =Calculations!G153 -> 0 | E162: =Calculations!O153 -> 0 | F162: =Calculations!P153 -> 1 | G162: =Calculations!U153 -> 0 | H162: =Calculations!X153 -> 0.8016272881 | I162: =Calculations!AB153 -> 0.9913240238 | J162: 0.39
A163: =Calculations!B154 -> 277 | B163: =Calculations!A154 -> Land at Greenwood Road and Lazy Hill Road, Aldridge, Walsall | C163: =Calculations!C154 -> 2.65 | D163: =Calculations!G154 -> 0 | E163: =Calculations!O154 -> 0 | F163: =Calculations!P154 -> 1 | G163: =Calculations!U154 -> 0 | H163: =Calculations!X154 -> 0 | I163: =Calculations!AB154 -> 1.166843338e-05 | J163: 2.65
A164: =Calculations!B155 -> 278 | B164: =Calculations!A155 -> Open Space at Grassy Lane, Wolverhampton | C164: =Calculations!C155 -> 3.2 | D164: =Calculations!G155 -> 0 | E164: =Calculations!O155 -> 0 | F164: =Calculations!P155 -> 1 | G164: =Calculations!U155 -> 0 | H164: =Calculations!X155 -> 0.03373630009 | I164: =Calculations!AB155 -> 0.1210699298 | J164: 3.2
A165: =Calculations!B156 -> 280 | B165: =Calculations!A156 -> Clent View Road, Stourbridge | C165: =Calculations!C156 -> 21.52 | D165: =Calculations!G156 -> 0 | E165: =Calculations!O156 -> 0 | F165: =Calculations!P156 -> 1 | G165: =Calculations!U156 -> 0 | H165: =Calculations!X156 -> 0 | I165: =Calculations!AB156 -> 0.003185084463 | J165: 21.52
A166: =Calculations!B157 -> 281 | B166: =Calculations!A157 -> Aldridge School and land to the south of Bosty Lane | C166: =Calculations!C157 -> 64.44 | D166: =Calculations!G157 -> 0 | E166: =Calculations!O157 -> 0 | F166: =Calculations!P157 -> 1 | G166: =Calculations!U157 -> 0.009366197493 | H166: =Calculations!X157 -> 0.0150347547 | I166: =Calculations!AB157 -> 0.0510734201 | J166: 64.44
A167: =Calculations!B158 -> 282 | B167: =Calculations!A158 -> Northwood Park Road, Wolverhampton | C167: =Calculations!C158 -> 7.3 | D167: =Calculations!G158 -> 0 | E167: =Calculations!O158 -> 0 | F167: =Calculations!P158 -> 1 | G167: =Calculations!U158 -> 0 | H167: =Calculations!X158 -> 0 | I167: =Calculations!AB158 -> 0 | J167: 7.3
A168: =Calculations!B159 -> 283 | B168: =Calculations!A159 -> Colton Hills Community School (part of) Playing Field, Wolverhampton | C168: =Calculations!C159 -> 5.25 | D168: =Calculations!G159 -> 0 | E168: =Calculations!O159 -> 0 | F168: =Calculations!P159 -> 1 | G168: =Calculations!U159 -> 0 | H168: =Calculations!X159 -> 0.004723809524 | I168: =Calculations!AB159 -> 0.0643460534 | J168: 5.25
A169: =Calculations!B160 -> 284 | B169: =Calculations!A160 -> Land at Former Bushbury Swimming Baths, Sandy Lane, Wolverhampton | C169: =Calculations!C160 -> 0.83 | D169: =Calculations!G160 -> 0 | E169: =Calculations!O160 -> 0 | F169: =Calculations!P160 -> 1 | G169: =Calculations!U160 -> 0 | H169: =Calculations!X160 -> 0 | I169: =Calculations!AB160 -> 0.0236083012 | J169: 0.83
A170: =Calculations!B161 -> 286 | B170: =Calculations!A161 -> Land at Druids Heath Golf Club, Stonnall Road, Walsall | C170: =Calculations!C161 -> 0.99 | D170: =Calculations!G161 -> 0 | E170: =Calculations!O161 -> 0 | F170: =Calculations!P161 -> 1 | G170: =Calculations!U161 -> 0 | H170: =Calculations!X161 -> 0 | I170: =Calculations!AB161 -> 0 | J170: 0.99
A171: =Calculations!B162 -> 289 | B171: =Calculations!A162 -> Land North of Showmen's Caravan Site, Goscote Lane, Pelsall | C171: =Calculations!C162 -> 0.23 | D171: =Calculations!G162 -> 0 | E171: =Calculations!O162 -> 0 | F171: =Calculations!P162 -> 1 | G171: =Calculations!U162 -> 0 | H171: =Calculations!X162 -> 1.303800002e-05 | I171: =Calculations!AB162 -> 0.1092170084 | J171: =C171*F171 -> 0.23
A172: =Calculations!B163 -> 285 | B172: =Calculations!A163 -> Land south of Castle Road,,,,, Walsall Wood | C172: =Calculations!C163 -> 1.01 | D172: =Calculations!G163 -> 0 | E172: =Calculations!O163 -> 0 | F172: =Calculations!P163 -> 1 | G172: =Calculations!U163 -> 0 | H172: =Calculations!X163 -> 0 | I172: =Calculations!AB163 -> 0 | J172: 1.01
A173: =Calculations!B164 -> 292 | B173: =Calculations!A164 -> Land adj. 74 Perton Road, Wightwick, Wolverhampton | C173: =Calculations!C164 -> 0 | D173: =Calculations!G164 -> 0 | E173: =Calculations!O164 -> 0 | F173: =Calculations!P164 -> 0 | G173: 0 | H173: =Calculations!X164 -> 0 | I173: =Calculations!AB164 -> 0 | J173: 0
A174: =Calculations!B165 -> 279 | B174: =Calculations!A165 -> Land at Vicarage Road / Coronation Road, High Heath, Walsall | C174: =Calculations!C165 -> 40.11 | D174: =Calculations!G165 -> 0.007978060334 | E174: =Calculations!O165 -> 0.08327100474 | F174: =Calculations!P165 -> 0.9167289953 | G174: =Calculations!U165 -> 0.008045464842 | H174: =Calculations!X165 -> 0.01630265926 | I174: =Calculations!AB165 -> 0.0682038406 | J174: 36.77
A175: =Calculations!B166 -> 296 | B175: =Calculations!A166 -> Land at Park Lane, Cradley | C175: =Calculations!C166 -> 2.81 | D175: =Calculations!G166 -> 0 | E175: =Calculations!O166 -> 0 | F175: =Calculations!P166 -> 1 | G175: =Calculations!U166 -> 0.01110314591 | H175: =Calculations!X166 -> 0.0178063664 | I175: =Calculations!AB166 -> 0.05811929471 | J175: 2.81
A176: =Calculations!B167 -> 295 | B176: =Calculations!A167 -> Foxcote Farm, Oldnall Road, Wollescote | C176: =Calculations!C167 -> 64.19 | D176: =Calculations!G167 -> 0 | E176: =Calculations!O167 -> 0 | F176: =Calculations!P167 -> 1 | G176: =Calculations!U167 -> 0.006119562704 | H176: =Calculations!X167 -> 0.009038574736 | I176: =Calculations!AB167 -> 0.0306685507 | J176: 64.19
A177: =Calculations!B168 -> 299 | B177: =Calculations!A168 -> Oxley Park Golf Club land adjacent to 21 Oxley Links Road | C177: =Calculations!C168 -> 0.14 | D177: =Calculations!G168 -> 0 | E177: =Calculations!O168 -> 0 | F177: =Calculations!P168 -> 1 | G177: =Calculations!U168 -> 0 | H177: =Calculations!X168 -> 0 | I177: =Calculations!AB168 -> 0 | J177: 0.14
A178: =Calculations!B169 -> 298 | B178: =Calculations!A169 -> Oxley Park Golf Club land adjacent to 139 Oxley Moor Road | C178: =Calculations!C169 -> 0.125 | D178: =Calculations!G169 -> 0 | E178: =Calculations!O169 -> 0 | F178: =Calculations!P169 -> 1 | G178: =Calculations!U169 -> 0 | H178: =Calculations!X169 -> 0.07141554187 | I178: =Calculations!AB169 -> 0.1006214318 | J178: 0.125
A179: =Calculations!B170 -> 297 | B179: =Calculations!A170 -> land at Albutts Road, Brownhills | C179: =Calculations!C170 -> 2.2 | D179: =Calculations!G170 -> 0 | E179: =Calculations!O170 -> 0 | F179: =Calculations!P170 -> 1 | G179: =Calculations!U170 -> <1% | H179: =Calculations!X170 -> 0.005828536633 | I179: =Calculations!AB170 -> 0.05926422918 | J179: 2.2
A180: =Calculations!B171 -> 300 | B180: =Calculations!A171 -> Oxely Golf Club Clubhouse | C180: =Calculations!C171 -> 0.75 | D180: =Calculations!G171 -> 0 | E180: =Calculations!O171 -> 0 | F180: =Calculations!P171 -> 1 | G180: =Calculations!U171 -> 0 | H180: =Calculations!X171 -> 0 | I180: =Calculations!AB171 -> 0 | J180: 0.75
A181: =Calculations!B172 -> 301 | B181: =Calculations!A172 -> Oxley Golf Club | C181: =Calculations!C172 -> 1.75 | D181: =Calculations!G172 -> 0 | E181: =Calculations!O172 -> 0 | F181: =Calculations!P172 -> 1 | G181: =Calculations!U172 -> 0.04359936 | H181: =Calculations!X172 -> 0.06589329238 | I181: =Calculations!AB172 -> 0.2330860551 | J181: 1.75
A182: =Calculations!B173 -> 303 | B182: =Calculations!A173 -> Groundkeepers Compound, Oxley Park Golf Club | C182: =Calculations!C173 -> 0.1 | D182: =Calculations!G173 -> 0 | E182: =Calculations!O173 -> 0 | F182: =Calculations!P173 -> 1 | G182: =Calculations!U173 -> 0 | H182: =Calculations!X173 -> 0 | I182: =Calculations!AB173 -> 0 | J182: 0.1
A183: =Calculations!B174 -> 304 | B183: =Calculations!A174 -> Land at Queslett Raod, Great Barr | C183: =Calculations!C174 -> 0.56 | D183: =Calculations!G174 -> 0 | E183: =Calculations!O174 -> 0 | F183: =Calculations!P174 -> 1 | G183: =Calculations!U174 -> 0 | H183: =Calculations!X174 -> 0 | I183: =Calculations!AB174 -> 0.03751391081 | J183: 0.56
A184: =Calculations!B175 -> 158 | B184: =Calculations!A175 -> Roway Lane, Oldbury | C184: =Calculations!C175 -> 3.43 | D184: =Calculations!G175 -> 0 | E184: =Calculations!O175 -> 0 | F184: =Calculations!P175 -> 1 | G184: =Calculations!U175 -> 0.007392287226 | H184: =Calculations!X175 -> 0.01116686804 | I184: =Calculations!AB175 -> 0.08243402421 | J184: 3.43
A185: =Calculations!B176 -> 159 | B185: =Calculations!A176 -> Walsall Wood | C185: =Calculations!C176 -> 3.11 | D185: =Calculations!G176 -> 0 | E185: =Calculations!O176 -> 0 | F185: =Calculations!P176 -> 1 | G185: =Calculations!U176 -> 0.01151803338 | H185: =Calculations!X176 -> 0.01568824739 | I185: =Calculations!AB176 -> 0.05361745887 | J185: 3.11
A186: =Calculations!B177 -> 156 | B186: =Calculations!A177 -> Goscote Lodge C, Walsall | C186: =Calculations!C177 -> 14.63 | D186: =Calculations!G177 -> 0.03007518797 | E186: =Calculations!O177 -> 0.04306220096 | F186: =Calculations!P177 -> 0.956937799 | G186: =Calculations!U177 -> 0.04128406881 | H186: =Calculations!X177 -> 0.07397684486 | I186: =Calculations!AB177 -> 0.1704159485 | J186: 14
A187: =Calculations!B178 -> 0 | B187: =Calculations!A178 -> SHLAA | C187: =Calculations!C178 -> 0 | D187: =Calculations!G178 -> 0 | E187: =Calculations!O178 -> 0 | F187: =Calculations!P178 -> 0 | G187: =Calculations!U178 -> 0 | H187: 0 | I187: 0 | J187: =C187*F187 -> 0
A188: =Calculations!B179 -> 39540 | B188: =Calculations!A179 -> 55-77 Lichfield Street, Wolverhampton City Centre | C188: =Calculations!C179 -> 0.121801375 | D188: =Calculations!G179 -> 0 | E188: =Calculations!O179 -> 0 | F188: =Calculations!P179 -> 1 | G188: =Calculations!U179 -> 0 | H188: =Calculations!X179 -> 0 | I188: =Calculations!AB179 -> 0 | J188: 0.121801375
A189: =Calculations!B180 -> 39520 | B189: =Calculations!A180 -> Springvale Sports and SOther Commitmential Club, Millfields Road | C189: =Calculations!C180 -> 2.857387702 | D189: =Calculations!G180 -> 0 | E189: =Calculations!O180 -> 0 | F189: =Calculations!P180 -> 1 | G189: =Calculations!U180 -> 0 | H189: =Calculations!X180 -> 0.07223145126 | I189: =Calculations!AC180 -> 0.306395043 | J189: 2.857387702
A190: =Calculations!B181 -> 39360 | B190: =Calculations!A181 -> TeleCompleted During 2017/18 House, Church Street, Wolverhampton City Centre | C190: =Calculations!C181 -> 0.5810826161 | D190: =Calculations!G181 -> 0 | E190: =Calculations!O181 -> 0 | F190: =Calculations!P181 -> 1 | G190: =Calculations!U181 -> 0 | H190: =Calculations!X181 -> 0 | I190: =Calculations!AC181 -> 0.07090213828 | J190: 0.5810826161
A191: =Calculations!B182 -> 39350 | B191: =Calculations!A182 -> Former Wednesfield High School Playing Fields | C191: =Calculations!C182 -> 7.572558248 | D191: =Calculations!G182 -> 0 | E191: =Calculations!O182 -> 0 | F191: =Calculations!P182 -> 1 | G191: =Calculations!U182 -> 0.01955055935 | H191: =Calculations!X182 -> 0.03394486044 | I191: =Calculations!AC182 -> 0.07031118668 | J191: 7.572558248
A192: =Calculations!B183 -> 39340 | B192: =Calculations!A183 -> Land at Sweetbriar Road / Pump Street | C192: =Calculations!C183 -> 0.162454385 | D192: =Calculations!G183 -> 0 | E192: =Calculations!O183 -> 0 | F192: =Calculations!P183 -> 1 | G192: =Calculations!U183 -> 0 | H192: =Calculations!X183 -> 0 | I192: =Calculations!AC183 -> 0 | J192: 0.162454385
A193: =Calculations!B184 -> 39330 | B193: =Calculations!A184 -> Fmr Ettingshall Primary School, Herbert Street | C193: =Calculations!C184 -> 0.8242737534 | D193: =Calculations!G184 -> 0 | E193: =Calculations!O184 -> 0 | F193: =Calculations!P184 -> 1 | G193: =Calculations!U184 -> 0 | H193: =Calculations!X184 -> 0.0001663767644 | I193: =Calculations!AC184 -> <1% | J193: 0.8242737534
A194: =Calculations!B185 -> 39320 | B194: =Calculations!A185 -> Fmr Bilston Leisure Centre, Prouds Lane, Bilston | C194: =Calculations!C185 -> 0.9017984643 | D194: =Calculations!G185 -> 0 | E194: =Calculations!O185 -> 0 | F194: =Calculations!P185 -> 1 | G194: =Calculations!U185 -> 0.02483923144 | H194: =Calculations!X185 -> 0.04341413815 | I194: =Calculations!AC185 -> 0.1783864675 | J194: 0.9017984643
A195: =Calculations!B186 -> 39310 | B195: =Calculations!A186 -> The Manse, Leacroft Avenue | C195: =Calculations!C186 -> 0.335301885 | D195: =Calculations!G186 -> 0 | E195: =Calculations!O186 -> 0 | F195: =Calculations!P186 -> 1 | G195: =Calculations!U186 -> 0 | H195: =Calculations!X186 -> 0 | I195: =Calculations!AC186 -> 0 | J195: 0.335301885
A196: =Calculations!B187 -> 39300 | B196: =Calculations!A187 -> Land Adjacent To Halfway House 115 Tettenhall Road Wolverhampton West Midlands | C196: =Calculations!C187 -> 0.4229139376 | D196: =Calculations!G187 -> 0 | E196: =Calculations!O187 -> 0 | F196: =Calculations!P187 -> 1 | G196: =Calculations!U187 -> 0 | H196: =Calculations!X187 -> 0 | I196: =Calculations!AC187 -> 0 | J196: 0.4229139376
A197: =Calculations!B188 -> 39290 | B197: =Calculations!A188 -> Land Adjacent To 37 Bowdler Road Wolverhampton West Midlands WV2 1EN | C197: =Calculations!C188 -> 0.02036913645 | D197: =Calculations!G188 -> 0 | E197: =Calculations!O188 -> 0 | F197: =Calculations!P188 -> 1 | G197: =Calculations!U188 -> 0 | H197: =Calculations!X188 -> 0 | I197: =Calculations!AC188 -> 0 | J197: 0.02036913645
A198: =Calculations!B189 -> 39280 | B198: =Calculations!A189 -> Garage Site Behind 23 To 33 Beach Avenue Wolverhampton West Midlands | C198: =Calculations!C189 -> 0.098589075 | D198: =Calculations!G189 -> 0 | E198: =Calculations!O189 -> 0 | F198: =Calculations!P189 -> 1 | G198: =Calculations!U189 -> 0 | H198: =Calculations!X189 -> 0 | I198: =Calculations!AC189 -> 0 | J198: 0.098589075
A199: =Calculations!B190 -> 39270 | B199: =Calculations!A190 -> 87 Rayleigh Road Wolverhampton West Midlands WV3 0AX | C199: =Calculations!C190 -> 0.02187720905 | D199: =Calculations!G190 -> 0 | E199: =Calculations!O190 -> 0 | F199: =Calculations!P190 -> 1 | G199: =Calculations!U190 -> 0 | H199: =Calculations!X190 -> 0 | I199: =Calculations!AC190 -> 0 | J199: 0.02187720905
A200: =Calculations!B191 -> 39260 | B200: =Calculations!A191 -> Land Formerly 37 - 39 Brooklands Parade Wolverhampton West Midlands WV1 2ND | C200: =Calculations!C191 -> 0.075156575 | D200: =Calculations!G191 -> 0 | E200: =Calculations!O191 -> 0 | F200: =Calculations!P191 -> 1 | G200: =Calculations!U191 -> 0 | H200: =Calculations!X191 -> 0 | I200: =Calculations!AC191 -> 0 | J200: 0.075156575
A201: =Calculations!B192 -> 39250 | B201: =Calculations!A192 -> 1 Wem Gardens Wolverhampton West Midlands WV11 3HU | C201: =Calculations!C192 -> 0.031660279 | D201: =Calculations!G192 -> 0 | E201: =Calculations!O192 -> 0 | F201: =Calculations!P192 -> 1 | G201: =Calculations!U192 -> 0 | H201: =Calculations!X192 -> 0 | I201: =Calculations!AC192 -> <1% | J201: 0.031660279
A202: =Calculations!B193 -> 39240 | B202: =Calculations!A193 -> Land North East Of 36 Lord Street Bradley Wolverhampton West Midlands | C202: =Calculations!C193 -> 0.209850175 | D202: =Calculations!G193 -> 0 | E202: =Calculations!O193 -> 0 | F202: =Calculations!P193 -> 1 | G202: =Calculations!U193 -> 0 | H202: =Calculations!X193 -> 0 | I202: =Calculations!AC193 -> 0.0214481641 | J202: 0.209850175
A203: =Calculations!B194 -> 39230 | B203: =Calculations!A194 -> Medical Massage 37 Thornley Street Wolverhampton West Midlands WV1 1JP | C203: =Calculations!C194 -> 0.00628776815 | D203: =Calculations!G194 -> 0 | E203: =Calculations!O194 -> 0 | F203: =Calculations!P194 -> 1 | G203: =Calculations!U194 -> 0 | H203: =Calculations!X194 -> 0 | I203: =Calculations!AC194 -> 0 | J203: 0.00628776815
A204: =Calculations!B195 -> 39220 | B204: =Calculations!A195 -> 651 Stafford Road Wolverhampton West Midlands WV10 6QG | C204: =Calculations!C195 -> 0.03477143 | D204: =Calculations!G195 -> 0 | E204: =Calculations!O195 -> 0 | F204: =Calculations!P195 -> 1 | G204: =Calculations!U195 -> 0 | H204: =Calculations!X195 -> 0 | I204: =Calculations!AC195 -> 0 | J204: 0.03477143
A205: =Calculations!B196 -> 39200 | B205: =Calculations!A196 -> National Childrens Home 83 Completed During 2017/18pton Road Wolverhampton West Midlands WV3 9QH | C205: =Calculations!C196 -> 0.19797902 | D205: =Calculations!G196 -> 0 | E205: =Calculations!O196 -> 0 | F205: =Calculations!P196 -> 1 | G205: =Calculations!U196 -> 0.0170194392 | H205: =Calculations!X196 -> 0.04961467212 | I205: =Calculations!AC196 -> 0.1334643354 | J205: 0.19797902
A206: =Calculations!B197 -> 39190 | B206: =Calculations!A197 -> Land Adjacent To 38 Maple Road Wolverhampton West Midlands WV3 7JD | C206: =Calculations!C197 -> 0.01090136955 | D206: =Calculations!G197 -> 0 | E206: =Calculations!O197 -> 0 | F206: =Calculations!P197 -> 1 | G206: =Calculations!U197 -> 0 | H206: =Calculations!X197 -> 0 | I206: =Calculations!AC197 -> 0.005569547913 | J206: 0.01090136955
A207: =Calculations!B198 -> 39180 | B207: =Calculations!A198 -> 92 Swan Bank Wolverhampton West Midlands WV4 5PZ | C207: =Calculations!C198 -> 0.03516671275 | D207: =Calculations!G198 -> 0 | E207: =Calculations!O198 -> 0 | F207: =Calculations!P198 -> 1 | G207: =Calculations!U198 -> 0 | H207: =Calculations!X198 -> 0 | I207: =Calculations!AC198 -> 0 | J207: 0.03516671275
... 591 more rows

Sheet Calculations
A1: Location | B1: Site Code | C1: Site (ha) | D1: Site (ha) ROUNDED | E1: FZ3a (ha) | F1: FZ3a (ha) ROUNDED | G1: FZ3a (%) acc | H1: FZ3a (%) (MINUS FZ3b) | I1: FZ3a (%)_TOTAL | J1: FZ3a (%) acc | K1: FZ2 (ha) | M1: FZ2 (%)_(MINUS FZ3) | N1: FZ2 (%)_TOTAL | O1: FZ2 (%) acc | P1: FZ1 (%) | Q1: HFM (ha) | R1: HFM (%) | S1: SW30 (ha) | T1: SW30 (%) | U1: SW30 (%) acc | V1: SW100 (ha) | W1: SW100 (%)_(MINUS SW30) | X1: SW100 (%)_TOTAL | Y1: SW100 (%) acc | Z1: SW1000 (ha) | AA1: SW1000 (%)_(MINUS SW100) | AB1: SW1000 (%)_TOTAL | AC1: SW1000 (%) acc | AD1: Wolves 30yr (ha) | AE1: % | AF1: Wolves 100yr (Ha) | AG1: %
A2: Land south of Pedmore Lane, Pedmore, Stourbridge | B2: 203 | C2: 8.54 | D2: =ROUND(C2,2) -> 8.54 | E2: 0 | F2: =ROUND(E2,2) -> 0 | G2: =F2/D2 -> 0 | I2: =#REF!/D2 ->  | J2: =IF(I2>=0.005,I2,IF(#REF!=0,I2,"<1%")) ->  | K2: 0 | L2: =ROUND(K2,2) -> 0 | M2: =L2-F2 -> 0 | N2: =L2/D2 -> 0 | O2: =IF(N2>=0.005,N2,IF(K2=0,N2,"<1%")) -> 0 | P2: =1-N2 -> 1 | R2: =Q2/C2 -> 0 | S2: 0 | T2: =S2/C2 -> 0 | U2: =IF(T2>=0.005,T2,IF(S2=0,T2,"<1%")) -> 0 | V2: 0 | W2: =X2-T2 -> 0 | X2: =V2/C2 -> 0 | Y2: =IF(W2>=0.005,W2,IF(V2=0,W2,"<1%")) -> 0 | Z2: 0 | AA2: =AB2-W2 -> 0 | AB2: =Z2/C2 -> 0 | AC2: =IF(AA2>=0.005,AA2,IF(Z2=0,AA2,"<1%")) -> 0
A3: Land south of Pedmore Lane, Pedmore, Stourbridge | B3: 203 | C3: 11.23 | D3: =ROUND(C3,2) -> 11.23 | E3: 0 | F3: =ROUND(E3,2) -> 0 | G3: =F3/D3 -> 0 | H3: =I3-#REF! ->  | I3: =#REF!/D3 ->  | J3: =IF(I3>=0.005,I3,IF(#REF!=0,I3,"<1%")) ->  | K3: 0 | L3: =ROUND(K3,2) -> 0 | M3: =L3-F3 -> 0 | N3: 0 | O3: =IF(N3>=0.005,N3,IF(K3=0,N3,"<1%")) -> 0 | P3: =1-N3 -> 1 | R3: 0 | S3: 0.003904650614 | T3: =S3/C3 -> 0.0003476981847 | U3: =IF(T3>=0.005,T3,IF(S3=0,T3,"<1%")) -> <1% | V3: 0.004911140303 | W3: 8.962508359e-05 | X3: 0.0004373232683 | Y3: =IF(W3>=0.005,W3,IF(V3=0,W3,"<1%")) -> <1% | Z3: 0.03054583382 | AA3: =AB3-W3 -> 0.002630395737 | AB3: 0.002720020821 | AC3: =IF(AA3>=0.005,AA3,IF(Z3=0,AA3,"<1%")) -> <1%
A4: Land North of Linthouse Lane, south of the Dismantled Railway Line, west of Kitchen Lane and east of | B4: 138 | C4: 148 | D4: 148 | E4: 0 | F4: 0 | G4: 0 | H4: =I4-#REF! ->  | I4: =#REF!/D4 ->  | J4: =IF(I4>=0.005,I4,IF(#REF!=0,I4,"<1%")) ->  | K4: 0 | L4: 0 | M4: 0 | N4: 0 | O4: 0 | P4: 1 | R4: 0 | S4: 0.334964865 | T4: 0.002263276115 | U4: <1% | V4: 0.4213076277 | W4: 0.0005833970452 | X4: 0.00284667316 | Y4: <1% | Z4: 0.6085847253 | AA4: 0.00352866191 | AB4: 0.004112058955 | AC4: <1% | AD4: 0.379951657 | AE4: =AD4/C4 -> 0.002567240926 | AF4: 0.464549082 | AG4: =AF4/C4 -> 0.003138845149 | AH4: =AG4-AE4 -> 0.0005716042229
A5: Land at Perton Road, Perton | B5: 192 | C5: 2.4 | D5: 2.4 | E5: 0 | F5: 0 | G5: 0 | H5: =I5-#REF! ->  | I5: =#REF!/D5 ->  | J5: =IF(I5>=0.005,I5,IF(#REF!=0,I5,"<1%")) ->  | K5: 0 | L5: 0 | M5: 0 | N5: 0 | O5: 0 | P5: 1 | R5: 0 | S5: 0 | T5: 0 | U5: 0 | V5: 0 | W5: 0 | X5: 0 | Y5: 0 | Z5: 0 | AA5: 0 | AB5: 0 | AC5: 0 | AD5: 0.03145883942 | AE5: =AD5/C5 -> 0.01310784976 | AF5: 0.02896128893 | AG5: =AF5/C5 -> 0.01206720372 | AH5: =AG5-AE5 -> -0.001040646038
A6: Dadford’s Bridge Industrial Estate, Plant Street Wordsley | B6: 187 | C6: 0.46 | D6: 0.46 | E6: 0 | F6: 0 | G6: 0 | H6: =I6-#REF! ->  | I6: =#REF!/D6 ->  | J6: =IF(I6>=0.005,I6,IF(#REF!=0,I6,"<1%")) ->  | K6: 0 | L6: 0 | M6: 0 | N6: 0 | O6: 0 | P6: 1 | R6: 0 | S6: 0 | T6: 0 | U6: 0 | V6: 0 | W6: 0 | X6: 0 | Y6: 0 | Z6: 0.01564299208 | AA6: 0.03400650453 | AB6: 0.03400650453 | AC6: 0.03400650453
A7: Opposite One Hundred acre school, Aldridge Road, Walsall | B7: 185 | C7: 7.5 | D7: 7.5 | E7: 0 | F7: 0 | G7: 0 | H7: =I7-#REF! ->  | I7: =#REF!/D7 ->  | J7: =IF(I7>=0.005,I7,IF(#REF!=0,I7,"<1%")) ->  | K7: 0 | L7: 0 | M7: 0 | N7: 0 | O7: 0 | P7: 1 | R7: 0 | S7: 0.04599598697 | T7: 0.006132798263 | U7: 0.006132798263 | V7: 0.1461542245 | W7: 0.01335443167 | X7: 0.01948722994 | Y7: 0.01335443167 | Z7: 1.039237555 | AA7: 0.1252105756 | AB7: 0.1385650073 | AC7: 0.1252105756
A8: Merry Hill, Brierley Hill | B8: 184 | C8: 53.06 | D8: 53.06 | E8: 0 | F8: 0 | G8: 0 | H8: =I8-#REF! ->  | I8: =#REF!/D8 ->  | J8: =IF(I8>=0.005,I8,IF(#REF!=0,I8,"<1%")) ->  | K8: 0 | L8: 0 | M8: 0 | N8: 0 | O8: 0 | P8: 1 | R8: 0 | S8: 1.532374981 | T8: 0.02888004111 | U8: 0.02888004111 | V8: 5.077590642 | W8: 0.06681522165 | X8: 0.09569526276 | Y8: 0.06681522165 | Z8: 17.12227549 | AA8: 0.2558812632 | AB8: 0.3226964848 | AC8: 0.2558812632
A9: Merry Hill, Brierley Hill | B9: 184 | C9: 21.85 | D9: 21.85 | E9: 0 | F9: 0 | G9: 0 | H9: =I9-#REF! ->  | I9: =#REF!/D9 ->  | J9: =IF(I9>=0.005,I9,IF(#REF!=0,I9,"<1%")) ->  | K9: 0 | L9: 0 | M9: 0 | N9: 0 | O9: 0 | P9: 1 | R9: 0 | S9: 0.2948096733 | T9: 0.01349243356 | U9: 0.01349243356 | V9: 0.9755374718 | W9: 0.03115459032 | X9: 0.04464702388 | Y9: 0.03115459032 | Z9: 3.189368754 | AA9: 0.1148119431 | AB9: 0.1459665334 | AC9: 0.1148119431
A10: Land at Electrium Point, Forge Road, Willenhall, Walsall | B10: 183 | C10: 0.4 | D10: 0.4 | E10: 0 | F10: 0 | G10: 0 | H10: =I10-#REF! ->  | I10: =#REF!/D10 ->  | J10: =IF(I10>=0.005,I10,IF(#REF!=0,I10,"<1%")) ->  | K10: 0 | L10: 0 | M10: 0 | N10: 0 | O10: 0 | P10: 1 | R10: 0 | S10: 0.003741451614 | T10: 0.009353629034 | U10: 0.009353629034 | V10: 0.01054145161 | W10: 0.017 | X10: 0.02635362903 | Y10: 0.017 | Z10: 0.01676873768 | AA10: 0.02492184419 | AB10: 0.04192184419 | AC10: 0.02492184419
A11: Aldridge Wyevale Garden Centre, Chester Road, Aldridge, Walsall | B11: 182 | C11: 1.03 | D11: 1.03 | E11: 0 | F11: 0 | G11: 0 | H11: =I11-#REF! ->  | I11: =#REF!/D11 ->  | J11: =IF(I11>=0.005,I11,IF(#REF!=0,I11,"<1%")) ->  | K11: 0 | L11: 0 | M11: 0 | N11: 0 | O11: 0 | P11: 1 | R11: 0 | S11: 0 | T11: 0 | U11: 0 | V11: 0 | W11: 0 | X11: 0 | Y11: 0 | Z11: 0 | AA11: 0 | AB11: 0 | AC11: 0
A12: Land at Pennwood, Wolverhampton | B12: 180 | C12: 114.8 | D12: 114.8 | E12: 0 | F12: 0 | G12: 0 | H12: =I12-#REF! ->  | I12: =#REF!/D12 ->  | J12: =IF(I12>=0.005,I12,IF(#REF!=0,I12,"<1%")) ->  | K12: 0 | L12: 0 | M12: 0 | N12: 0 | O12: 0 | P12: 1 | R12: 0 | S12: 0.7554044674 | T12: 0.006580178288 | U12: 0.006580178288 | V12: 1.113407432 | W12: 0.003118492725 | X12: 0.009698671013 | Y12: <1% | Z12: 3.309351317 | AA12: 0.02570860934 | AB12: 0.02882710206 | AC12: 0.02570860934 | AD12: 4.402890042 | AE12: =AD12/C12 -> 0.03835270071 | AF12: 4.639257144 | AG12: =AF12/C12 -> 0.0404116476 | AH12: =AG12-AE12 -> 0.002058946883
A13: Turls Hill Drive | B13: 179 | C13: 0.82 | D13: 0.82 | E13: 0 | F13: 0 | G13: 0 | H13: =I13-#REF! ->  | I13: =#REF!/D13 ->  | J13: =IF(I13>=0.005,I13,IF(#REF!=0,I13,"<1%")) ->  | K13: 0 | L13: 0 | M13: 0 | N13: 0 | O13: 0 | P13: 1 | R13: 0 | S13: 0 | T13: 0 | U13: 0 | V13: 0 | W13: 0 | X13: 0 | Y13: 0 | Z13: 0 | AA13: 0 | AB13: 0 | AC13: 0
A14: Land west of foxcote farm, Oldnall Lane, Wollescote, Stourbridge | B14: 178 | C14: 6.87 | D14: 6.87 | E14: 0 | F14: 0 | G14: 0 | H14: =I14-#REF! ->  | I14: =#REF!/D14 ->  | J14: =IF(I14>=0.005,I14,IF(#REF!=0,I14,"<1%")) ->  | K14: 0 | L14: 0 | M14: 0 | N14: 0 | O14: 0 | P14: 1 | R14: 0 | S14: 0.009586542193 | T14: 0.001395420989 | U14: <1% | V14: 0.03045723143 | W14: 0.003037946032 | X14: 0.004433367021 | Y14: <1% | Z14: 0.248108016 | AA14: 0.0330767579 | AB14: 0.03611470393 | AC14: 0.0330767579
A15: 263a Land adjacent to Sutton Road, Wzlsall | B15: 176 | C15: 11.92 | D15: 11.92 | E15: 0 | F15: 0 | G15: 0 | H15: =I15-#REF! ->  | I15: =#REF!/D15 ->  | J15: =IF(I15>=0.005,I15,IF(#REF!=0,I15,"<1%")) ->  | K15: 0 | L15: 0 | M15: 0 | N15: 0 | O15: 0 | P15: 1 | R15: 0 | S15: 0.09510009424 | T15: 0.007978195825 | U15: 0.007978195825 | V15: 0.2131262031 | W15: 0.009901519198 | X15: 0.01787971502 | Y15: 0.009901519198 | Z15: 0.9638771376 | AA15: 0.07096065678 | AB15: 0.08086217597 | AC15: 0.07096065678
A16: Land adjoining Bilston Street/Whites Drive, Dudley | B16: 175 | C16: 2.5 | D16: 2.5 | E16: 0 | F16: 0 | G16: 0 | H16: =I16-#REF! ->  | I16: =#REF!/D16 ->  | J16: =IF(I16>=0.005,I16,IF(#REF!=0,I16,"<1%")) ->  | K16: 0 | L16: 0 | M16: 0 | N16: 0 | O16: 0 | P16: 1 | R16: 0 | S16: 0.1086856172 | T16: 0.04347424688 | U16: 0.04347424688 | V16: 0.1646299615 | W16: 0.02237773771 | X16: 0.06585198459 | Y16: 0.02237773771 | Z16: 0.2608982112 | AA16: 0.08198154677 | AB16: 0.1043592845 | AC16: 0.08198154677
A17: Land at Little Aston Road, Aldridge. | B17: 173 | C17: 7.8 | D17: 7.8 | E17: 0 | F17: 0 | G17: 0 | H17: =I17-#REF! ->  | I17: =#REF!/D17 ->  | J17: =IF(I17>=0.005,I17,IF(#REF!=0,I17,"<1%")) ->  | K17: 0 | L17: 0 | M17: 0 | N17: 0 | O17: 0 | P17: 1 | R17: 0 | S17: 0 | T17: 0 | U17: 0 | V17: 0 | W17: 0 | X17: 0 | Y17: 0 | Z17: 0 | AA17: 0 | AB17: 0 | AC17: 0
A18: Land at Chester Road, Streetly, Walsall | B18: 172 | C18: 25.6 | D18: 25.6 | E18: 0 | F18: 0 | G18: 0 | H18: =I18-#REF! ->  | I18: =#REF!/D18 ->  | J18: =IF(I18>=0.005,I18,IF(#REF!=0,I18,"<1%")) ->  | K18: 0 | L18: 0 | M18: 0 | N18: 0 | O18: 0 | P18: 1 | R18: 0 | S18: 0.23811607 | T18: 0.009301408984 | U18: 0.009301408984 | V18: 1.289884422 | W18: 0.04108470127 | X18: 0.05038611025 | Y18: 0.04108470127 | Z18: 6.197561443 | AA18: 0.2010075426 | AB18: 0.2420922439 | AC18: 0.2010075426
A19: Swindon Road/Enville Road, Wall Heath, Kingswinford | B19: 171 | C19: 26 | D19: 26 | E19: 0 | F19: 0 | G19: 0 | H19: =I19-#REF! ->  | I19: =#REF!/D19 ->  | J19: =IF(I19>=0.005,I19,IF(#REF!=0,I19,"<1%")) ->  | K19: 0.01368397652 | L19: 0.01 | M19: 0.01 | N19: 0.0003846153846 | O19: <1% | P19: 0.9996153846 | R19: 0 | S19: 0.1447673877 | T19: 0.00556797645 | U19: 0.00556797645 | V19: 0.5751507472 | W19: 0.01655320613 | X19: 0.02212118258 | Y19: 0.01655320613 | Z19: 1.273796618 | AA19: 0.03243897149 | AB19: 0.04899217763 | AC19: 0.03243897149
A20: Watery Lane, Wordsley, Stourbridge | B20: 169 | C20: 0.9 | D20: 0.9 | E20: 0.044715265 | F20: 0.04 | G20: 0.04444444444 | H20: =I20-#REF! ->  | I20: =#REF!/D20 ->  | J20: =IF(I20>=0.005,I20,IF(#REF!=0,I20,"<1%")) ->  | K20: 0.04547915748 | L20: 0.05 | M20: 0.01 | N20: 0.05555555556 | O20: 0.05555555556 | P20: 0.9444444444 | R20: 0 | S20: 0.009709549453 | T20: 0.01078838828 | U20: 0.01078838828 | V20: 0.03478329534 | W20: 0.02785971765 | X20: 0.03864810593 | Y20: 0.02785971765 | Z20: 0.04674112023 | AA20: 0.02407486039 | AB20: 0.05193457804 | AC20: 0.02407486039
A21: Watery Lane, Wordsley, Stourbridge | B21: 169 | C21: 0.9 | D21: 0.9 | E21: 0.02330528 | F21: 0.02 | G21: 0.02222222222 | H21: =I21-#REF! ->  | I21: =#REF!/D21 ->  | J21: =IF(I21>=0.005,I21,IF(#REF!=0,I21,"<1%")) ->  | K21: 0.0242327879 | L21: 0.02 | M21: 0 | N21: 0.02222222222 | O21: 0.02222222222 | P21: 0.9777777778 | R21: 0 | S21: 0 | T21: 0 | U21: 0 | V21: 0.008997357525 | W21: 0.009997063917 | X21: 0.009997063917 | Y21: 0.009997063917 | Z21: 0.02382219541 | AA21: 0.01647204209 | AB21: 0.02646910601 | AC21: 0.01647204209
A22: Skip Lane Walsall | B22: 164 | C22: 5.85 | D22: 5.85 | E22: 0 | F22: 0 | G22: 0 | H22: =I22-#REF! ->  | I22: =#REF!/D22 ->  | J22: =IF(I22>=0.005,I22,IF(#REF!=0,I22,"<1%")) ->  | K22: 0 | L22: 0 | M22: 0 | N22: 0 | O22: 0 | P22: 1 | R22: 0 | S22: 0.08713160305 | T22: 0.01489429112 | U22: 0.01489429112 | V22: 0.1167990137 | W22: 0.00507135224 | X22: 0.01996564336 | Y22: 0.00507135224 | Z22: 0.2120875664 | AA22: 0.03118293261 | AB22: 0.03625428485 | AC22: 0.03118293261
A23: Skip Lane Walsall | B23: 163 | C23: 2.35 | D23: 2.35 | E23: 0 | F23: 0 | G23: 0 | H23: =I23-#REF! ->  | I23: =#REF!/D23 ->  | J23: =IF(I23>=0.005,I23,IF(#REF!=0,I23,"<1%")) ->  | K23: 0 | L23: 0 | M23: 0 | N23: 0 | O23: 0 | P23: 1 | R23: 0 | S23: 0.00931089798 | T23: 0.003962084247 | U23: <1% | V23: 0.01276087868 | W23: 0.001468076893 | X23: 0.00543016114 | Y23: <1% | Z23: 0.0616528795 | AA23: 0.02476719098 | AB23: 0.02623526787 | AC23: 0.02476719098
A24: Land north of Stonnall Road, Aldridge, Walsall | B24: 162 | C24: 13.9 | D24: 13.9 | E24: 0 | F24: 0 | G24: 0 | H24: =I24-#REF! ->  | I24: =#REF!/D24 ->  | J24: =IF(I24>=0.005,I24,IF(#REF!=0,I24,"<1%")) ->  | K24: 0 | L24: 0 | M24: 0 | N24: 0 | O24: 0 | P24: 1 | R24: 0 | S24: 0.1222060403 | T24: 0.008791801457 | U24: 0.008791801457 | V24: 0.1850025052 | W24: 0.004517731294 | X24: 0.01330953275 | Y24: <1% | Z24: 0.8814582893 | AA24: 0.05889653412 | AB24: 0.06341426542 | AC24: 0.05889653412
A25: Land at Yorks Bridge, Lichfield Road, Pelsall, Walsall | B25: 152 | C25: 21 | D25: 21 | E25: 0 | F25: 0 | G25: 0 | H25: =I25-#REF! ->  | I25: =#REF!/D25 ->  | J25: =IF(I25>=0.005,I25,IF(#REF!=0,I25,"<1%")) ->  | K25: 0 | L25: 0 | M25: 0 | N25: 0 | O25: 0 | P25: 1 | R25: 0 | S25: 0.2084023486 | T25: 0.009923921361 | U25: 0.009923921361 | V25: 0.3893350748 | W25: 0.008615844104 | X25: 0.01853976546 | Y25: 0.008615844104 | Z25: 1.077777355 | AA25: 0.0427068871 | AB25: 0.0513227312 | AC25: 0.0427068871
A26: Former Goodyear Factory, Bushbury Lane/Stafford Road, Wolverhampton | B26: 151 | C26: 7.87 | D26: 7.87 | E26: 0 | F26: 0 | G26: 0 | H26: =I26-#REF! ->  | I26: =#REF!/D26 ->  | J26: =IF(I26>=0.005,I26,IF(#REF!=0,I26,"<1%")) ->  | K26: 0 | L26: 0 | M26: 0 | N26: 0 | O26: 0 | P26: 1 | R26: 0 | S26: 0.16 | T26: 0.02033036849 | U26: 0.02033036849 | V26: 0.4300044128 | W26: 0.03430805754 | X26: 0.05463842602 | Y26: 0.03430805754 | Z26: 1.121124795 | AA26: 0.1081474437 | AB26: 0.1424555013 | AC26: 0.1081474437 | AD26: 1.63517576 | AE26: 0.2077732859 | AF26: 1.890870019 | AG26: 0.2402630266 | AH26: 0.03248974065
A27: Land north of Mucklow Hill, Coombswood, Dudley | B27: 150 | C27: 35.2 | D27: 35.2 | E27: 0 | F27: 0 | G27: 0 | H27: =I27-#REF! ->  | I27: =#REF!/D27 ->  | J27: =IF(I27>=0.005,I27,IF(#REF!=0,I27,"<1%")) ->  | K27: 0 | L27: 0 | M27: 0 | N27: 0 | O27: 0 | P27: 1 | R27: 0 | S27: 0.4941863923 | T27: 0.01403938614 | U27: 0.01403938614 | V27: 0.7934225263 | W27: 0.008501026534 | X27: 0.02254041268 | Y27: 0.008501026534 | Z27: 3.178514189 | AA27: 0.08179767201 | AB27: 0.09029869855 | AC27: 0.08179767201
A28: Land at Birchley Island, Junction 2 of M5, Oldbury, Sandwell | B28: 149 | C28: 1 | D28: 1 | E28: 0 | F28: 0 | G28: 0 | H28: =I28-#REF! ->  | I28: =#REF!/D28 ->  | J28: =IF(I28>=0.005,I28,IF(#REF!=0,I28,"<1%")) ->  | K28: 0 | L28: 0 | M28: 0 | N28: 0 | O28: 0 | P28: 1 | R28: 0 | S28: 0 | T28: 0 | U28: 0 | V28: 0.01535786349 | W28: 0.01535786349 | X28: 0.01535786349 | Y28: 0.01535786349 | Z28: 0.1272061262 | AA28: 0.1118482628 | AB28: 0.1272061262 | AC28: 0.1118482628
A29: Land at King Hays Farm, Off Walsall Wood Road, Walsall | B29: 148 | C29: 8.5 | D29: 8.5 | E29: 0 | F29: 0 | G29: 0 | H29: =I29-#REF! ->  | I29: =#REF!/D29 ->  | J29: =IF(I29>=0.005,I29,IF(#REF!=0,I29,"<1%")) ->  | K29: 0 | L29: 0 | M29: 0 | N29: 0 | O29: 0 | P29: 1 | R29: 0 | S29: 0.1941886905 | T29: 0.02284572829 | U29: 0.02284572829 | V29: 0.484472613 | W29: 0.03415104971 | X29: 0.056996778 | Y29: 0.03415104971 | Z29: 2.52607999 | AA29: 0.2630348314 | AB29: 0.2971858811 | AC29: 0.2630348314
A30: Land Off Viewfield Crescent, Dudley | B30: 147 | C30: 1.56 | D30: 1.56 | E30: 0 | F30: 0 | G30: 0 | H30: =I30-#REF! ->  | I30: =#REF!/D30 ->  | J30: =IF(I30>=0.005,I30,IF(#REF!=0,I30,"<1%")) ->  | K30: 0 | L30: 0 | M30: 0 | N30: 0 | O30: 0 | P30: 1 | R30: 0 | S30: 0 | T30: 0 | U30: 0 | V30: 0 | W30: 0 | X30: 0 | Y30: 0 | Z30: 0.007926224611 | AA30: 0.005080913212 | AB30: 0.005080913212 | AC30: 0.005080913212
A31: Home Farm, Sandhills, Walsall Wood, Walsall, West Midlands | B31: 131 | C31: 84.55 | D31: 84.55 | E31: 0 | F31: 0 | G31: 0 | H31: =I31-#REF! ->  | I31: =#REF!/D31 ->  | J31: =IF(I31>=0.005,I31,IF(#REF!=0,I31,"<1%")) ->  | K31: 0 | L31: 0 | M31: 0 | N31: 0 | O31: 0 | P31: 1 | R31: 0 | S31: 1.988549499 | T31: 0.02351921348 | U31: 0.02351921348 | V31: 4.911061655 | W31: 0.03456548972 | X31: 0.0580847032 | Y31: 0.03456548972 | Z31: 21.00424323 | AA31: 0.2138584397 | AB31: 0.2484239294 | AC31: 0.2138584397
A32: Land east of Ounty John Lane, Pedmore, Stourbridge | B32: 137 | C32: 1.2 | D32: 1.2 | E32: 0 | F32: 0 | G32: 0 | H32: =I32-#REF! ->  | I32: =#REF!/D32 ->  | J32: =IF(I32>=0.005,I32,IF(#REF!=0,I32,"<1%")) ->  | K32: 0 | L32: 0 | M32: 0 | N32: 0 | O32: 0 | P32: 1 | R32: 0 | S32: 0 | T32: 0 | U32: 0 | V32: 0 | W32: 0 | X32: 0 | Y32: 0 | Z32: 0 | AA32: 0 | AB32: 0 | AC32: 0
A33: Darlaston Road, Willenhall | B33: 135 | C33: 1.31 | D33: 1.31 | E33: 0.452347533 | F33: 0.45 | G33: 0.3435114504 | H33: =I33-#REF! ->  | I33: =#REF!/D33 ->  | J33: =IF(I33>=0.005,I33,IF(#REF!=0,I33,"<1%")) ->  | K33: 0.8587780682 | L33: 0.86 | M33: 0.41 | N33: 0.6564885496 | O33: 0.6564885496 | P33: 0.3435114504 | R33: 0 | S33: 0.1555862575 | T33: 0.1187681355 | U33: 0.1187681355 | V33: 0.2775222459 | W33: 0.09308090718 | X33: 0.2118490427 | Y33: 0.09308090718 | Z33: 0.7454935713 | AA33: 0.4759981549 | AB33: 0.5690790621 | AC33: 0.4759981549
A34: Former Junction Works, Cemetery Road, Darlaston, Walsall | B34: 134 | C34: 1.31 | D34: 1.31 | E34: 0.654793088 | F34: 0.65 | G34: 0.4961832061 | H34: =I34-#REF! ->  | I34: =#REF!/D34 ->  | J34: =IF(I34>=0.005,I34,IF(#REF!=0,I34,"<1%")) ->  | K34: 0.6815703497 | L34: 0.68 | M34: 0.03 | N34: =L34/D34 -> 0.5190839695 | O34: 0.5190839695 | P34: 0.4809160305 | R34: =Q34/C34 -> 0 | S34: 0 | T34: 0 | U34: 0 | V34: 0 | W34: 0 | X34: =V34/C34 -> 0 | Y34: 0 | Z34: 0.1562785468 | AA34: 0.1192966006 | AB34: =Z34/C34 -> 0.1192966006 | AC34: 0.1192966006
A35: Former Goscote Lane Copper Works, Goscote Lane, Walsall | B35: 133 | C35: 8.92 | D35: 8.92 | E35: 0 | F35: 0 | G35: 0 | H35: =I35-#REF! ->  | I35: =#REF!/D35 ->  | J35: =IF(I35>=0.005,I35,IF(#REF!=0,I35,"<1%")) ->  | K35: 0 | L35: 0 | M35: 0 | N35: 0 | O35: 0 | P35: 1 | R35: 0 | S35: 0.03314340439 | T35: 0.003715628295 | U35: <1% | V35: 0.1005595944 | W35: 0.00755786883 | X35: 0.01127349712 | Y35: 0.00755786883 | Z35: 0.4514385059 | AA35: 0.04305182914 | AB35: 0.05060969797 | AC35: 0.04305182914
A36: Former Deeling Castings, Leamore Lane, Bloxwich, Walsall | B36: 132 | C36: 2.54 | D36: 2.54 | E36: 0 | F36: 0 | G36: 0 | H36: =I36-#REF! ->  | I36: =#REF!/D36 ->  | J36: =IF(I36>=0.005,I36,IF(#REF!=0,I36,"<1%")) ->  | K36: 0 | L36: 0 | M36: 0 | N36: 0 | O36: 0 | P36: 1 | R36: 0 | S36: 0.0179139837 | T36: 0.007052749488 | U36: 0.007052749488 | V36: 0.0460251496 | W36: 0.01106738815 | X36: 0.01812013764 | Y36: 0.01106738815 | Z36: 0.2172197907 | AA36: 0.07445221449 | AB36: 0.08551960263 | AC36: 0.07445221449
A37: Brownhills Business Park, Lindon Road, Walsall | B37: 126 | C37: 2.59 | D37: 2.59 | E37: 0 | F37: 0 | G37: 0 | H37: =I37-#REF! ->  | I37: =#REF!/D37 ->  | J37: =IF(I37>=0.005,I37,IF(#REF!=0,I37,"<1%")) ->  | K37: 0 | L37: 0 | M37: 0 | N37: 0 | O37: 0 | P37: 1 | R37: 0 | S37: 0.003059896344 | T37: 0.00118142716 | U37: <1% | V37: 0.08020091249 | W37: 0.02978417612 | X37: 0.03096560328 | Y37: 0.02978417612 | Z37: 0.238540862 | AA37: 0.06231654281 | AB37: 0.09210071893 | AC37: 0.06231654281
A38: Land at Stencils Farm, Aldridge Road (A454), Walsall | B38: 125 | C38: 37 | D38: 37 | E38: 0 | F38: 0 | G38: 0 | H38: =I38-#REF! ->  | I38: =#REF!/D38 ->  | J38: =IF(I38>=0.005,I38,IF(#REF!=0,I38,"<1%")) ->  | K38: 0 | L38: 0 | M38: 0 | N38: 0 | O38: 0 | P38: 1 | R38: 0 | S38: 0.3363732946 | T38: 0.009091170123 | U38: 0.009091170123 | V38: 0.5778116851 | W38: 0.006525361906 | X38: 0.01561653203 | Y38: 0.006525361906 | Z38: 2.367293249 | AA38: 0.05745553671 | AB38: 0.06398089862 | AC38: 0.05745553671
A39: Land at Coneygre, Newcomen Drive, Sandwell | B39: 124 | C39: 9.16 | D39: 9.16 | E39: 0 | F39: 0 | G39: 0 | H39: =I39-#REF! ->  | I39: =#REF!/D39 ->  | J39: =IF(I39>=0.005,I39,IF(#REF!=0,I39,"<1%")) ->  | K39: 0 | L39: 0 | M39: 0 | N39: 0 | O39: 0 | P39: 1 | R39: 0 | S39: 0.09359619316 | T39: 0.01021792502 | U39: 0.01021792502 | V39: 0.1987191221 | W39: 0.01147630229 | X39: 0.02169422731 | Y39: 0.01147630229 | Z39: 0.6729557426 | AA39: 0.06199048184 | AB39: 0.07346678413 | AC39: 0.06199048184
A40: Land off Heath Road, Darlaston, Walsall | B40: 120 | C40: 0.13 | D40: 0.13 | E40: 0 | F40: 0 | G40: 0 | H40: =I40-#REF! ->  | I40: =#REF!/D40 ->  | J40: =IF(I40>=0.005,I40,IF(#REF!=0,I40,"<1%")) ->  | K40: 0 | L40: 0 | M40: 0 | N40: 0 | O40: 0 | P40: 1 | R40: 0 | S40: 0 | T40: 0 | U40: 0 | V40: 0.01512847291 | W40: 0.1163728685 | X40: 0.1163728685 | Y40: 0.1163728685 | Z40: 0.03827821856 | AA40: 0.1780749666 | AB40: 0.2944478351 | AC40: 0.1780749666
A41: Land at Bosty Lane, Aldridge, Walsall. | B41: 118 | C41: 37 | D41: 37 | E41: 0 | F41: 0 | G41: 0 | H41: =I41-#REF! ->  | I41: =#REF!/D41 ->  | J41: =IF(I41>=0.005,I41,IF(#REF!=0,I41,"<1%")) ->  | K41: 0 | L41: 0 | M41: 0 | N41: 0 | O41: 0 | P41: 1 | R41: 0 | S41: 0.5105367045 | T41: 0.01379828931 | U41: 0.01379828931 | V41: 0.7963560953 | W41: 0.007724848399 | X41: 0.02152313771 | Y41: 0.007724848399 | Z41: 1.89354766 | AA41: 0.04345211538 | AB41: 0.05117696378 | AC41: 0.04345211538
A42: Columba Park, Land at Queslett Road/ Aldridge Road, Walsall | B42: 116 | C42: 82 | D42: 82 | E42: 0 | F42: 0 | G42: 0 | H42: =I42-#REF! ->  | I42: =#REF!/D42 ->  | J42: =IF(I42>=0.005,I42,IF(#REF!=0,I42,"<1%")) ->  | K42: 0 | L42: 0 | M42: 0 | N42: 0 | O42: 0 | P42: 1 | R42: 0 | S42: 0.07889195497 | T42: 0.0009620970118 | U42: <1% | V42: 0.2152865796 | W42: 0.001663349081 | X42: 0.002625446093 | Y42: <1% | Z42: 2.191311349 | AA42: 0.02505996005 | AB42: 0.02672330913 | AC42: 0.02505996005
A43: Land north of Park Hall Road, Walsall | B43: 129 | C43: 16 | D43: 16 | E43: 0 | F43: 0 | G43: 0 | H43: =I43-#REF! ->  | I43: =#REF!/D43 ->  | J43: =IF(I43>=0.005,I43,IF(#REF!=0,I43,"<1%")) ->  | K43: 0 | L43: 0 | M43: 0 | N43: 0 | O43: 0 | P43: 1 | R43: 0 | S43: 0.04876309083 | T43: 0.003047693177 | U43: <1% | V43: 0.05864420619 | W43: 0.00061756971 | X43: 0.003665262887 | Y43: <1% | Z43: 0.2105382746 | AA43: 0.01254107245 | AB43: 0.01315864216 | AC43: 0.01254107245
A44: Land adjacent to Barr Common Road, Aldridge | B44: 208 | C44: 2.16 | D44: 2.16 | E44: 0 | F44: 0 | G44: 0 | H44: =I44-#REF! ->  | I44: =#REF!/D44 ->  | J44: =IF(I44>=0.005,I44,IF(#REF!=0,I44,"<1%")) ->  | K44: 0 | L44: 0 | M44: 0 | N44: 0 | O44: 0 | P44: 1 | R44: 0 | S44: 0.06667501878 | T44: 0.03086806425 | U44: 0.03086806425 | V44: 0.1161407695 | W44: 0.02290081051 | X44: 0.05376887476 | Y44: 0.02290081051 | Z44: 0.6101119731 | AA44: 0.2595584363 | AB44: 0.2824592468 | AC44: 0.2595584363
A45: Land at Heathfield Lane West, Darlaston | B45: 130 | C45: 7.4 | D45: 7.4 | E45: 0.091037996 | F45: 0.09 | G45: 0.01216216216 | H45: =I45-#REF! ->  | I45: =#REF!/D45 ->  | J45: =IF(I45>=0.005,I45,IF(#REF!=0,I45,"<1%")) ->  | K45: 0.8855775921 | L45: 0.89 | M45: 0.8 | N45: 0.1202702703 | O45: 0.1202702703 | P45: 0.8797297297 | R45: 0 | S45: 0 | T45: 0 | U45: 0 | V45: 0.04149999867 | W45: 0.005608107928 | X45: 0.005608107928 | Y45: 0.005608107928 | Z45: 0.4151848985 | AA45: 0.05049795944 | AB45: 0.05610606737 | AC45: 0.05049795944
A46: Racecourse Lane, Stourbridge | B46: 114 | C46: 38 | D46: 38 | E46: 0 | F46: 0 | G46: 0 | H46: =I46-#REF! ->  | I46: =#REF!/D46 ->  | J46: =IF(I46>=0.005,I46,IF(#REF!=0,I46,"<1%")) ->  | K46: 0 | L46: 0 | M46: 0 | N46: 0 | O46: 0 | P46: 1 | R46: 0 | S46: 0.426456848 | T46: 0.01122254863 | U46: 0.01122254863 | V46: 0.7952813596 | W46: 0.009705908201 | X46: 0.02092845683 | Y46: 0.009705908201 | Z46: 1.917976772 | AA46: 0.04076716476 | AB46: 0.05047307296 | AC46: 0.04076716476
A47: Racecourse Lane, Stourbridge | B47: 114 | C47: 18.47 | D47: 18.47 | E47: 0 | F47: 0 | G47: 0 | H47: =I47-#REF! ->  | I47: =#REF!/D47 ->  | J47: =IF(I47>=0.005,I47,IF(#REF!=0,I47,"<1%")) ->  | K47: 0 | L47: 0 | M47: 0 | N47: 0 | O47: 0 | P47: 1 | R47: 0 | S47: 0.4752531717 | T47: 0.02573108672 | U47: 0.02573108672 | V47: 0.8657468552 | W47: 0.02114205108 | X47: 0.0468731378 | Y47: 0.02114205108 | Z47: 2.191252367 | AA47: 0.09749640952 | AB47: 0.1186384606 | AC47: 0.09749640952
A48: Racecourse Lane, Stourbridge | B48: 114 | C48: 167.46 | D48: 167.46 | E48: 0 | F48: 0 | G48: 0 | H48: =I48-#REF! ->  | I48: =#REF!/D48 ->  | J48: =IF(I48>=0.005,I48,IF(#REF!=0,I48,"<1%")) ->  | K48: 0 | L48: 0 | M48: 0 | N48: 0 | O48: 0 | P48: 1 | R48: 0 | S48: 0.1215588776 | T48: 0.0007258979909 | U48: <1% | V48: 0.2367027893 | W48: 0.0006875905396 | X48: 0.001413488531 | Y48: <1% | Z48: 1.344970543 | AA48: 0.007344002336 | AB48: 0.008031592876 | AC48: 0.007344002336
A49: Site B, Land off Worceter Lane, Stourbridge | B49: 50 | C49: 2.29 | D49: 2.29 | E49: 0 | F49: 0 | G49: 0 | H49: =I49-#REF! ->  | I49: =#REF!/D49 ->  | J49: =IF(I49>=0.005,I49,IF(#REF!=0,I49,"<1%")) ->  | K49: 0 | L49: 0 | M49: 0 | N49: 0 | O49: 0 | P49: 1 | R49: 0 | S49: 0 | T49: 0 | U49: 0 | V49: 0 | W49: 0 | X49: 0 | Y49: 0 | Z49: 0 | AA49: 0 | AB49: 0 | AC49: 0
A50: Site A, Land off Worceter Lane, Stourbridge | B50: 50 | C50: 0.61 | D50: 0.61 | E50: 0 | F50: 0 | G50: 0 | H50: =I50-#REF! ->  | I50: =#REF!/D50 ->  | J50: =IF(I50>=0.005,I50,IF(#REF!=0,I50,"<1%")) ->  | K50: 0 | L50: 0 | M50: 0 | N50: 0 | O50: 0 | P50: 1 | R50: 0 | S50: 0.04528033589 | T50: 0.07423005883 | U50: 0.07423005883 | V50: 0.07003147696 | W50: 0.0405756411 | X50: 0.1148056999 | Y50: 0.0405756411 | Z50: 0.1138093423 | AA50: 0.1459970512 | AB50: 0.1865726923 | AC50: 0.1459970512
A51: Land at Codsall Road, Wolverhampton | B51: 64 | C51: 0.8 | D51: 0.8 | E51: 0 | F51: 0 | G51: 0 | H51: =I51-#REF! ->  | I51: =#REF!/D51 ->  | J51: =IF(I51>=0.005,I51,IF(#REF!=0,I51,"<1%")) ->  | K51: 0 | L51: 0 | M51: 0 | N51: 0 | O51: 0 | P51: 1 | R51: 0 | S51: 0 | T51: 0 | U51: 0 | V51: 0 | W51: 0 | X51: 0 | Y51: 0 | Z51: 0 | AA51: 0 | AB51: 0 | AC51: 0 | AD51: 0.06475973773 | AE51: 0.08094967216 | AF51: 0.088420102 | AG51: 0.1105251275 | AH51: 0.02957545534
A52: Wildside Activity Centre, Horden Road, Wolverhampton | B52: 23 | C52: 0.18 | D52: 0.18 | E52: 0.014304799 | F52: 0.01 | G52: 0.05555555556 | H52: =I52-#REF! ->  | I52: =#REF!/D52 ->  | J52: =IF(I52>=0.005,I52,IF(#REF!=0,I52,"<1%")) ->  | K52: 0.1300889544 | L52: 0.13 | M52: 0.12 | N52: 0.7222222222 | O52: 0.7222222222 | P52: 0.2777777778 | R52: 0 | S52: 0 | T52: 0 | U52: 0 | V52: 0 | W52: 0 | X52: 0 | Y52: 0 | Z52: 0 | AA52: 0 | AB52: 0 | AC52: 0 | AD52: 0.0983540825 | AE52: 0.5464115694 | AF52: 0.108958541 | AG52: 0.6053252278 | AH52: 0.05891365835
A53: City of Wolverhampton College and associated alnd to the rear, Padget Road, Wolverhampton | B53: 61 | C53: 7.4 | D53: 7.4 | E53: 0 | F53: 0 | G53: 0 | H53: =I53-#REF! ->  | I53: =#REF!/D53 ->  | J53: =IF(I53>=0.005,I53,IF(#REF!=0,I53,"<1%")) ->  | K53: 0 | L53: 0 | M53: 0 | N53: 0 | O53: 0 | P53: 1 | R53: 0 | S53: 0 | T53: 0 | U53: 0 | V53: 0 | W53: 0 | X53: 0 | Y53: 0 | Z53: 0.01793714312 | AA53: 0.00242393826 | AB53: 0.00242393826 | AC53: <1% | AD53: 0.02612733886 | AE53: 0.003530721468 | AF53: 0.028629886 | AG53: 0.003868903514 | AH53: 0.0003381820454
A54: Land at Yieldsfarm, Stafford Road, north of Bloxwich | B54: 106 | C54: 122 | D54: 122 | E54: 0 | F54: 0 | G54: 0 | H54: =I54-#REF! ->  | I54: =#REF!/D54 ->  | J54: =IF(I54>=0.005,I54,IF(#REF!=0,I54,"<1%")) ->  | K54: 0 | L54: 0 | M54: 0 | N54: 0 | O54: 0 | P54: 1 | R54: 0 | S54: 1.036801905 | T54: 0.008498376268 | U54: 0.008498376268 | V54: 1.597678857 | W54: 0.004597352066 | X54: 0.01309572833 | Y54: <1% | Z54: 3.826818294 | AA54: 0.026770011 | AB54: 0.03136736306 | AC54: 0.026770011
A55: Land at former Caparo Works, Walsall | B55: 105 | C55: 6.67 | D55: 6.67 | E55: 0 | F55: 0 | G55: 0 | H55: =I55-#REF! ->  | I55: =#REF!/D55 ->  | J55: =IF(I55>=0.005,I55,IF(#REF!=0,I55,"<1%")) ->  | K55: 0 | L55: 0 | M55: 0 | N55: 0 | O55: 0 | P55: 1 | R55: 0 | S55: 0.003313197206 | T55: 0.0004967312153 | U55: <1% | V55: 0.01347476294 | W55: 0.001523473123 | X55: 0.002020204338 | Y55: <1% | Z55: 0.08445413782 | AA55: 0.01113831665 | AB55: 0.01266178978 | AC55: 0.01113831665
A56: Land at Former Goscote Hospital, Goscote Lane, Walsall | B56: 70 | C56: 2 | D56: 2 | E56: 0 | F56: 0 | G56: 0 | H56: =I56-#REF! ->  | I56: =#REF!/D56 ->  | J56: =IF(I56>=0.005,I56,IF(#REF!=0,I56,"<1%")) ->  | K56: 0 | L56: 0 | M56: 0 | N56: 0 | O56: 0 | P56: 1 | R56: 0 | S56: 0.1356 | T56: 0.0678 | U56: 0.0678 | V56: 0.1656 | W56: 0.015 | X56: 0.0828 | Y56: 0.015 | Z56: 0.3573603442 | AA56: 0.1636801721 | AB56: 0.1786801721 | AC56: 0.1636801721
A57: Land to the East and West of Chester Road, Hardwick, Walsall | B57: 107 | C57: 23.6 | D57: 23.6 | E57: 0 | F57: 0 | G57: 0 | H57: =I57-#REF! ->  | I57: =#REF!/D57 ->  | J57: =IF(I57>=0.005,I57,IF(#REF!=0,I57,"<1%")) ->  | K57: 0 | L57: 0 | M57: 0 | N57: 0 | O57: 0 | P57: 1 | R57: 0 | S57: 0.1317114139 | T57: 0.005580992116 | U57: 0.005580992116 | V57: 0.2782271422 | W57: 0.006208293572 | X57: 0.01178928569 | Y57: 0.006208293572 | Z57: 0.5587859437 | AA57: 0.01746907692 | AB57: 0.02367737049 | AC57: 0.01746907692
A58: Land to the East and West of Chester Road, Hardwick, Walsall | B58: 107 | C58: 23.6 | D58: 23.6 | E58: 0 | F58: 0 | G58: 0 | H58: =I58-#REF! ->  | I58: =#REF!/D58 ->  | J58: =IF(I58>=0.005,I58,IF(#REF!=0,I58,"<1%")) ->  | K58: 0 | L58: 0 | M58: 0 | N58: 0 | O58: 0 | P58: 1 | R58: 0 | S58: 0.2448436982 | T58: 0.01037473297 | U58: 0.01037473297 | V58: 1.096640734 | W58: 0.03609309475 | X58: 0.04646782772 | Y58: 0.03609309475 | Z58: 2.995136262 | AA58: 0.09081945871 | AB58: 0.1269125535 | AC58: 0.09081945871
A59: Land on the East side of Chester Road, Aldridge | B59: 46 | C59: 4.99 | D59: 4.99 | E59: 0 | F59: 0 | G59: 0 | H59: =I59-#REF! ->  | I59: =#REF!/D59 ->  | J59: =IF(I59>=0.005,I59,IF(#REF!=0,I59,"<1%")) ->  | K59: 0 | L59: 0 | M59: 0 | N59: 0 | O59: 0 | P59: 1 | R59: 0 | S59: 0 | T59: 0 | U59: 0 | V59: 0 | W59: 0 | X59: 0 | Y59: 0 | Z59: 0.171325956 | AA59: 0.03433385891 | AB59: 0.03433385891 | AC59: 0.03433385891
A60: Land to the north of Lapal Lane South, Halesowen | B60: 67 | C60: 14.7 | D60: 14.7 | E60: 0 | F60: 0 | G60: 0 | H60: =I60-#REF! ->  | I60: =#REF!/D60 ->  | J60: =IF(I60>=0.005,I60,IF(#REF!=0,I60,"<1%")) ->  | K60: 0 | L60: 0 | M60: 0 | N60: 0 | O60: 0 | P60: 1 | R60: 0 | S60: 0.0500684499 | T60: 0.003406017 | U60: <1% | V60: 0.07580055641 | W60: 0.001750483436 | X60: 0.005156500436 | Y60: <1% | Z60: 0.4104607899 | AA60: 0.02617201928 | AB60: 0.02792250271 | AC60: 0.02617201928
A61: Lye Close Lane, Halesowen | B61: 39 | C61: 1.24 | D61: 1.24 | E61: 0 | F61: 0 | G61: 0 | H61: =I61-#REF! ->  | I61: =#REF!/D61 ->  | J61: =IF(I61>=0.005,I61,IF(#REF!=0,I61,"<1%")) ->  | K61: 0 | L61: 0 | M61: 0 | N61: 0 | O61: 0 | P61: 1 | R61: 0 | S61: 0 | T61: 0 | U61: 0 | V61: 0 | W61: 0 | X61: 0 | Y61: 0 | Z61: 0 | AA61: 0 | AB61: 0 | AC61: 0
A62: Holbeache Lane/Wolverhampton Road, Kingswinford | B62: 111 | C62: 14.8 | D62: 14.8 | E62: 0 | F62: 0 | G62: 0 | H62: =I62-#REF! ->  | I62: =#REF!/D62 ->  | J62: =IF(I62>=0.005,I62,IF(#REF!=0,I62,"<1%")) ->  | K62: 0 | L62: 0 | M62: 0 | N62: 0 | O62: 0 | P62: 1 | R62: 0 | S62: 0.0588 | T62: 0.003972972973 | U62: <1% | V62: 0.1972 | W62: 0.009351351351 | X62: 0.01332432432 | Y62: 0.009351351351 | Z62: 0.6100526948 | AA62: 0.03186842533 | AB62: 0.04121977668 | AC62: 0.03186842533
A63: Land south west side of Lapel lane South, Halesowen | B63: 56 | C63: 0.71 | D63: 0.71 | E63: 0 | F63: 0 | G63: 0 | H63: =I63-#REF! ->  | I63: =#REF!/D63 ->  | J63: =IF(I63>=0.005,I63,IF(#REF!=0,I63,"<1%")) ->  | K63: 0 | L63: 0 | M63: 0 | N63: 0 | O63: 0 | P63: 1 | R63: 0 | S63: 0.09317798964 | T63: 0.1312366051 | U63: 0.1312366051 | V63: 0.1851922296 | W63: 0.1295975211 | X63: 0.2608341262 | Y63: 0.1295975211 | Z63: 0.3362912917 | AA63: 0.3440521856 | AB63: 0.4736497067 | AC63: 0.3440521856
A64: Land at Highfields, Walsall Road, Walsall Wood | B64: 60 | C64: 4.1 | D64: 4.1 | E64: 0 | F64: 0 | G64: 0 | H64: =I64-#REF! ->  | I64: =#REF!/D64 ->  | J64: =IF(I64>=0.005,I64,IF(#REF!=0,I64,"<1%")) ->  | K64: 0 | L64: 0 | M64: 0 | N64: 0 | O64: 0 | P64: 1 | R64: 0 | S64: 0.05074750409 | T64: 0.01237744002 | U64: 0.01237744002 | V64: 0.1181090345 | W64: 0.01642964157 | X64: 0.02880708159 | Y64: 0.01642964157 | Z64: 0.473116532 | AA64: 0.09896463453 | AB64: 0.1153942761 | AC64: 0.09896463453
A65: Former MEB site, Bull Street | B65: 68 | C65: 2.06 | D65: 2.06 | E65: 0 | F65: 0 | G65: 0 | H65: =I65-#REF! ->  | I65: =#REF!/D65 ->  | J65: =IF(I65>=0.005,I65,IF(#REF!=0,I65,"<1%")) ->  | K65: 0 | L65: 0 | M65: 0 | N65: 0 | O65: 0 | P65: 1 | R65: 0 | S65: 0.02284403914 | T65: 0.01108933939 | U65: 0.01108933939 | V65: 0.03026762972 | W65: 0.003603684747 | X65: 0.01469302414 | Y65: <1% | Z65: 0.123366381 | AA65: 0.05628290799 | AB65: 0.05988659273 | AC65: 0.05628290799
A66: Land off 385 Penn Road, Wolverhampton | B66: 74 | C66: 2.8 | D66: 2.8 | E66: 0 | F66: 0 | G66: 0 | H66: =I66-#REF! ->  | I66: =#REF!/D66 ->  | J66: =IF(I66>=0.005,I66,IF(#REF!=0,I66,"<1%")) ->  | K66: 0 | L66: 0 | M66: 0 | N66: =L66/D66 -> 0 | O66: 0 | P66: =1-N66 -> 1 | R66: =Q66/C66 -> 0 | S66: 0 | T66: 0 | U66: 0 | V66: 0 | W66: =X66-T66 -> 0 | X66: =V66/C66 -> 0 | Y66: 0 | Z66: 0 | AA66: 0 | AB66: =Z66/C66 -> 0 | AC66: 0 | AD66: 0.2206445689 | AE66: 0.07880163175 | AF66: 0.02862988585 | AG66: 0.01022495923 | AH66: -0.06857667252
A67: Wightwick Mill Field, Land south of Bridgnorth Road, Compton, Wolverhampton | B67: 76 | C67: 2.7 | D67: =ROUND(C67,2) -> 2.7 | E67: 1.109027035 | F67: =ROUND(E67,2) -> 1.11 | G67: =F67/D67 -> 0.4111111111 | H67: =I67-#REF! ->  | I67: =#REF!/D67 ->  | J67: =IF(I67>=0.005,I67,IF(#REF!=0,I67,"<1%")) ->  | K67: 1.962072 | L67: =ROUND(K67,2) -> 1.96 | M67: =L67-F67 -> 0.85 | N67: 0.7259259259 | O67: =IF(N67>=0.005,N67,IF(K67=0,N67,"<1%")) -> 0.7259259259 | P67: 0.2740740741 | R67: 0 | S67: 0.3028771669 | T67: =S67/C67 -> 0.1121767285 | U67: =IF(T67>=0.005,T67,IF(S67=0,T67,"<1%")) -> 0.1121767285 | V67: 0.5491312698 | W67: 0.09120522331 | X67: 0.2033819518 | Y67: =IF(W67>=0.005,W67,IF(V67=0,W67,"<1%")) -> 0.09120522331 | Z67: 1.86989893 | AA67: =AB67-W67 -> 0.6013499358 | AB67: 0.6925551591 | AC67: =IF(AA67>=0.005,AA67,IF(Z67=0,AA67,"<1%")) -> 0.6013499358 | AD67: 1.88034591 | AE67: 0.696424411 | AF67: 0.3105945485 | AG67: 0.115035018 | AH67: -0.581389393
A68: Cookley Works, Leys Road, Brockmoor, Brierley Hill | B68: 66 | C68: 3 | D68: 3 | E68: 0 | F68: 0 | G68: 0 | H68: =I68-#REF! ->  | I68: =#REF!/D68 ->  | J68: =IF(I68>=0.005,I68,IF(#REF!=0,I68,"<1%")) ->  | K68: 0 | L68: 0 | M68: 0 | N68: 0 | O68: 0 | P68: 1 | R68: 0 | S68: 0 | T68: 0 | U68: 0 | V68: 0.002226991438 | W68: 0.0007423304792 | X68: 0.0007423304792 | Y68: <1% | Z68: 0.06436553867 | AA68: 0.02071284908 | AB68: 0.02145517956 | AC68: 0.02071284908
A69: Field at Woodsetton, Adj to Tipton Road/Setton Drive, Sedgley | B69: 57 | C69: 2 | D69: 2 | E69: 0 | F69: 0 | G69: 0 | H69: =I69-#REF! ->  | I69: =#REF!/D69 ->  | J69: =IF(I69>=0.005,I69,IF(#REF!=0,I69,"<1%")) ->  | K69: 0 | L69: 0 | M69: 0 | N69: 0 | O69: 0 | P69: 1 | R69: 0 | S69: 0 | T69: 0 | U69: 0 | V69: 0 | W69: 0 | X69: 0 | Y69: 0 | Z69: 0.01481361513 | AA69: 0.007406807567 | AB69: 0.007406807567 | AC69: 0.007406807567
A70: Land to rear of City of Wolverhampton College, Compton Park, Wolverhampton | B70: 59 | C70: 3.9 | D70: 3.9 | E70: 0 | F70: 0 | G70: 0 | H70: =I70-#REF! ->  | I70: =#REF!/D70 ->  | J70: =IF(I70>=0.005,I70,IF(#REF!=0,I70,"<1%")) ->  | K70: 0 | L70: 0 | M70: 0 | N70: 0 | O70: 0 | P70: 1 | R70: 0 | S70: 0.01097231702 | T70: 0.00281341462 | U70: <1% | V70: 0.01701365844 | W70: 0.001549061903 | X70: 0.004362476522 | Y70: <1% | Z70: 0.04195669641 | AA70: 0.009209065381 | AB70: 0.01075812728 | AC70: 0.009209065381 | AD70: 0.03162923576 | AE70: =AD70/C70 -> 0.008110060452 | AF70: 0.042816542 | AG70: =AF70/C70 -> 0.01097860051 | AH70: =AG70-AE70 -> 0.002868540061
A71: City of Wolverhampton College, Padget Road, Wolverhampton | B71: 58 | C71: 3.35 | D71: 3.35 | E71: 0 | F71: 0 | G71: 0 | H71: =I71-#REF! ->  | I71: =#REF!/D71 ->  | J71: =IF(I71>=0.005,I71,IF(#REF!=0,I71,"<1%")) ->  | K71: 0 | L71: 0 | M71: 0 | N71: 0 | O71: 0 | P71: 1 | R71: 0 | S71: 0 | T71: 0 | U71: 0 | V71: 0.0128 | W71: 0.003820895522 | X71: 0.003820895522 | Y71: <1% | Z71: 0.0472 | AA71: 0.01026865672 | AB71: 0.01408955224 | AC71: 0.01026865672 | AD71: 0.1948432763 | AE71: 0.05816217203 | AF71: 0.242082746 | AG71: 0.07226350627 | AH71: 0.01410133424
A72: land at Tanhouse Avenue, Great Barr | B72: 40 | C72: 2.51 | D72: 2.51 | E72: 0 | F72: 0 | G72: 0 | H72: =I72-#REF! ->  | I72: =#REF!/D72 ->  | J72: =IF(I72>=0.005,I72,IF(#REF!=0,I72,"<1%")) ->  | K72: 0 | L72: 0 | M72: 0 | N72: 0 | O72: 0 | P72: 1 | R72: 0 | S72: 0 | T72: 0 | U72: 0 | V72: 0.00287586 | W72: 0.001145760956 | X72: 0.001145760956 | Y72: <1% | Z72: 0.3671474944 | AA72: 0.1451281412 | AB72: 0.1462739022 | AC72: 0.1451281412
A73: Old Farm, Norton Road, Norton, Stourbridge | B73: 45 | C73: 1.04 | D73: 1.04 | E73: 0 | F73: 0 | G73: 0 | H73: =I73-#REF! ->  | I73: =#REF!/D73 ->  | J73: =IF(I73>=0.005,I73,IF(#REF!=0,I73,"<1%")) ->  | K73: 0 | L73: 0 | M73: 0 | N73: 0 | O73: 0 | P73: 1 | R73: 0 | S73: 0.0276 | T73: 0.02653846154 | U73: 0.02653846154 | V73: 0.04184165233 | W73: 0.01369389647 | X73: 0.04023235801 | Y73: 0.01369389647 | Z73: 0.09135625167 | AA73: 0.07414865321 | AB73: 0.08784254968 | AC73: 0.07414865321
A74: Clothier Street, Willenhall | B74: 18 | C74: 0.5 | D74: 0.5 | E74: 0 | F74: 0 | G74: 0 | H74: =I74-#REF! ->  | I74: =#REF!/D74 ->  | J74: =IF(I74>=0.005,I74,IF(#REF!=0,I74,"<1%")) ->  | K74: 0 | L74: 0 | M74: 0 | N74: 0 | O74: 0 | P74: 1 | R74: 0 | S74: 0 | T74: 0 | U74: 0 | V74: 0 | W74: 0 | X74: 0 | Y74: 0 | Z74: 0.02536430357 | AA74: 0.05072860715 | AB74: 0.05072860715 | AC74: 0.05072860715
A75: Ketley Quarry, Dudley Road, Kingswinford | B75: 24 | C75: 20.81 | D75: 20.81 | E75: 0 | F75: 0 | G75: 0 | H75: =I75-#REF! ->  | I75: =#REF!/D75 ->  | J75: =IF(I75>=0.005,I75,IF(#REF!=0,I75,"<1%")) ->  | K75: 0 | L75: 0 | M75: 0 | N75: 0 | O75: 0 | P75: 1 | R75: 0 | S75: 0.7924408601 | T75: 0.03807981067 | U75: 0.03807981067 | V75: 1.224626862 | W75: 0.02076818848 | X75: 0.05884799916 | Y75: 0.02076818848 | Z75: 2.456278169 | AA75: 0.0972653612 | AB75: 0.1180335497 | AC75: 0.0972653612
A76: Land north and South of Himley Road, Himley, Dudley | B76: 26 | C76: 8.02 | D76: 8.02 | E76: 0.358107226 | F76: 0.36 | G76: 0.04488778055 | H76: =I76-#REF! ->  | I76: =#REF!/D76 ->  | J76: =IF(I76>=0.005,I76,IF(#REF!=0,I76,"<1%")) ->  | K76: 0.5157129161 | L76: 0.52 | M76: 0.16 | N76: 0.06483790524 | O76: 0.06483790524 | P76: 0.9351620948 | R76: 0 | S76: 0.5630492536 | T76: 0.0702056426 | U76: 0.0702056426 | V76: 0.9963141785 | W76: 0.05402305797 | X76: 0.1242287006 | Y76: 0.05402305797 | Z76: 2.112953259 | AA76: 0.2094374482 | AB76: 0.2634605062 | AC76: 0.2094374482
A77: Land north and South of Himley Road, Himley, Dudley | B77: 26 | C77: 17.44 | D77: 17.44 | E77: 0.628260864 | F77: 0.63 | G77: 0.03612385321 | H77: =I77-#REF! ->  | I77: =#REF!/D77 ->  | J77: =IF(I77>=0.005,I77,IF(#REF!=0,I77,"<1%")) ->  | K77: 0.7992571062 | L77: 0.8 | M77: 0.17 | N77: 0.04587155963 | O77: 0.04587155963 | P77: 0.9541284404 | R77: 0 | S77: 1.070293071 | T77: 0.06137001556 | U77: 0.06137001556 | V77: 1.726875694 | W77: 0.03764808617 | X77: 0.09901810173 | Y77: 0.03764808617 | Z77: 3.197557436 | AA77: 0.1456980971 | AB77: 0.1833461833 | AC77: 0.1456980971
A78: Land at Wilderness Lane/Greenhill Gardens, Great Barr | B78: 44 | C78: 2.8 | D78: 2.8 | E78: 0 | F78: 0 | G78: 0 | H78: =I78-#REF! ->  | I78: =#REF!/D78 ->  | J78: =IF(I78>=0.005,I78,IF(#REF!=0,I78,"<1%")) ->  | K78: 0 | L78: 0 | M78: 0 | N78: 0 | O78: 0 | P78: 1 | R78: 0 | S78: 0.0108 | T78: 0.003857142857 | U78: <1% | V78: 0.02138788712 | W78: 0.003781388256 | X78: 0.007638531113 | Y78: <1% | Z78: 0.2657880654 | AA78: 0.09114292083 | AB78: 0.09492430909 | AC78: 0.09114292083
A79: Grassy Lane, Wolverhampton | B79: 47 | C79: 2.38 | D79: 2.38 | E79: 0 | F79: 0 | G79: 0 | H79: =I79-#REF! ->  | I79: =#REF!/D79 ->  | J79: =IF(I79>=0.005,I79,IF(#REF!=0,I79,"<1%")) ->  | K79: 0 | L79: 0 | M79: 0 | N79: 0 | O79: 0 | P79: 1 | R79: 0 | S79: 0.07662965746 | T79: 0.03219733507 | U79: 0.03219733507 | V79: 0.1817542634 | W79: 0.04417000249 | X79: 0.07636733756 | Y79: 0.04417000249 | Z79: 0.5687282045 | AA79: 0.194791428 | AB79: 0.2389614305 | AC79: 0.194791428 | AD79: 0.2859314251 | AE79: 0.1201392542 | AF79: 0.490630132 | AG79: 0.2061471143 | AH79: 0.08600786005
A80: Land north of Vicarage Road, Amblecote, Stourbridge | B80: 48 | C80: 5.72 | D80: 5.72 | E80: 0 | F80: 0 | G80: 0 | H80: =I80-#REF! ->  | I80: =#REF!/D80 ->  | J80: =IF(I80>=0.005,I80,IF(#REF!=0,I80,"<1%")) ->  | K80: 0 | L80: 0 | M80: 0 | N80: 0 | O80: 0 | P80: 1 | R80: 0 | S80: 0.1704 | T80: 0.02979020979 | U80: 0.02979020979 | V80: 0.208 | W80: 0.006573426573 | X80: 0.03636363636 | Y80: 0.006573426573 | Z80: 0.3686641328 | AA80: 0.05787834489 | AB80: 0.06445177146 | AC80: 0.05787834489
A81: 237 Watling Street, Brownhills, Walsall | B81: 49 | C81: 6 | D81: 6 | E81: 0 | F81: 0 | G81: 0 | H81: =I81-#REF! ->  | I81: =#REF!/D81 ->  | J81: =IF(I81>=0.005,I81,IF(#REF!=0,I81,"<1%")) ->  | K81: 0 | L81: 0 | M81: 0 | N81: 0 | O81: 0 | P81: 1 | R81: 0 | S81: 0 | T81: 0 | U81: 0 | V81: 0 | W81: 0 | X81: 0 | Y81: 0 | Z81: 0.11971303 | AA81: 0.01995217167 | AB81: 0.01995217167 | AC81: 0.01995217167
A82: Land rear of Greenhill Road, Halesowen | B82: 54 | C82: 1 | D82: 1 | E82: 0 | F82: 0 | G82: 0 | H82: =I82-#REF! ->  | I82: =#REF!/D82 ->  | J82: =IF(I82>=0.005,I82,IF(#REF!=0,I82,"<1%")) ->  | K82: 0 | L82: 0 | M82: 0 | N82: 0 | O82: 0 | P82: 1 | R82: 0 | S82: 0 | T82: 0 | U82: 0 | V82: 0.009381313953 | W82: 0.009381313953 | X82: 0.009381313953 | Y82: 0.009381313953 | Z82: 0.04895548775 | AA82: 0.0395741738 | AB82: 0.04895548775 | AC82: 0.0395741738
A83: Land off Overend Road, Cradley Heath Business Park, Cradley Heath | B83: 93 | C83: 3.01 | D83: 3.01 | E83: 0 | F83: 0 | G83: 0 | H83: =I83-#REF! ->  | I83: =#REF!/D83 ->  | J83: =IF(I83>=0.005,I83,IF(#REF!=0,I83,"<1%")) ->  | K83: 0 | L83: 0 | M83: 0 | N83: 0 | O83: 0 | P83: 1 | R83: 0 | S83: 0.0006760952686 | T83: 0.0002246163683 | U83: <1% | V83: 0.0574860828 | W83: 0.01887375001 | X83: 0.01909836638 | Y83: 0.01887375001 | Z83: 0.176808952 | AA83: 0.03986676561 | AB83: 0.05874051562 | AC83: 0.03986676561
A84: Land off Sutton Road, Longwood Lane, Walsall | B84: 102 | C84: 11.92 | D84: 11.92 | E84: 0 | F84: 0 | G84: 0 | H84: =I84-#REF! ->  | I84: =#REF!/D84 ->  | J84: =IF(I84>=0.005,I84,IF(#REF!=0,I84,"<1%")) ->  | K84: 0 | L84: 0 | M84: 0 | N84: 0 | O84: 0 | P84: 1 | R84: 0 | S84: 0.301943814 | T84: 0.02533085688 | U84: 0.02533085688 | V84: 0.7902312199 | W84: 0.04096370855 | X84: 0.06629456543 | Y84: 0.04096370855 | Z84: 2.868700572 | AA84: 0.1996990911 | AB84: 0.2406627996 | AC84: 0.1996990911
A85: Land off Bromwich Lane, Pedmore, Dudley | B85: 103 | C85: 4.24 | D85: 4.24 | E85: 0 | F85: 0 | G85: 0 | H85: =I85-#REF! ->  | I85: =#REF!/D85 ->  | J85: =IF(I85>=0.005,I85,IF(#REF!=0,I85,"<1%")) ->  | K85: 0 | L85: 0 | M85: 0 | N85: 0 | O85: 0 | P85: 1 | R85: 0 | S85: 0 | T85: 0 | U85: 0 | V85: 0.0156 | W85: 0.003679245283 | X85: 0.003679245283 | Y85: <1% | Z85: 0.1321127998 | AA85: 0.0274794339 | AB85: 0.03115867919 | AC85: 0.0274794339
A86: Middlemore Lane West, Aldridge | B86: 112 | C86: 1.46 | D86: 1.46 | E86: 0 | F86: 0 | G86: 0 | H86: =I86-#REF! ->  | I86: =#REF!/D86 ->  | J86: =IF(I86>=0.005,I86,IF(#REF!=0,I86,"<1%")) ->  | K86: 0 | L86: 0 | M86: 0 | N86: 0 | O86: 0 | P86: 1 | R86: 0 | S86: 0 | T86: 0 | U86: 0 | V86: 0 | W86: 0 | X86: 0 | Y86: 0 | Z86: 0 | AA86: 0 | AB86: 0 | AC86: 0
A87: 30 Gorge Road, Sedgley | B87: 113 | C87: 0.37 | D87: 0.37 | E87: 0 | F87: 0 | G87: 0 | H87: =I87-#REF! ->  | I87: =#REF!/D87 ->  | J87: =IF(I87>=0.005,I87,IF(#REF!=0,I87,"<1%")) ->  | K87: 0 | L87: 0 | M87: 0 | N87: 0 | O87: 0 | P87: 1 | R87: 0 | S87: 0.0002820314526 | T87: 0.0007622471692 | U87: <1% | V87: 0.0002820314526 | W87: 0 | X87: 0.0007622471692 | Y87: <1% | Z87: 0.002312347173 | AA87: 0.006249586953 | AB87: 0.006249586953 | AC87: 0.006249586953
A88: Wolverhampton North SUE | B88: 197 | C88: 54.3 | D88: 54.3 | E88: 0.889454497 | F88: 0.89 | G88: 0.01639042357 | H88: =I88-#REF! ->  | I88: =#REF!/D88 ->  | J88: =IF(I88>=0.005,I88,IF(#REF!=0,I88,"<1%")) ->  | K88: 1.017209291 | L88: 1.02 | M88: 0.13 | N88: 0.01878453039 | O88: 0.01878453039 | P88: 0.9812154696 | R88: 0 | S88: 0.25818694 | T88: 0.004754823941 | U88: <1% | V88: 0.7980632161 | W88: 0.009942472856 | X88: 0.0146972968 | Y88: 0.009942472856 | Z88: 1.217225055 | AA88: 0.01247419482 | AB88: 0.02241666768 | AC88: 0.01247419482 | AD88: 1.572693297 | AE88: 0.02896304415 | AF88: 1.761103189 | AG88: 0.03243283958 | AH88: 0.00346979543
A89: Wolverhampton North SUE | B89: 197 | C89: 34.79 | D89: 34.79 | E89: 1.26848506 | F89: 1.27 | G89: 0.03650474274 | H89: =I89-#REF! ->  | I89: =#REF!/D89 ->  | J89: =IF(I89>=0.005,I89,IF(#REF!=0,I89,"<1%")) ->  | K89: 1.612070035 | L89: 1.61 | M89: 0.34 | N89: 0.046277666 | O89: 0.046277666 | P89: 0.953722334 | R89: 0 | S89: 0.6274214901 | T89: 0.0180345355 | U89: 0.0180345355 | V89: 1.244577076 | W89: 0.01773945347 | X89: 0.03577398897 | Y89: 0.01773945347 | Z89: 2.158938253 | AA89: 0.04431683435 | AB89: 0.06205628782 | AC89: 0.04431683435 | AD89: 2.757939476 | AE89: 0.07927391424 | AF89: 3.319416912 | AG89: 0.09541296097 | AH89: 0.01613904673
A90: Wolverhampton North SUE | B90: 197 | C90: 99.23 | D90: 99.23 | E90: 0.020250815 | F90: 0.02 | G90: 0.00020155195 | H90: =I90-#REF! ->  | I90: =#REF!/D90 ->  | J90: =IF(I90>=0.005,I90,IF(#REF!=0,I90,"<1%")) ->  | K90: 0.0422849354 | L90: 0.04 | M90: 0.02 | N90: 0.0004031039 | O90: <1% | P90: 0.9995968961 | R90: 0 | S90: 0.005562439422 | T90: 5.605602562e-05 | U90: <1% | V90: 0.005815937864 | W90: 2.554655262e-06 | X90: 5.861068088e-05 | Y90: <1% | Z90: 0.05724737393 | AA90: 0.0005743613372 | AB90: 0.0005769159925 | AC90: <1% | AD90: 0.1029477082 | AE90: 0.001037465567 | AF90: 0.123346772 | AG90: 0.001243039121 | AH90: 0.0002055735546
A91: Wolverhampton North SUE | B91: 197 | C91: 99.23 | D91: 99.23 | E91: 0 | F91: 0 | G91: 0 | H91: =I91-#REF! ->  | I91: =#REF!/D91 ->  | J91: =IF(I91>=0.005,I91,IF(#REF!=0,I91,"<1%")) ->  | K91: 0 | L91: 0 | M91: 0 | N91: 0 | O91: 0 | P91: 1 | R91: 0 | S91: 0 | T91: 0 | U91: 0 | V91: 0 | W91: 0 | X91: 0 | Y91: 0 | Z91: 0 | AA91: 0 | AB91: 0 | AC91: 0 | AD91: 0.483424595 | AE91: 0.00487175849 | AF91: 0.484101709 | AG91: 0.004878582173 | AH91: 6.823682394e-06
A92: Land adjacent to Holbeche House Care Home, Wolverhampton Road, Kingswinford, Dudley | B92: 209 | C92: 1.7 | D92: 1.7 | E92: 0 | F92: 0 | G92: 0 | H92: =I92-#REF! ->  | I92: =#REF!/D92 ->  | J92: =IF(I92>=0.005,I92,IF(#REF!=0,I92,"<1%")) ->  | K92: 0 | L92: 0 | M92: 0 | N92: 0 | O92: 0 | P92: 1 | R92: 0 | S92: 0 | T92: 0 | U92: 0 | V92: 0 | W92: 0 | X92: 0 | Y92: 0 | Z92: 0 | AA92: 0 | AB92: 0 | AC92: 0
A93: Land at Blackhalve Lane, Wednesfield, Wolverhampton | B93: 123 | C93: 4.9 | D93: 4.9 | E93: 0 | F93: 0 | G93: 0 | H93: =I93-#REF! ->  | I93: =#REF!/D93 ->  | J93: =IF(I93>=0.005,I93,IF(#REF!=0,I93,"<1%")) ->  | K93: 0 | L93: 0 | M93: 0 | N93: 0 | O93: 0 | P93: 1 | R93: 0 | S93: 0 | T93: 0 | U93: 0 | V93: 0 | W93: 0 | X93: 0 | Y93: 0 | Z93: 0.08357149718 | AA93: 0.01705540759 | AB93: 0.01705540759 | AC93: 0.01705540759 | AD93: 0.01558351102 | AE93: 0.003180308372 | AF93: 0.023089315 | AG93: 0.004712105102 | AH93: 0.00153179673
A94: Land off Vicarage Road Road, Wolverhampton | B94: 41 | C94: 2.8 | D94: 2.8 | E94: 0 | F94: 0 | G94: 0 | H94: =I94-#REF! ->  | I94: =#REF!/D94 ->  | J94: =IF(I94>=0.005,I94,IF(#REF!=0,I94,"<1%")) ->  | K94: 0 | L94: 0 | M94: 0 | N94: 0 | O94: 0 | P94: 1 | R94: 0 | S94: 0 | T94: 0 | U94: 0 | V94: 0 | W94: 0 | X94: 0 | Y94: 0 | Z94: 0 | AA94: 0 | AB94: 0 | AC94: 0 | AD94: 0.1047562581 | AE94: 0.03741294934 | AF94: 0.164679024 | AG94: 0.05881393714 | AH94: 0.0214009878
A95: Land south of Bosty Lane, Aldridge, Walsall | B95: 212 | C95: 47 | D95: 47 | E95: 0 | F95: 0 | G95: 0 | H95: =I95-#REF! ->  | I95: =#REF!/D95 ->  | J95: =IF(I95>=0.005,I95,IF(#REF!=0,I95,"<1%")) ->  | K95: 0 | L95: 0 | M95: 0 | N95: 0 | O95: 0 | P95: 1 | R95: 0 | S95: 0 | T95: 0 | U95: 0 | V95: 0 | W95: 0 | X95: 0 | Y95: 0 | Z95: 0.01002930284 | AA95: 0.0002133894221 | AB95: 0.0002133894221 | AC95: <1%
A96: Land south of Bosty Lane, Aldridge, Walsall | B96: 212 | C96: 47 | D96: 47 | E96: 0 | F96: 0 | G96: 0 | H96: =I96-#REF! ->  | I96: =#REF!/D96 ->  | J96: =IF(I96>=0.005,I96,IF(#REF!=0,I96,"<1%")) ->  | K96: 0 | L96: 0 | M96: 0 | N96: 0 | O96: 0 | P96: 1 | R96: 0 | S96: 0.4492836631 | T96: 0.009559226874 | U96: 0.009559226874 | V96: 0.67263428 | W96: 0.004752140786 | X96: 0.01431136766 | Y96: <1% | Z96: 2.418306903 | AA96: 0.04670119757 | AB96: 0.05145333836 | AC96: 0.04670119757
A97: Land at Vicarage Road / Coronation Road, High Heath, Walsall | B97: 213 | C97: 36 | D97: 36 | E97: 0.318173486 | F97: 0.32 | G97: 0.008888888889 | H97: =I97-#REF! ->  | I97: =#REF!/D97 ->  | J97: =IF(I97>=0.005,I97,IF(#REF!=0,I97,"<1%")) ->  | K97: 3.340325059 | L97: 3.34 | M97: 3.02 | N97: 0.09277777778 | O97: 0.09277777778 | P97: 0.9072222222 | R97: 0 | S97: 0.3227035948 | T97: 0.008963988745 | U97: 0.008963988745 | V97: 0.6538996628 | W97: 0.009199890777 | X97: 0.01816387952 | Y97: 0.009199890777 | Z97: 2.735656047 | AA97: 0.06679055496 | AB97: 0.07599044574 | AC97: 0.06679055496
A98: 56 Cartbridge Lane, Walsall | B98: 214 | C98: 0.28 | D98: 0.28 | E98: 0.000187222 | F98: 0 | G98: 0 | H98: =I98-#REF! ->  | I98: =#REF!/D98 ->  | J98: =IF(I98>=0.005,I98,IF(#REF!=0,I98,"<1%")) ->  | K98: 0.0001872480969 | L98: 0 | M98: 0 | N98: =L98/D98 -> 0 | O98: <1% | P98: 1 | R98: =Q98/C98 -> 0 | S98: 0.0004425347521 | T98: 0.001580481258 | U98: <1% | V98: 0.004041646377 | W98: 0.01285397009 | X98: =V98/C98 -> 0.01443445135 | Y98: 0.01285397009 | Z98: 0.05569057886 | AA98: 0.1860409544 | AB98: =Z98/C98 -> 0.1988949245 | AC98: 0.1860409544
A99: Land at Greenwood Road and Lazy Hill Road, Aldridge, Walsall | B99: 210 | C99: 2.6 | D99: 2.6 | E99: 0 | F99: 0 | G99: 0 | H99: =I99-#REF! ->  | I99: =#REF!/D99 ->  | J99: =IF(I99>=0.005,I99,IF(#REF!=0,I99,"<1%")) ->  | K99: 0 | L99: 0 | M99: 0 | N99: 0 | O99: 0 | P99: 1 | R99: 0 | S99: 0 | T99: 0 | U99: 0 | V99: 0 | W99: 0 | X99: 0 | Y99: 0 | Z99: 0.0001929565931 | AA99: 7.421407426e-05 | AB99: 7.421407426e-05 | AC99: <1%
A100: Land east of Longwood Lane, Daisy Bank, Walsall | B100: 152 | C100: 2.7 | D100: 2.7 | E100: 0 | F100: 0 | G100: 0 | H100: =I100-#REF! ->  | I100: =#REF!/D100 ->  | J100: =IF(I100>=0.005,I100,IF(#REF!=0,I100,"<1%")) ->  | K100: 0 | L100: 0 | M100: 0 | N100: 0 | O100: 0 | P100: 1 | R100: 0 | S100: 0.02809395021 | T100: 0.01040516674 | U100: 0.01040516674 | V100: 0.05443106827 | W100: 0.009754488172 | X100: 0.02015965491 | Y100: 0.009754488172 | Z100: 0.1225335845 | AA100: 0.03562832091 | AB100: 0.04538280908 | AC100: 0.03562832091
A101: Land to the north of Oldnall Road, Halesowen | B101: 216 | C101: 13.6 | D101: 13.6 | E101: 0 | F101: 0 | G101: 0 | H101: =I101-#REF! ->  | I101: =#REF!/D101 ->  | J101: =IF(I101>=0.005,I101,IF(#REF!=0,I101,"<1%")) ->  | K101: 0 | L101: 0 | M101: 0 | N101: 0 | O101: 0 | P101: 1 | R101: 0 | S101: 0 | T101: 0 | U101: 0 | V101: 0.01159151068 | W101: 0.0008523169621 | X101: 0.0008523169621 | Y101: <1% | Z101: 0.1263235624 | AA101: 0.008436180276 | AB101: 0.009288497238 | AC101: 0.008436180276
A102: Rear of 41 to approx. 59 Greenhill Road, Halesowen | B102: 217 | C102: 1.3 | D102: 1.3 | E102: 0 | F102: 0 | G102: 0 | H102: =I102-#REF! ->  | I102: =#REF!/D102 ->  | J102: =IF(I102>=0.005,I102,IF(#REF!=0,I102,"<1%")) ->  | K102: 0 | L102: 0 | M102: 0 | N102: 0 | O102: 0 | P102: 1 | R102: 0 | S102: 0.016 | T102: 0.01230769231 | U102: 0.01230769231 | V102: 0.0505646993 | W102: 0.02658823023 | X102: 0.03889592254 | Y102: 0.02658823023 | Z102: 0.1021847858 | AA102: 0.05201545118 | AB102: 0.07860368141 | AC102: 0.05201545118
A103: Land adjacent to Abbey Road, Halesowen, | B103: 218 | C103: 3.83 | D103: 3.83 | E103: 0 | F103: 0 | G103: 0 | H103: =I103-#REF! ->  | I103: =#REF!/D103 ->  | J103: =IF(I103>=0.005,I103,IF(#REF!=0,I103,"<1%")) ->  | K103: 0 | L103: 0 | M103: 0 | N103: 0 | O103: 0 | P103: 1 | R103: 0 | S103: 0.0602433151 | T103: 0.01572932509 | U103: 0.01572932509 | V103: 0.06947779674 | W103: 0.002411091811 | X103: 0.0181404169 | Y103: <1% | Z103: 0.1167420095 | AA103: 0.02806985063 | AB103: 0.03048094244 | AC103: 0.02806985063
A104: Land off Lutley Land, adjacent to Brookside Close, Halesowen | B104: 219 | C104: 3.81 | D104: 3.81 | E104: 0.724566504 | F104: 0.72 | G104: 0.188976378 | H104: =I104-#REF! ->  | I104: =#REF!/D104 ->  | J104: =IF(I104>=0.005,I104,IF(#REF!=0,I104,"<1%")) ->  | K104: 0.7941970096 | L104: 0.79 | M104: 0.07 | N104: 0.2073490814 | O104: 0.2073490814 | P104: 0.7926509186 | R104: 0 | S104: 0.07165671366 | T104: 0.01880753639 | U104: 0.01880753639 | V104: 0.1196086919 | W104: 0.01258582105 | X104: 0.03139335745 | Y104: 0.01258582105 | Z104: 0.3396789575 | AA104: 0.07656876097 | AB104: 0.08915458202 | AC104: 0.07656876097
A105: Chester Road North, Borwnhills, Walsall | B105: 220 | C105: 2.2 | D105: 2.2 | E105: 0 | F105: 0 | G105: 0 | H105: =I105-#REF! ->  | I105: =#REF!/D105 ->  | J105: =IF(I105>=0.005,I105,IF(#REF!=0,I105,"<1%")) ->  | K105: 0 | L105: 0 | M105: 0 | N105: 0 | O105: 0 | P105: 1 | R105: 0 | S105: 0.02484607 | T105: 0.01129366818 | U105: 0.01129366818 | V105: 0.0388932 | W105: 0.006385059091 | X105: 0.01767872727 | Y105: 0.006385059091 | Z105: 0.09069763983 | AA105: 0.03484114083 | AB105: 0.04122619992 | AC105: 0.03484114083
A106: Land to the rear of 118 Little Hardwick Road, Streetly | B106: 222 | C106: 0.68 | D106: 0.68 | E106: 0 | F106: 0 | G106: 0 | H106: =I106-#REF! ->  | I106: =#REF!/D106 ->  | J106: =IF(I106>=0.005,I106,IF(#REF!=0,I106,"<1%")) ->  | K106: 0 | L106: 0 | M106: 0 | N106: 0 | O106: 0 | P106: 1 | R106: 0 | S106: 0 | T106: 0 | U106: 0 | V106: 0 | W106: 0 | X106: 0 | Y106: 0 | Z106: 0.09136879907 | AA106: 0.134365881 | AB106: 0.134365881 | AC106: 0.134365881
A107: Peak House Farm, Great Barr | B107: 115 | C107: 27 | D107: 27 | E107: 0 | F107: 0 | G107: 0 | H107: =I107-#REF! ->  | I107: =#REF!/D107 ->  | J107: =IF(I107>=0.005,I107,IF(#REF!=0,I107,"<1%")) ->  | K107: 0 | L107: 0 | M107: 0 | N107: 0 | O107: 0 | P107: 1 | R107: 0 | S107: 0.1070713465 | T107: 0.003965605427 | U107: <1% | V107: 0.3114032132 | W107: 0.007567846914 | X107: 0.01153345234 | Y107: 0.007567846914 | Z107: 1.841063 | AA107: 0.06061967161 | AB107: 0.06818751853 | AC107: 0.06061967161
A108: Land to the north of Northfields Way, Clayhanger, Borwnhills, Walsall | B108: 221 | C108: 1.87 | D108: 1.87 | E108: 0 | F108: 0 | G108: 0 | H108: =I108-#REF! ->  | I108: =#REF!/D108 ->  | J108: =IF(I108>=0.005,I108,IF(#REF!=0,I108,"<1%")) ->  | K108: 0 | L108: 0 | M108: 0 | N108: 0 | O108: 0 | P108: 1 | R108: 0 | S108: 0.0135045 | T108: 0.007221657754 | U108: 0.007221657754 | V108: 0.03774923883 | W108: 0.01296510098 | X108: 0.02018675873 | Y108: 0.01296510098 | Z108: 0.2027110173 | AA108: 0.09543651255 | AB108: 0.1084016135 | AC108: 0.09543651255
A109: Hay Green / Lewis Rd, Lye | B109: 224 | C109: 4.14 | D109: 4.14 | E109: 0 | F109: 0 | G109: 0 | H109: =I109-#REF! ->  | I109: =#REF!/D109 ->  | J109: =IF(I109>=0.005,I109,IF(#REF!=0,I109,"<1%")) ->  | K109: 0 | L109: 0 | M109: 0 | N109: 0 | O109: 0 | P109: 1 | R109: 0 | S109: 0.2629531269 | T109: 0.06351524805 | U109: 0.06351524805 | V109: 0.5644267912 | W109: 0.07281972567 | X109: 0.1363349737 | Y109: 0.07281972567 | Z109: 0.9925488075 | AA109: 0.1669263631 | AB109: 0.2397460888 | AC109: 0.1669263631
A110: Land south of Cradley Town FC | B110: 225 | C110: 1.26 | D110: 1.26 | E110: 0 | F110: 0 | G110: 0 | H110: =I110-#REF! ->  | I110: =#REF!/D110 ->  | J110: =IF(I110>=0.005,I110,IF(#REF!=0,I110,"<1%")) ->  | K110: 0 | L110: 0 | M110: 0 | N110: 0 | O110: 0 | P110: 1 | R110: 0 | S110: 0 | T110: 0 | U110: 0 | V110: 0 | W110: 0 | X110: 0 | Y110: 0 | Z110: 0.02657713055 | AA110: 0.02109296075 | AB110: 0.02109296075 | AC110: 0.02109296075
A111: High Farm Road, Halesowen | B111: 226 | C111: 0.37 | D111: 0.37 | E111: 0 | F111: 0 | G111: 0 | H111: =I111-#REF! ->  | I111: =#REF!/D111 ->  | J111: =IF(I111>=0.005,I111,IF(#REF!=0,I111,"<1%")) ->  | K111: 0 | L111: 0 | M111: 0 | N111: 0 | O111: 0 | P111: 1 | R111: 0 | S111: 0 | T111: 0 | U111: 0 | V111: 0 | W111: 0 | X111: 0 | Y111: 0 | Z111: 0 | AA111: 0 | AB111: 0 | AC111: 0
A112: Lapwood Avenue Kingswinford | B112: 227 | C112: 1.38 | D112: 1.38 | E112: 0 | F112: 0 | G112: 0 | H112: =I112-#REF! ->  | I112: =#REF!/D112 ->  | J112: =IF(I112>=0.005,I112,IF(#REF!=0,I112,"<1%")) ->  | K112: 0 | L112: 0 | M112: 0 | N112: 0 | O112: 0 | P112: 1 | R112: 0 | S112: 0.06477066003 | T112: 0.04693526089 | U112: 0.04693526089 | V112: 0.1528011666 | W112: 0.06379022215 | X112: 0.110725483 | Y112: 0.06379022215 | Z112: 0.3841527668 | AA112: 0.214581348 | AB112: 0.2783715701 | AC112: 0.214581348
A113: Land off Cradley Rd Netherton | B113: 228 | C113: 1.74 | D113: 1.74 | E113: 0 | F113: 0 | G113: 0 | H113: =I113-#REF! ->  | I113: =#REF!/D113 ->  | J113: =IF(I113>=0.005,I113,IF(#REF!=0,I113,"<1%")) ->  | K113: 0 | L113: 0 | M113: 0 | N113: 0 | O113: 0 | P113: 1 | R113: 0 | S113: 0 | T113: 0 | U113: 0 | V113: 0.03379598648 | W113: 0.01942298074 | X113: 0.01942298074 | Y113: 0.01942298074 | Z113: 0.2378968982 | AA113: 0.1172993746 | AB113: 0.1367223553 | AC113: 0.1172993746
A114: land off Bowling Green Rd Stourbridge | B114: 229 | C114: 0.62 | D114: 0.62 | E114: 0 | F114: 0 | G114: 0 | H114: =I114-#REF! ->  | I114: =#REF!/D114 ->  | J114: =IF(I114>=0.005,I114,IF(#REF!=0,I114,"<1%")) ->  | K114: 0 | L114: 0 | M114: 0 | N114: 0 | O114: 0 | P114: 1 | R114: 0 | S114: 0 | T114: 0 | U114: 0 | V114: 0 | W114: 0 | X114: 0 | Y114: 0 | Z114: 0 | AA114: 0 | AB114: 0 | AC114: 0
A115: Seymore Rd Wollescote | B115: 230 | C115: 0.2 | D115: 0.2 | E115: 0 | F115: 0 | G115: 0 | H115: =I115-#REF! ->  | I115: =#REF!/D115 ->  | J115: =IF(I115>=0.005,I115,IF(#REF!=0,I115,"<1%")) ->  | K115: 0 | L115: 0 | M115: 0 | N115: 0 | O115: 0 | P115: 1 | R115: 0 | S115: 0 | T115: 0 | U115: 0 | V115: 0 | W115: 0 | X115: 0 | Y115: 0 | Z115: 0 | AA115: 0 | AB115: 0 | AC115: 0
A116: Bank St / Bent St Brierley Hill | B116: 231 | C116: 0.15 | D116: 0.15 | E116: 0 | F116: 0 | G116: 0 | H116: =I116-#REF! ->  | I116: =#REF!/D116 ->  | J116: =IF(I116>=0.005,I116,IF(#REF!=0,I116,"<1%")) ->  | K116: 0 | L116: 0 | M116: 0 | N116: 0 | O116: 0 | P116: 1 | R116: 0 | S116: 0 | T116: 0 | U116: 0 | V116: 0 | W116: 0 | X116: 0 | Y116: 0 | Z116: 0 | AA116: 0 | AB116: 0 | AC116: 0
A117: Balfour Rd Kingswinford | B117: 232 | C117: 0.75 | D117: 0.75 | E117: 0 | F117: 0 | G117: 0 | H117: =I117-#REF! ->  | I117: =#REF!/D117 ->  | J117: =IF(I117>=0.005,I117,IF(#REF!=0,I117,"<1%")) ->  | K117: 0.1522108479 | L117: 0.15 | M117: 0.15 | N117: 0.2 | O117: 0.2 | P117: 0.8 | R117: 0 | S117: 0 | T117: 0 | U117: 0 | V117: 0 | W117: 0 | X117: 0 | Y117: 0 | Z117: 0.0005070262994 | AA117: 0.0006760350659 | AB117: 0.0006760350659 | AC117: <1%
A118: Brompton Drive Brierley Hill | B118: 233 | C118: 3.43 | D118: 3.43 | E118: 0 | F118: 0 | G118: 0 | H118: =I118-#REF! ->  | I118: =#REF!/D118 ->  | J118: =IF(I118>=0.005,I118,IF(#REF!=0,I118,"<1%")) ->  | K118: 0 | L118: 0 | M118: 0 | N118: 0 | O118: 0 | P118: 1 | R118: 0 | S118: 0 | T118: 0 | U118: 0 | V118: 0 | W118: 0 | X118: 0 | Y118: 0 | Z118: 0.05090070533 | AA118: 0.01483985578 | AB118: 0.01483985578 | AC118: 0.01483985578
A119: Woodbury Close, Brielery Hill | B119: 234 | C119: 1.5 | D119: 1.5 | E119: 0 | F119: 0 | G119: 0 | H119: =I119-#REF! ->  | I119: =#REF!/D119 ->  | J119: =IF(I119>=0.005,I119,IF(#REF!=0,I119,"<1%")) ->  | K119: 0 | L119: 0 | M119: 0 | N119: 0 | O119: 0 | P119: 1 | R119: 0 | S119: 0.03707875604 | T119: 0.02471917069 | U119: 0.02471917069 | V119: 0.05594500753 | W119: 0.01257750099 | X119: 0.03729667169 | Y119: 0.01257750099 | Z119: 0.1347345819 | AA119: 0.0772455536 | AB119: 0.08982305459 | AC119: 0.0772455536
A120: Bryce Road, Pernsnett | B120: 235 | C120: 4.73 | D120: 4.73 | E120: 0 | F120: 0 | G120: 0 | H120: =I120-#REF! ->  | I120: =#REF!/D120 ->  | J120: =IF(I120>=0.005,I120,IF(#REF!=0,I120,"<1%")) ->  | K120: 0 | L120: 0 | M120: 0 | N120: 0 | O120: 0 | P120: 1 | R120: 0 | S120: 0.007925128309 | T120: 0.001675502814 | U120: <1% | V120: 0.02762760548 | W120: 0.004165428576 | X120: 0.00584093139 | Y120: <1% | Z120: 0.5956913411 | AA120: 0.1217735442 | AB120: 0.1259389728 | AC120: 0.1217735442
A121: Enville Street Stourbridge | B121: 236 | C121: 0.42 | D121: 0.42 | E121: 0 | F121: 0 | G121: 0 | H121: =I121-#REF! ->  | I121: =#REF!/D121 ->  | J121: =IF(I121>=0.005,I121,IF(#REF!=0,I121,"<1%")) ->  | K121: 0 | L121: 0 | M121: 0 | N121: 0 | O121: 0 | P121: 1 | R121: 0 | S121: 0 | T121: 0 | U121: 0 | V121: 0 | W121: 0 | X121: 0 | Y121: 0 | Z121: 0 | AA121: 0 | AB121: 0 | AC121: 0
A122: Kingswinford Youth Centre, High Street, Kingswinford | B122: 237 | C122: 4.68 | D122: 4.68 | E122: 0 | F122: 0 | G122: 0 | H122: =I122-#REF! ->  | I122: =#REF!/D122 ->  | J122: =IF(I122>=0.005,I122,IF(#REF!=0,I122,"<1%")) ->  | K122: 0 | L122: 0 | M122: 0 | N122: 0 | O122: 0 | P122: 1 | R122: 0 | S122: 0.0104 | T122: 0.002222222222 | U122: <1% | V122: 0.06787027726 | W122: 0.01227997377 | X122: 0.014502196 | Y122: 0.01227997377 | Z122: 0.3133943781 | AA122: 0.05468463694 | AB122: 0.06696461071 | AC122: 0.05468463694
A123: Land off Back Lane, Walsall | B123: 239 | C123: 18.1 | D123: 18.1 | E123: 0 | F123: 0 | G123: 0 | H123: =I123-#REF! ->  | I123: =#REF!/D123 ->  | J123: =IF(I123>=0.005,I123,IF(#REF!=0,I123,"<1%")) ->  | K123: 0 | L123: 0 | M123: 0 | N123: 0 | O123: 0 | P123: 1 | R123: 0 | S123: 0 | T123: 0 | U123: 0 | V123: 0 | W123: 0 | X123: 0 | Y123: 0 | Z123: 0 | AA123: 0 | AB123: 0 | AC123: 0
A124: Located off Elan Road, Sedgley | B124: 240 | C124: 3.46 | D124: 3.46 | E124: 0 | F124: 0 | G124: 0 | H124: =I124-#REF! ->  | I124: =#REF!/D124 ->  | J124: =IF(I124>=0.005,I124,IF(#REF!=0,I124,"<1%")) ->  | K124: 0 | L124: 0 | M124: 0 | N124: 0 | O124: 0 | P124: 1 | R124: 0 | S124: 0.1598546505 | T124: 0.04620076603 | U124: 0.04620076603 | V124: 0.2675066884 | W124: 0.03111330578 | X124: 0.0773140718 | Y124: 0.03111330578 | Z124: 0.6654693629 | AA124: 0.16121888 | AB124: 0.1923321858 | AC124: 0.16121888
A125: Land adjacent to Anvil Crescent, Cannon Drive and Poole Crescent, Coseley | B125: 241 | C125: 3.34 | D125: 3.34 | E125: 0 | F125: 0 | G125: 0 | H125: =I125-#REF! ->  | I125: =#REF!/D125 ->  | J125: =IF(I125>=0.005,I125,IF(#REF!=0,I125,"<1%")) ->  | K125: 0 | L125: 0 | M125: 0 | N125: 0 | O125: 0 | P125: 1 | R125: 0 | S125: 0.01 | T125: 0.002994011976 | U125: <1% | V125: 0.03414582059 | W125: 0.007229287601 | X125: 0.01022329958 | Y125: 0.007229287601 | Z125: 0.2361631999 | AA125: 0.06347825728 | AB125: 0.07070754488 | AC125: 0.06347825728
A126: Land located off Higgins Avenue, Harding Street, Coseley | B126: 242 | C126: 1.37 | D126: 1.37 | E126: 0 | F126: 0 | G126: 0 | H126: =I126-#REF! ->  | I126: =#REF!/D126 ->  | J126: =IF(I126>=0.005,I126,IF(#REF!=0,I126,"<1%")) ->  | K126: 0 | L126: 0 | M126: 0 | N126: 0 | O126: 0 | P126: 1 | R126: 0 | S126: 0.01700913129 | T126: 0.0124154243 | U126: 0.0124154243 | V126: 0.03402454789 | W126: 0.01242001212 | X126: 0.02483543642 | Y126: 0.01242001212 | Z126: 0.1234440321 | AA126: 0.07768512082 | AB126: 0.09010513293 | AC126: 0.07768512082
A127: Green space land off Downfield Road, Gornal. | B127: 243 | C127: 3.37 | D127: 3.37 | E127: 0 | F127: 0 | G127: 0 | H127: =I127-#REF! ->  | I127: =#REF!/D127 ->  | J127: =IF(I127>=0.005,I127,IF(#REF!=0,I127,"<1%")) ->  | K127: 0 | L127: 0 | M127: 0 | N127: 0 | O127: 0 | P127: 1 | R127: 0 | S127: 0.100989769 | T127: 0.02996729049 | U127: 0.02996729049 | V127: 0.1815885004 | W127: 0.02391653752 | X127: 0.05388382802 | Y127: 0.02391653752 | Z127: 0.5206621924 | AA127: 0.1305826294 | AB127: 0.1544991669 | AC127: 0.1305826294
A128: Grazing Land Wollaston Farm, Wollaston, Stourbridge | B128: 245 | C128: 3.77 | D128: 3.77 | E128: 0 | F128: 0 | G128: 0 | H128: =I128-#REF! ->  | I128: =#REF!/D128 ->  | J128: =IF(I128>=0.005,I128,IF(#REF!=0,I128,"<1%")) ->  | K128: 0 | L128: 0 | M128: 0 | N128: 0 | O128: 0 | P128: 1 | R128: 0 | S128: 0.3366270796 | T128: 0.08929100255 | U128: 0.08929100255 | V128: 0.4284134924 | W128: 0.02434652859 | X128: 0.1136375311 | Y128: 0.02434652859 | Z128: 0.6111899393 | AA128: 0.1377728187 | AB128: 0.1621193473 | AC128: 0.1377728187
A129: Lower Gornal STW, Lower Gornal | B129: 246 | C129: 10.67 | D129: 10.67 | E129: 0.029677419 | F129: 0.03 | G129: 0.002811621368 | H129: =I129-#REF! ->  | I129: =#REF!/D129 ->  | J129: =IF(I129>=0.005,I129,IF(#REF!=0,I129,"<1%")) ->  | K129: 0.0322940317 | L129: 0.03 | M129: 0 | N129: 0.002811621368 | O129: <1% | P129: 0.9971883786 | R129: 0 | S129: 0.2146282977 | T129: 0.02011511694 | U129: 0.02011511694 | V129: 0.3748966785 | W129: 0.0150204668 | X129: 0.03513558374 | Y129: 0.0150204668 | Z129: 1.066793489 | AA129: 0.0849601788 | AB129: 0.0999806456 | AC129: 0.0849601788
A130: Guys Lane, Lower Gornal | B130: 247 | C130: 1.05 | D130: 1.05 | E130: 0 | F130: 0 | G130: 0 | H130: =I130-#REF! ->  | I130: =#REF!/D130 ->  | J130: =IF(I130>=0.005,I130,IF(#REF!=0,I130,"<1%")) ->  | K130: 0 | L130: 0 | M130: 0 | N130: =L130/D130 -> 0 | O130: 0 | P130: =1-N130 -> 1 | R130: =Q130/C130 -> 0 | S130: 0.05569646999 | T130: 0.05304425714 | U130: 0.05304425714 | V130: 0.09155692859 | W130: =X130-T130 -> 0.03415281771 | X130: =V130/C130 -> 0.08719707485 | Y130: 0.03415281771 | Z130: 0.1516274784 | AA130: 0.1102543046 | AB130: =Z130/C130 -> 0.1444071223 | AC130: 0.1102543046
A131: Land off Tenacre Lane, Lower Gornal, DY3 1XH | B131: 248 | C131: 1.56 | D131: =ROUND(C131,2) -> 1.56 | E131: 0 | F131: =ROUND(E131,2) -> 0 | G131: =F131/D131 -> 0 | H131: =I131-#REF! ->  | I131: =#REF!/D131 ->  | J131: =IF(I131>=0.005,I131,IF(#REF!=0,I131,"<1%")) ->  | K131: 0 | L131: =ROUND(K131,2) -> 0 | M131: =L131-F131 -> 0 | N131: 0 | O131: =IF(N131>=0.005,N131,IF(K131=0,N131,"<1%")) -> 0 | P131: 1 | R131: 0 | S131: 0.05072327484 | T131: =S131/C131 -> 0.03251491977 | U131: =IF(T131>=0.005,T131,IF(S131=0,T131,"<1%")) -> 0.03251491977 | V131: 0.1061640112 | W131: 0.03553893354 | X131: 0.06805385331 | Y131: =IF(W131>=0.005,W131,IF(V131=0,W131,"<1%")) -> 0.03553893354 | Z131: 0.3116115455 | AA131: =AB131-W131 -> 0.1642120572 | AB131: 0.1997509907 | AC131: =IF(AA131>=0.005,AA131,IF(Z131=0,AA131,"<1%")) -> 0.1642120572
A132: Furber Place, Kingswinford, DY6 8DE | B132: 249 | C132: 2.52 | D132: 2.52 | E132: 0 | F132: 0 | G132: 0 | H132: =I132-#REF! ->  | I132: =#REF!/D132 ->  | J132: =IF(I132>=0.005,I132,IF(#REF!=0,I132,"<1%")) ->  | K132: 0 | L132: 0 | M132: 0 | N132: 0 | O132: 0 | P132: 1 | R132: 0 | S132: 0 | T132: 0 | U132: 0 | V132: 0.0144 | W132: 0.005714285714 | X132: 0.005714285714 | Y132: 0.005714285714 | Z132: 0.073647413 | AA132: 0.02351087817 | AB132: 0.02922516389 | AC132: 0.02351087817
A133: Severn Drive, Pensnett, DY5 4QS | B133: 250 | C133: 0.95 | D133: 0.95 | E133: 0 | F133: 0 | G133: 0 | H133: =I133-#REF! ->  | I133: =#REF!/D133 ->  | J133: =IF(I133>=0.005,I133,IF(#REF!=0,I133,"<1%")) ->  | K133: 0 | L133: 0 | M133: 0 | N133: 0 | O133: 0 | P133: 1 | R133: 0 | S133: 0 | T133: 0 | U133: 0 | V133: 0 | W133: 0 | X133: 0 | Y133: 0 | Z133: 0.04148276364 | AA133: 0.04366606699 | AB133: 0.04366606699 | AC133: 0.04366606699
A134: Pensnett Road, Pensnett, DY5 4NE | B134: 251 | C134: 1.42 | D134: 1.42 | E134: 0 | F134: 0 | G134: 0 | H134: =I134-#REF! ->  | I134: =#REF!/D134 ->  | J134: =IF(I134>=0.005,I134,IF(#REF!=0,I134,"<1%")) ->  | K134: 0 | L134: 0 | M134: 0 | N134: 0 | O134: 0 | P134: 1 | R134: 0 | S134: 0.09904807964 | T134: 0.06975216876 | U134: 0.06975216876 | V134: 0.2654188864 | W134: 0.1171625399 | X134: 0.1869147087 | Y134: 0.1171625399 | Z134: 0.701507118 | AA134: 0.3768565572 | AB134: 0.4940190972 | AC134: 0.3768565572
A135: Vicarage Lane, Pensnett | B135: 252 | C135: 2.49 | D135: 2.49 | E135: 0 | F135: 0 | G135: 0 | H135: =I135-#REF! ->  | I135: =#REF!/D135 ->  | J135: =IF(I135>=0.005,I135,IF(#REF!=0,I135,"<1%")) ->  | K135: 0 | L135: 0 | M135: 0 | N135: 0 | O135: 0 | P135: 1 | R135: 0 | S135: 0.06229891711 | T135: 0.02501964543 | U135: 0.02501964543 | V135: 0.1064552283 | W135: 0.0177334583 | X135: 0.04275310373 | Y135: 0.0177334583 | Z135: 0.1661091858 | AA135: 0.04897705807 | AB135: 0.06671051637 | AC135: 0.04897705807
A136: Park Head Locks, Off Holly Hall Road, Dudley, DY2 0UN | B136: 253 | C136: 2.67 | D136: 2.67 | E136: 0 | F136: 0 | G136: 0 | H136: =I136-#REF! ->  | I136: =#REF!/D136 ->  | J136: =IF(I136>=0.005,I136,IF(#REF!=0,I136,"<1%")) ->  | K136: 0 | L136: 0 | M136: 0 | N136: 0 | O136: 0 | P136: 1 | R136: 0 | S136: 0 | T136: 0 | U136: 0 | V136: 0 | W136: 0 | X136: 0 | Y136: 0 | Z136: 0.1192145241 | AA136: 0.0446496345 | AB136: 0.0446496345 | AC136: 0.0446496345
A137: Elizabeth Grove, Tansley Hill, Dudley, DY2 7TG | B137: 254 | C137: 1.04 | D137: 1.04 | E137: 0 | F137: 0 | G137: 0 | H137: =I137-#REF! ->  | I137: =#REF!/D137 ->  | J137: =IF(I137>=0.005,I137,IF(#REF!=0,I137,"<1%")) ->  | K137: 0 | L137: 0 | M137: 0 | N137: 0 | O137: 0 | P137: 1 | R137: 0 | S137: 0 | T137: 0 | U137: 0 | V137: 0 | W137: 0 | X137: 0 | Y137: 0 | Z137: 0 | AA137: 0 | AB137: 0 | AC137: 0
A138: Brierley Hill Road/Cooper Avenue, Brierley Hill, DY5 3PB | B138: 255 | C138: 4.73 | D138: 4.73 | E138: 0 | F138: 0 | G138: 0 | H138: =I138-#REF! ->  | I138: =#REF!/D138 ->  | J138: =IF(I138>=0.005,I138,IF(#REF!=0,I138,"<1%")) ->  | K138: 0 | L138: 0 | M138: 0 | N138: 0 | O138: 0 | P138: 1 | R138: 0 | S138: 0.03784112753 | T138: 0.008000238377 | U138: 0.008000238377 | V138: 0.1896111186 | W138: 0.03208667887 | X138: 0.04008691724 | Y138: 0.03208667887 | Z138: 0.5609592428 | AA138: 0.08650935556 | AB138: 0.1185960344 | AC138: 0.08650935556
A139: Lodge Crescent/Highbridge Road, Netherton, DY2 0HF | B139: 256 | C139: 1.63 | D139: 1.63 | E139: 0 | F139: 0 | G139: 0 | H139: =I139-#REF! ->  | I139: =#REF!/D139 ->  | J139: =IF(I139>=0.005,I139,IF(#REF!=0,I139,"<1%")) ->  | K139: 0 | L139: 0 | M139: 0 | N139: 0 | O139: 0 | P139: 1 | R139: 0 | S139: 0 | T139: 0 | U139: 0 | V139: 0 | W139: 0 | X139: 0 | Y139: 0 | Z139: 0.04915833712 | AA139: 0.03015848903 | AB139: 0.03015848903 | AC139: 0.03015848903
A140: Copse Road, Netherton, DY2 0AJ | B140: 257 | C140: 0.76 | D140: 0.76 | E140: 0 | F140: 0 | G140: 0 | H140: =I140-#REF! ->  | I140: =#REF!/D140 ->  | J140: =IF(I140>=0.005,I140,IF(#REF!=0,I140,"<1%")) ->  | K140: 0 | L140: 0 | M140: 0 | N140: 0 | O140: 0 | P140: 1 | R140: 0 | S140: 0 | T140: 0 | U140: 0 | V140: 0 | W140: 0 | X140: 0 | Y140: 0 | Z140: 0.02430358148 | AA140: 0.03197839668 | AB140: 0.03197839668 | AC140: 0.03197839668
A141: Saltwells Road, Netherton, DY2 9RR | B141: 258 | C141: 1.23 | D141: 1.23 | E141: 0 | F141: 0 | G141: 0 | H141: =I141-#REF! ->  | I141: =#REF!/D141 ->  | J141: =IF(I141>=0.005,I141,IF(#REF!=0,I141,"<1%")) ->  | K141: 0 | L141: 0 | M141: 0 | N141: 0 | O141: 0 | P141: 1 | R141: 0 | S141: 0.00113681595 | T141: 0.0009242406098 | U141: <1% | V141: 0.002214655221 | W141: 0.0008762920899 | X141: 0.0018005327 | Y141: <1% | Z141: 0.09708466659 | AA141: 0.07805433115 | AB141: 0.07893062324 | AC141: 0.07805433115
A142: Charles Road, Quarry Bank., DY5 1AG | B142: 259 | C142: 0.72 | D142: 0.72 | E142: 0 | F142: 0 | G142: 0 | H142: =I142-#REF! ->  | I142: =#REF!/D142 ->  | J142: =IF(I142>=0.005,I142,IF(#REF!=0,I142,"<1%")) ->  | K142: 0 | L142: 0 | M142: 0 | N142: 0 | O142: 0 | P142: 1 | R142: 0 | S142: 0.002283129208 | T142: 0.003171012788 | U142: <1% | V142: 0.006084832217 | W142: 0.005280143068 | X142: 0.008451155857 | Y142: 0.005280143068 | Z142: 0.02367581761 | AA142: 0.02760293695 | AB142: 0.03288308002 | AC142: 0.02760293695
A143: Charlemont Community Centre, Beaconview Road, West Bromwich | B143: 263 | C143: 0.05 | D143: 0.05 | E143: 0 | F143: 0 | G143: 0 | H143: =I143-#REF! ->  | I143: =#REF!/D143 ->  | J143: =IF(I143>=0.005,I143,IF(#REF!=0,I143,"<1%")) ->  | K143: 0 | L143: 0 | M143: 0 | N143: 0 | O143: 0 | P143: 1 | R143: 0 | S143: 0 | T143: 0 | U143: 0 | V143: 0 | W143: 0 | X143: 0 | Y143: 0 | Z143: 0 | AA143: 0 | AB143: 0 | AC143: 0
A144: Three Fields, Dunsley Road, Norton, Stourbridge, DY8 3LR | B144: 264 | C144: 4.59 | D144: 4.59 | E144: 0 | F144: 0 | G144: 0 | H144: =I144-#REF! ->  | I144: =#REF!/D144 ->  | J144: =IF(I144>=0.005,I144,IF(#REF!=0,I144,"<1%")) ->  | K144: 0 | L144: 0 | M144: 0 | N144: 0 | O144: 0 | P144: 1 | R144: 0 | S144: 0 | T144: 0 | U144: 0 | V144: 0 | W144: 0 | X144: 0 | Y144: 0 | Z144: 0 | AA144: 0 | AB144: 0 | AC144: 0
A145: Portway Close, Kingswinford, DY6 8HD | B145: 265 | C145: 1.54 | D145: 1.54 | E145: 0 | F145: 0 | G145: 0 | H145: =I145-#REF! ->  | I145: =#REF!/D145 ->  | J145: =IF(I145>=0.005,I145,IF(#REF!=0,I145,"<1%")) ->  | K145: 0 | L145: 0 | M145: 0 | N145: 0 | O145: 0 | P145: 1 | R145: 0 | S145: 0 | T145: 0 | U145: 0 | V145: 0 | W145: 0 | X145: 0 | Y145: 0 | Z145: 0 | AA145: 0 | AB145: 0 | AC145: 0
A146: Mob Lane, Pelsall, Walsall | B146: 266 | C146: 40.11 | D146: 40.11 | E146: 0 | F146: 0 | G146: 0 | H146: =I146-#REF! ->  | I146: =#REF!/D146 ->  | J146: =IF(I146>=0.005,I146,IF(#REF!=0,I146,"<1%")) ->  | K146: 0 | L146: 0 | M146: 0 | N146: 0 | O146: 0 | P146: 1 | R146: 0 | S146: 0.000661607605 | T146: 1.649482934e-05 | U146: <1% | V146: 0.001048199608 | W146: 9.638294763e-06 | X146: 2.613312411e-05 | Y146: <1% | Z146: 0.1136746644 | AA146: 0.002824434614 | AB146: 0.002834072909 | AC146: <1%
A147: Tenacre Lane, Eve lane, Dudley, DY1 2TU | B147: 267 | C147: 3.96 | D147: 3.96 | E147: 0 | F147: 0 | G147: 0 | H147: =I147-#REF! ->  | I147: =#REF!/D147 ->  | J147: =IF(I147>=0.005,I147,IF(#REF!=0,I147,"<1%")) ->  | K147: 0 | L147: 0 | M147: 0 | N147: 0 | O147: 0 | P147: 1 | R147: 0 | S147: 0.1013116458 | T147: 0.02558374894 | U147: 0.02558374894 | V147: 0.1979772025 | W147: 0.02441049411 | X147: 0.04999424305 | Y147: 0.02441049411 | Z147: 0.3548492737 | AA147: 0.06519790834 | AB147: 0.08960840245 | AC147: 0.06519790834
A148: Land to the South of Bentley Lane, Willenhall, Walsall | B148: 269 | C148: 11.31 | D148: 11.31 | E148: 0 | F148: 0 | G148: 0 | H148: =I148-#REF! ->  | I148: =#REF!/D148 ->  | J148: =IF(I148>=0.005,I148,IF(#REF!=0,I148,"<1%")) ->  | K148: 0 | L148: 0 | M148: 0 | N148: 0 | O148: 0 | P148: 1 | R148: 0 | S148: 0.119216756 | T148: 0.01054082723 | U148: 0.01054082723 | V148: 0.1715700711 | W148: 0.004628940326 | X148: 0.01516976756 | Y148: <1% | Z148: 0.2962041949 | AA148: 0.02156064366 | AB148: 0.02618958399 | AC148: 0.02156064366
A149: Land off Wynall Lane South, Wollescote, DY9 9AJ | B149: 271 | C149: 0.88 | D149: 0.88 | E149: 0 | F149: 0 | G149: 0 | H149: =I149-#REF! ->  | I149: =#REF!/D149 ->  | J149: =IF(I149>=0.005,I149,IF(#REF!=0,I149,"<1%")) ->  | K149: 0 | L149: 0 | M149: 0 | N149: 0 | O149: 0 | P149: 1 | R149: 0 | S149: 0 | T149: 0 | U149: 0 | V149: 0.0002225349179 | W149: 0.0002528805885 | X149: 0.0002528805885 | Y149: <1% | Z149: 0.001679959377 | AA149: 0.001656164158 | AB149: 0.001909044746 | AC149: <1%
A150: Oxley Park Golf Club land adjacent to 1A Ribbesford Avenue, Wolverhampton, WV10 6DU | B150: 270 | C150: 0.06 | D150: 0.06 | E150: 0 | F150: 0 | G150: 0 | H150: =I150-#REF! ->  | I150: =#REF!/D150 ->  | J150: =IF(I150>=0.005,I150,IF(#REF!=0,I150,"<1%")) ->  | K150: 0 | L150: 0 | M150: 0 | N150: 0 | O150: 0 | P150: 1 | R150: 0 | S150: 0 | T150: 0 | U150: 0 | V150: 0 | W150: 0 | X150: 0 | Y150: 0 | Z150: 0 | AA150: 0 | AB150: 0 | AC150: 0 | AD150: 0.0007633153048 | AE150: =AD150/C150 -> 0.01272192175 | AF150: 0.000763315 | AG150: =AF150/C150 -> 0.01272191667 | AH150: =AG150-AE150 -> -5.080166668e-09
A151: Land off Timmis Road, Lye | B151: 273 | C151: 0.63 | D151: 0.63 | E151: 0 | F151: 0 | G151: 0 | H151: =I151-#REF! ->  | I151: =#REF!/D151 ->  | J151: =IF(I151>=0.005,I151,IF(#REF!=0,I151,"<1%")) ->  | K151: 0 | L151: 0 | M151: 0 | N151: 0 | O151: 0 | P151: 1 | R151: 0 | S151: 0.009257400105 | T151: 0.01469428588 | U151: 0.01469428588 | V151: 0.04136905991 | W151: 0.05097088858 | X151: 0.06566517446 | Y151: 0.05097088858 | Z151: 0.6133566281 | AA151: 0.9226110608 | AB151: 0.9735819494 | AC151: 0.9226110608
A152: Ketley Farm, Dudley Road, Kingswinford | B152: 274 | C152: 1.15 | D152: 1.15 | E152: 0 | F152: 0 | G152: 0 | H152: =I152-#REF! ->  | I152: =#REF!/D152 ->  | J152: =IF(I152>=0.005,I152,IF(#REF!=0,I152,"<1%")) ->  | K152: 0 | L152: 0 | M152: 0 | N152: 0 | O152: 0 | P152: 1 | R152: 0 | S152: 0 | T152: 0 | U152: 0 | V152: 0.014 | W152: 0.01217391304 | X152: 0.01217391304 | Y152: 0.01217391304 | Z152: 0.04908665203 | AA152: 0.0305101322 | AB152: 0.04268404524 | AC152: 0.0305101322
A153: Land off Cradley Road, DY2 9SW | B153: 275 | C153: 0.39 | D153: 0.39 | E153: 0 | F153: 0 | G153: 0 | H153: =I153-#REF! ->  | I153: =#REF!/D153 ->  | J153: =IF(I153>=0.005,I153,IF(#REF!=0,I153,"<1%")) ->  | K153: 0 | L153: 0 | M153: 0 | N153: 0 | O153: 0 | P153: 1 | R153: 0 | S153: 0 | T153: 0 | U153: 0 | V153: 0.3126346424 | W153: 0.8016272881 | X153: 0.8016272881 | Y153: 0.8016272881 | Z153: 0.3866163693 | AA153: 0.1896967357 | AB153: 0.9913240238 | AC153: 0.1896967357
A154: Land at Greenwood Road and Lazy Hill Road, Aldridge, Walsall | B154: 277 | C154: 2.65 | D154: 2.65 | E154: 0 | F154: 0 | G154: 0 | H154: =I154-#REF! ->  | I154: =#REF!/D154 ->  | J154: =IF(I154>=0.005,I154,IF(#REF!=0,I154,"<1%")) ->  | K154: 0 | L154: 0 | M154: 0 | N154: 0 | O154: 0 | P154: 1 | R154: 0 | S154: 0 | T154: 0 | U154: 0 | V154: 0 | W154: 0 | X154: 0 | Y154: 0 | Z154: 3.092134845e-05 | AA154: 1.166843338e-05 | AB154: 1.166843338e-05 | AC154: <1%
A155: Open Space at Grassy Lane, Wolverhampton | B155: 278 | C155: 3.2 | D155: 3.2 | E155: 0 | F155: 0 | G155: 0 | H155: =I155-#REF! ->  | I155: =#REF!/D155 ->  | J155: =IF(I155>=0.005,I155,IF(#REF!=0,I155,"<1%")) ->  | K155: 0 | L155: 0 | M155: 0 | N155: 0 | O155: 0 | P155: 1 | R155: 0 | S155: 0 | T155: 0 | U155: 0 | V155: 0.1079561603 | W155: 0.03373630009 | X155: 0.03373630009 | Y155: 0.03373630009 | Z155: 0.3874237752 | AA155: 0.08733362967 | AB155: 0.1210699298 | AC155: 0.08733362967 | AD155: 0.0168246052 | AE155: 0.005257689124 | AF155: 0.017650875 | AG155: 0.005515898437 | AH155: 0.0002582093135
A156: Clent View Road, Stourbridge | B156: 280 | C156: 21.52 | D156: 21.52 | E156: 0 | F156: 0 | G156: 0 | H156: =I156-#REF! ->  | I156: =#REF!/D156 ->  | J156: =IF(I156>=0.005,I156,IF(#REF!=0,I156,"<1%")) ->  | K156: 0 | L156: 0 | M156: 0 | N156: 0 | O156: 0 | P156: 1 | R156: 0 | S156: 0 | T156: 0 | U156: 0 | V156: 0 | W156: 0 | X156: 0 | Y156: 0 | Z156: 0.06854301765 | AA156: 0.003185084463 | AB156: 0.003185084463 | AC156: <1%
A157: Aldridge School and land to the south of Bosty Lane | B157: 281 | C157: 64.44 | D157: 64.44 | E157: 0 | F157: 0 | G157: 0 | H157: =I157-#REF! ->  | I157: =#REF!/D157 ->  | J157: =IF(I157>=0.005,I157,IF(#REF!=0,I157,"<1%")) ->  | K157: 0 | L157: 0 | M157: 0 | N157: 0 | O157: 0 | P157: 1 | R157: 0 | S157: 0.6035577664 | T157: 0.009366197493 | U157: 0.009366197493 | V157: 0.968839593 | W157: 0.005668557209 | X157: 0.0150347547 | Y157: 0.005668557209 | Z157: 3.291171191 | AA157: 0.04540486289 | AB157: 0.0510734201 | AC157: 0.04540486289
A158: Northwood Park Road, Wolverhampton | B158: 282 | C158: 7.3 | D158: 7.3 | E158: 0 | F158: 0 | G158: 0 | H158: =I158-#REF! ->  | I158: =#REF!/D158 ->  | J158: =IF(I158>=0.005,I158,IF(#REF!=0,I158,"<1%")) ->  | K158: 0 | L158: 0 | M158: 0 | N158: 0 | O158: 0 | P158: 1 | R158: 0 | S158: 0 | T158: 0 | U158: 0 | V158: 0 | W158: 0 | X158: 0 | Y158: 0 | Z158: 0 | AA158: 0 | AB158: 0 | AC158: 0 | AD158: 0.5473062336 | AE158: 0.07497345665 | AF158: 0.542798739 | AG158: 0.07435599164 | AH158: -0.0006174650108
A159: Colton Hills Community School (part of) Playing Field, Wolverhampton | B159: 283 | C159: 5.25 | D159: 5.25 | E159: 0 | F159: 0 | G159: 0 | H159: =I159-#REF! ->  | I159: =#REF!/D159 ->  | J159: =IF(I159>=0.005,I159,IF(#REF!=0,I159,"<1%")) ->  | K159: 0 | L159: 0 | M159: 0 | N159: 0 | O159: 0 | P159: 1 | R159: 0 | S159: 0 | T159: 0 | U159: 0 | V159: 0.0248 | W159: 0.004723809524 | X159: 0.004723809524 | Y159: <1% | Z159: 0.3378167803 | AA159: 0.05962224387 | AB159: 0.0643460534 | AC159: 0.05962224387 | AD159: 0.3341853196 | AE159: 0.06365434659 | AF159: 0.412031437 | AG159: 0.07848217848 | AH159: 0.01482783188
A160: Land at Former Bushbury Swimming Baths, Sandy Lane, Wolverhampton | B160: 284 | C160: 0.83 | D160: 0.83 | E160: 0 | F160: 0 | G160: 0 | H160: =I160-#REF! ->  | I160: =#REF!/D160 ->  | J160: =IF(I160>=0.005,I160,IF(#REF!=0,I160,"<1%")) ->  | K160: 0 | L160: 0 | M160: 0 | N160: 0 | O160: 0 | P160: 1 | R160: 0 | S160: 0 | T160: 0 | U160: 0 | V160: 0 | W160: 0 | X160: 0 | Y160: 0 | Z160: 0.01959489 | AA160: 0.0236083012 | AB160: 0.0236083012 | AC160: 0.0236083012 | AD160: 0.1326265654 | AE160: 0.1597910427 | AF160: 0.116068334 | AG160: 0.1398413663 | AH160: -0.01994967643
A161: Land at Druids Heath Golf Club, Stonnall Road, Walsall | B161: 286 | C161: 0.99 | D161: 0.99 | E161: 0 | F161: 0 | G161: 0 | H161: =I161-#REF! ->  | I161: =#REF!/D161 ->  | J161: =IF(I161>=0.005,I161,IF(#REF!=0,I161,"<1%")) ->  | K161: 0 | L161: 0 | M161: 0 | N161: 0 | O161: 0 | P161: 1 | R161: 0 | S161: 0 | T161: 0 | U161: 0 | V161: 0 | W161: 0 | X161: 0 | Y161: 0 | Z161: 0 | AA161: 0 | AB161: 0 | AC161: 0
A162: Land North of Showmen's Caravan Site, Goscote Lane, Pelsall | B162: 289 | C162: 0.23 | D162: 0.23 | E162: 0 | F162: 0 | G162: 0 | H162: =I162-#REF! ->  | I162: =#REF!/D162 ->  | J162: =IF(I162>=0.005,I162,IF(#REF!=0,I162,"<1%")) ->  | K162: 0 | L162: 0 | M162: 0 | N162: =L162/D162 -> 0 | O162: 0 | P162: 1 | R162: =Q162/C162 -> 0 | S162: 0 | T162: 0 | U162: 0 | V162: 2.998740005e-06 | W162: 1.303800002e-05 | X162: 1.303800002e-05 | Y162: <1% | Z162: 0.02511991194 | AA162: 0.1092039704 | AB162: 0.1092170084 | AC162: 0.1092039704
A163: Land south of Castle Road,,,,, Walsall Wood | B163: 285 | C163: 1.01 | D163: 1.01 | E163: 0 | F163: 0 | G163: 0 | H163: =I163-#REF! ->  | I163: =#REF!/D163 ->  | J163: =IF(I163>=0.005,I163,IF(#REF!=0,I163,"<1%")) ->  | K163: 0 | L163: 0 | M163: 0 | N163: 0 | O163: 0 | P163: 1 | R163: 0 | S163: 0 | T163: 0 | U163: 0 | V163: 0 | W163: 0 | X163: 0 | Y163: 0 | Z163: 0 | AA163: 0 | AB163: 0 | AC163: 0
A164: Land adj. 74 Perton Road, Wightwick, Wolverhampton | B164: 292 | C164: 0 | D164: 0 | E164: 0 | F164: 0 | G164: 0 | H164: =I164-#REF! ->  | I164: =#REF!/D164 ->  | J164: =IF(I164>=0.005,I164,IF(#REF!=0,I164,"<1%")) ->  | K164: 0 | L164: 0 | M164: 0 | O164: 0 | P164: 0 | R164: 0 | S164: 0 | V164: 0 | W164: 0 | X164: 0 | Y164: 0 | Z164: 0 | AA164: 0 | AB164: 0 | AC164: 0 | AD164: 0.03908818303 | AF164: 0.047160819
A165: Land at Vicarage Road / Coronation Road, High Heath, Walsall | B165: 279 | C165: 40.11 | D165: 40.11 | E165: 0.318173486 | F165: 0.32 | G165: 0.007978060334 | H165: =I165-#REF! ->  | I165: =#REF!/D165 ->  | J165: =IF(I165>=0.005,I165,IF(#REF!=0,I165,"<1%")) ->  | K165: 3.340325059 | L165: 3.34 | M165: 3.02 | N165: 0.08327100474 | O165: 0.08327100474 | P165: 0.9167289953 | R165: =Q165/C165 -> 0 | S165: 0.3227035948 | T165: 0.008045464842 | U165: 0.008045464842 | V165: 0.6538996628 | W165: 0.008257194414 | X165: =V165/C165 -> 0.01630265926 | Y165: 0.008257194414 | Z165: 2.735656047 | AA165: 0.05994664619 | AB165: =Z165/C165 -> 0.0682038406 | AC165: 0.05994664619
A166: Land at Park Lane, Cradley | B166: 296 | C166: 2.81 | D166: 2.81 | E166: 0 | F166: 0 | G166: 0 | H166: =I166-#REF! ->  | I166: =#REF!/D166 ->  | J166: =IF(I166>=0.005,I166,IF(#REF!=0,I166,"<1%")) ->  | K166: 0 | L166: 0 | M166: 0 | N166: 0 | O166: 0 | P166: 1 | R166: 0 | S166: 0.03119984 | T166: 0.01110314591 | U166: 0.01110314591 | V166: 0.05003588959 | W166: 0.006703220496 | X166: 0.0178063664 | Y166: 0.006703220496 | Z166: 0.1633152181 | AA166: 0.05141607421 | AB166: 0.05811929471 | AC166: 0.05141607421
A167: Foxcote Farm, Oldnall Road, Wollescote | B167: 295 | C167: 64.19 | D167: 64.19 | E167: 0 | F167: 0 | G167: 0 | H167: =I167-#REF! ->  | I167: =#REF!/D167 ->  | J167: =IF(I167>=0.005,I167,IF(#REF!=0,I167,"<1%")) ->  | K167: 0 | L167: 0 | M167: 0 | N167: 0 | O167: 0 | P167: 1 | R167: 0 | S167: 0.39281473 | T167: 0.006119562704 | U167: 0.006119562704 | V167: 0.5801861123 | W167: 0.002919012031 | X167: 0.009038574736 | Y167: <1% | Z167: 1.968614269 | AA167: 0.02774953867 | AB167: 0.0306685507 | AC167: 0.02774953867
A168: Oxley Park Golf Club land adjacent to 21 Oxley Links Road | B168: 299 | C168: 0.14 | D168: 0.14 | E168: 0 | F168: 0 | G168: 0 | H168: =I168-#REF! ->  | I168: =#REF!/D168 ->  | J168: =IF(I168>=0.005,I168,IF(#REF!=0,I168,"<1%")) ->  | K168: 0 | L168: 0 | M168: 0 | N168: 0 | O168: 0 | P168: 1 | R168: 0 | S168: 0 | T168: 0 | U168: 0 | V168: 0 | W168: 0 | X168: 0 | Y168: 0 | Z168: 0 | AA168: 0 | AB168: 0 | AC168: 0 | AD168: 0.00250164928 | AE168: 0.01786892343 | AF168: 0.002501649 | AG168: 0.01786892143 | AH168: -2.003285714e-09
A169: Oxley Park Golf Club land adjacent to 139 Oxley Moor Road | B169: 298 | C169: 0.125 | D169: 0.13 | E169: 0 | F169: 0 | G169: 0 | H169: =I169-#REF! ->  | I169: =#REF!/D169 ->  | J169: =IF(I169>=0.005,I169,IF(#REF!=0,I169,"<1%")) ->  | K169: 0 | L169: 0 | M169: 0 | N169: 0 | O169: 0 | P169: 1 | R169: 0 | S169: 0 | T169: 0 | U169: 0 | V169: 0.008926942734 | W169: 0.07141554187 | X169: 0.07141554187 | Y169: 0.07141554187 | Z169: 0.01257767898 | AA169: 0.02920588996 | AB169: 0.1006214318 | AC169: 0.02920588996 | AD169: 0.03596225138 | AE169: 0.287698011 | AF169: 0.043459002 | AG169: 0.347672016 | AH169: 0.05997400499
A170: land at Albutts Road, Brownhills | B170: 297 | C170: 2.2 | D170: 2.2 | E170: 0 | F170: 0 | G170: 0 | H170: =I170-#REF! ->  | I170: =#REF!/D170 ->  | J170: =IF(I170>=0.005,I170,IF(#REF!=0,I170,"<1%")) ->  | K170: 0 | L170: 0 | M170: 0 | N170: 0 | O170: 0 | P170: 1 | R170: 0 | S170: 0.0104 | T170: 0.004727272727 | U170: <1% | V170: 0.01282278059 | W170: 0.001101263905 | X170: 0.005828536633 | Y170: <1% | Z170: 0.1303813042 | AA170: 0.05816296527 | AB170: 0.05926422918 | AC170: 0.05816296527
A171: Oxely Golf Club Clubhouse | B171: 300 | C171: 0.75 | D171: 0.75 | E171: 0 | F171: 0 | G171: 0 | H171: =I171-#REF! ->  | I171: =#REF!/D171 ->  | J171: =IF(I171>=0.005,I171,IF(#REF!=0,I171,"<1%")) ->  | K171: 0 | L171: 0 | M171: 0 | N171: 0 | O171: 0 | P171: 1 | R171: 0 | S171: 0 | T171: 0 | U171: 0 | V171: 0 | W171: 0 | X171: 0 | Y171: 0 | Z171: 0 | AA171: 0 | AB171: 0 | AC171: 0 | AD171: 0.01839761207 | AE171: 0.02453014943 | AF171: 0.018397612 | AG171: 0.02453014933 | AH171: -9.986666702e-11
A172: Oxley Golf Club | B172: 301 | C172: 1.75 | D172: 1.75 | E172: 0 | F172: 0 | G172: 0 | H172: =I172-#REF! ->  | I172: =#REF!/D172 ->  | J172: =IF(I172>=0.005,I172,IF(#REF!=0,I172,"<1%")) ->  | K172: 0 | L172: 0 | M172: 0 | N172: 0 | O172: 0 | P172: 1 | R172: 0 | S172: 0.07629888 | T172: 0.04359936 | U172: 0.04359936 | V172: 0.1153132617 | W172: 0.02229393238 | X172: 0.06589329238 | Y172: 0.02229393238 | Z172: 0.4079005964 | AA172: 0.2107921227 | AB172: 0.2330860551 | AC172: 0.2107921227 | AD172: 0.3311237217 | AE172: 0.1892135553 | AF172: 0.353906892 | AG172: 0.2022325097 | AH172: 0.01301895445
A173: Groundkeepers Compound, Oxley Park Golf Club | B173: 303 | C173: 0.1 | D173: 0.1 | E173: 0 | F173: 0 | G173: 0 | H173: =I173-#REF! ->  | I173: =#REF!/D173 ->  | J173: =IF(I173>=0.005,I173,IF(#REF!=0,I173,"<1%")) ->  | K173: 0 | L173: 0 | M173: 0 | N173: 0 | O173: 0 | P173: 1 | R173: 0 | S173: 0 | T173: 0 | U173: 0 | V173: 0 | W173: 0 | X173: 0 | Y173: 0 | Z173: 0 | AA173: 0 | AB173: 0 | AC173: 0 | AD173: 0.000182478714 | AE173: 0.00182478714 | AF173: 0.000182479 | AG173: 0.00182479 | AH173: 2.85999e-09
A174: Land at Queslett Raod, Great Barr | B174: 304 | C174: 0.56 | D174: 0.56 | E174: 0 | F174: 0 | G174: 0 | H174: =I174-#REF! ->  | I174: =#REF!/D174 ->  | J174: =IF(I174>=0.005,I174,IF(#REF!=0,I174,"<1%")) ->  | K174: 0 | L174: 0 | M174: 0 | N174: 0 | O174: 0 | P174: 1 | R174: 0 | S174: 0 | T174: 0 | U174: 0 | V174: 0 | W174: 0 | X174: 0 | Y174: 0 | Z174: 0.02100779005 | AA174: 0.03751391081 | AB174: 0.03751391081 | AC174: 0.03751391081
A175: Roway Lane, Oldbury | B175: 158 | C175: 3.43 | D175: 3.43 | E175: 0 | F175: 0 | G175: 0 | H175: =I175-#REF! ->  | I175: =#REF!/D175 ->  | J175: =IF(I175>=0.005,I175,IF(#REF!=0,I175,"<1%")) ->  | K175: 0 | L175: 0 | M175: 0 | N175: 0 | O175: 0 | P175: 1 | R175: 0 | S175: 0.02535554518 | T175: 0.007392287226 | U175: 0.007392287226 | V175: 0.03830235738 | W175: 0.003774580815 | X175: 0.01116686804 | Y175: <1% | Z175: 0.2827487031 | AA175: 0.0786594434 | AB175: 0.08243402421 | AC175: 0.0786594434
A176: Walsall Wood | B176: 159 | C176: 3.11 | D176: 3.11 | E176: 0 | F176: 0 | G176: 0 | H176: =I176-#REF! ->  | I176: =#REF!/D176 ->  | J176: =IF(I176>=0.005,I176,IF(#REF!=0,I176,"<1%")) ->  | K176: 0 | L176: 0 | M176: 0 | N176: 0 | O176: 0 | P176: 1 | R176: 0 | S176: 0.03582108381 | T176: 0.01151803338 | U176: 0.01151803338 | V176: 0.04879044939 | W176: 0.004170214012 | X176: 0.01568824739 | Y176: <1% | Z176: 0.1667502971 | AA176: 0.04944724486 | AB176: 0.05361745887 | AC176: 0.04944724486
A177: Goscote Lodge C, Walsall | B177: 156 | C177: 14.63 | D177: 14.63 | E177: 0.442574985 | F177: 0.44 | G177: 0.03007518797 | H177: =I177-#REF! ->  | I177: =#REF!/D177 ->  | J177: =IF(I177>=0.005,I177,IF(#REF!=0,I177,"<1%")) ->  | K177: 0.6273036454 | L177: 0.63 | M177: 0.19 | N177: 0.04306220096 | O177: 0.04306220096 | P177: 0.956937799 | R177: 0 | S177: 0.6039859266 | T177: 0.04128406881 | U177: 0.04128406881 | V177: 1.08228124 | W177: 0.03269277606 | X177: 0.07397684486 | Y177: 0.03269277606 | Z177: 2.493185326 | AA177: 0.1377231724 | AB177: 0.1704159485 | AC177: 0.1377231724
A178: SHLAA | Y178: 0 | AA178: 0 | AC178: 0
A179: 55-77 Lichfield Street, Wolverhampton City Centre | B179: 39540 | C179: 0.121801375 | D179: 0.12 | E179: 0 | F179: 0 | G179: 0 | K179: 0 | L179: =ROUND(K179,2) -> 0 | M179: =L179-F179 -> 0 | N179: =L179/D179 -> 0 | O179: =IF(N179>=0.005,N179,IF(K179=0,N179,"<1%")) -> 0 | P179: =1-N179 -> 1 | S179: 0 | T179: 0 | U179: =IF(T179>=0.005,T179,IF(S179=0,T179,"<1%")) -> 0 | V179: 0 | W179: =X179-T179 -> 0 | X179: =V179/C179 -> 0 | Y179: 0 | Z179: 0 | AA179: 0 | AB179: =Z179/C179 -> 0 | AC179: 0
A180: Springvale Sports and SOther Commitmential Club, Millfields Road | B180: 39520 | C180: 2.857387702 | D180: 2.86 | E180: 0 | F180: 0 | G180: 0 | K180: 0 | L180: 0 | M180: 0 | N180: 0 | O180: 0 | P180: 1 | S180: 0 | T180: 0 | U180: 0 | V180: 0.2063932605 | W180: 0.07223145126 | X180: 0.07223145126 | Y180: 0.07223145126 | Z180: 1.081882688 | AA180: 0.306395043 | AB180: 0.3786264943 | AC180: 0.306395043
A181: TeleCompleted During 2017/18 House, Church Street, Wolverhampton City Centre | B181: 39360 | C181: 0.5810826161 | D181: 0.58 | E181: 0 | F181: 0 | G181: 0 | K181: 0 | L181: 0 | M181: 0 | N181: 0 | O181: 0 | P181: 1 | S181: 0 | T181: 0 | U181: 0 | V181: 0 | W181: 0 | X181: 0 | Y181: 0 | Z181: 0.0412 | AA181: 0.07090213828 | AB181: 0.07090213828 | AC181: 0.07090213828
A182: Former Wednesfield High School Playing Fields | B182: 39350 | C182: 7.572558248 | D182: 7.57 | E182: 0 | F182: 0 | G182: 0 | K182: 0 | L182: 0 | M182: 0 | N182: 0 | O182: 0 | P182: 1 | S182: 0.1480477495 | T182: 0.01955055935 | U182: 0.01955055935 | V182: 0.2570494329 | W182: 0.01439430109 | X182: 0.03394486044 | Y182: 0.01439430109 | Z182: 0.6414372401 | AA182: 0.07031118668 | AB182: 0.08470548777 | AC182: 0.07031118668
A183: Land at Sweetbriar Road / Pump Street | B183: 39340 | C183: 0.162454385 | D183: 0.16 | E183: 0 | F183: 0 | G183: 0 | K183: 0 | L183: 0 | M183: 0 | N183: 0 | O183: 0 | P183: 1 | S183: 0 | T183: 0 | U183: 0 | V183: 0 | W183: 0 | X183: 0 | Y183: 0 | Z183: 0 | AA183: 0 | AB183: 0 | AC183: 0
A184: Fmr Ettingshall Primary School, Herbert Street | B184: 39330 | C184: 0.8242737534 | D184: 0.82 | E184: 0 | F184: 0 | G184: 0 | K184: 0 | L184: 0 | M184: 0 | N184: 0 | O184: 0 | P184: 1 | S184: 0 | T184: 0 | U184: 0 | V184: 0.0001371400001 | W184: 0.0001663767644 | X184: 0.0001663767644 | Y184: <1% | Z184: 0.0001371400001 | AA184: 0 | AB184: 0.0001663767644 | AC184: <1%
A185: Fmr Bilston Leisure Centre, Prouds Lane, Bilston | B185: 39320 | C185: 0.9017984643 | D185: 0.9 | E185: 0 | F185: 0 | G185: 0 | K185: 0 | L185: 0 | M185: 0 | N185: 0 | O185: 0 | P185: 1 | S185: 0.02239998077 | T185: 0.02483923144 | U185: 0.02483923144 | V185: 0.03915080311 | W185: 0.01857490671 | X185: 0.04341413815 | Y185: 0.01857490671 | Z185: 0.1776194648 | AA185: 0.1783864675 | AB185: 0.1969613742 | AC185: 0.1783864675
A186: The Manse, Leacroft Avenue | B186: 39310 | C186: 0.335301885 | D186: 0.34 | E186: 0 | F186: 0 | G186: 0 | K186: 0 | L186: 0 | M186: 0 | N186: 0 | O186: 0 | P186: 1 | S186: 0 | T186: 0 | U186: 0 | V186: 0 | W186: 0 | X186: 0 | Y186: 0 | Z186: 0 | AA186: 0 | AB186: 0 | AC186: 0
A187: Land Adjacent To Halfway House 115 Tettenhall Road Wolverhampton West Midlands | B187: 39300 | C187: 0.4229139376 | D187: 0.42 | E187: 0 | F187: 0 | G187: 0 | K187: 0 | L187: 0 | M187: 0 | N187: 0 | O187: 0 | P187: 1 | S187: 0 | T187: 0 | U187: 0 | V187: 0 | W187: 0 | X187: 0 | Y187: 0 | Z187: 0 | AA187: 0 | AB187: 0 | AC187: 0
A188: Land Adjacent To 37 Bowdler Road Wolverhampton West Midlands WV2 1EN | B188: 39290 | C188: 0.02036913645 | D188: 0.02 | E188: 0 | F188: 0 | G188: 0 | K188: 0 | L188: 0 | M188: 0 | N188: 0 | O188: 0 | P188: 1 | S188: 0 | T188: 0 | U188: 0 | V188: 0 | W188: 0 | X188: 0 | Y188: 0 | Z188: 0 | AA188: 0 | AB188: 0 | AC188: 0
A189: Garage Site Behind 23 To 33 Beach Avenue Wolverhampton West Midlands | B189: 39280 | C189: 0.098589075 | D189: 0.1 | E189: 0 | F189: 0 | G189: 0 | K189: 0 | L189: 0 | M189: 0 | N189: 0 | O189: 0 | P189: 1 | S189: 0 | T189: 0 | U189: 0 | V189: 0 | W189: 0 | X189: 0 | Y189: 0 | Z189: 0 | AA189: 0 | AB189: 0 | AC189: 0
A190: 87 Rayleigh Road Wolverhampton West Midlands WV3 0AX | B190: 39270 | C190: 0.02187720905 | D190: 0.02 | E190: 0 | F190: 0 | G190: 0 | K190: 0 | L190: 0 | M190: 0 | N190: 0 | O190: 0 | P190: 1 | S190: 0 | T190: 0 | U190: 0 | V190: 0 | W190: 0 | X190: 0 | Y190: 0 | Z190: 0 | AA190: 0 | AB190: 0 | AC190: 0
A191: Land Formerly 37 - 39 Brooklands Parade Wolverhampton West Midlands WV1 2ND | B191: 39260 | C191: 0.075156575 | D191: 0.08 | E191: 0 | F191: 0 | G191: 0 | K191: 0 | L191: 0 | M191: 0 | N191: 0 | O191: 0 | P191: 1 | S191: 0 | T191: 0 | U191: 0 | V191: 0 | W191: 0 | X191: 0 | Y191: 0 | Z191: 0 | AA191: 0 | AB191: 0 | AC191: 0
A192: 1 Wem Gardens Wolverhampton West Midlands WV11 3HU | B192: 39250 | C192: 0.031660279 | D192: 0.03 | E192: 0 | F192: 0 | G192: 0 | K192: 0 | L192: 0 | M192: 0 | N192: 0 | O192: 0 | P192: 1 | S192: 0 | T192: 0 | U192: 0 | V192: 0 | W192: 0 | X192: 0 | Y192: 0 | Z192: 4.236070999e-05 | AA192: 0.001337976522 | AB192: 0.001337976522 | AC192: <1%
A193: Land North East Of 36 Lord Street Bradley Wolverhampton West Midlands | B193: 39240 | C193: 0.209850175 | D193: 0.21 | E193: 0 | F193: 0 | G193: 0 | K193: 0 | L193: 0 | M193: 0 | N193: 0 | O193: 0 | P193: 1 | S193: 0 | T193: 0 | U193: 0 | V193: 0 | W193: 0 | X193: 0 | Y193: 0 | Z193: 0.00450090099 | AA193: 0.0214481641 | AB193: 0.0214481641 | AC193: 0.0214481641
A194: Medical Massage 37 Thornley Street Wolverhampton West Midlands WV1 1JP | B194: 39230 | C194: 0.00628776815 | D194: 0.01 | E194: 0 | F194: 0 | G194: 0 | K194: 0 | L194: 0 | M194: 0 | N194: 0 | O194: 0 | P194: 1 | S194: 0 | T194: 0 | U194: 0 | V194: 0 | W194: 0 | X194: 0 | Y194: 0 | Z194: 0 | AA194: 0 | AB194: 0 | AC194: 0
A195: 651 Stafford Road Wolverhampton West Midlands WV10 6QG | B195: 39220 | C195: 0.03477143 | D195: =ROUND(C195,2) -> 0.03 | E195: 0 | F195: =ROUND(E195,2) -> 0 | G195: =F195/D195 -> 0 | K195: 0 | L195: 0 | M195: 0 | N195: 0 | O195: 0 | P195: 1 | S195: 0 | T195: =S195/C195 -> 0 | U195: =IF(T195>=0.005,T195,IF(S195=0,T195,"<1%")) -> 0 | V195: 0 | W195: 0 | X195: 0 | Y195: =IF(W195>=0.005,W195,IF(V195=0,W195,"<1%")) -> 0 | Z195: 0 | AA195: =AB195-W195 -> 0 | AB195: 0 | AC195: =IF(AA195>=0.005,AA195,IF(Z195=0,AA195,"<1%")) -> 0
A196: National Childrens Home 83 Completed During 2017/18pton Road Wolverhampton West Midlands WV3 9QH | B196: 39200 | C196: 0.19797902 | D196: 0.2 | E196: 0 | F196: 0 | G196: 0 | K196: 0 | L196: 0 | M196: 0 | N196: 0 | O196: 0 | P196: 1 | S196: 0.003369491893 | T196: 0.0170194392 | U196: 0.0170194392 | V196: 0.009822664165 | W196: 0.03259523293 | X196: 0.04961467212 | Y196: 0.03259523293 | Z196: 0.0328763106 | AA196: 0.1334643354 | AB196: 0.1660595683 | AC196: 0.1334643354
A197: Land Adjacent To 38 Maple Road Wolverhampton West Midlands WV3 7JD | B197: 39190 | C197: 0.01090136955 | D197: 0.01 | E197: 0 | F197: 0 | G197: 0 | K197: 0 | L197: 0 | M197: 0 | N197: 0 | O197: 0 | P197: 1 | S197: 0 | T197: 0 | U197: 0 | V197: 0 | W197: 0 | X197: 0 | Y197: 0 | Z197: 6.071570003e-05 | AA197: 0.005569547913 | AB197: 0.005569547913 | AC197: 0.005569547913
A198: 92 Swan Bank Wolverhampton West Midlands WV4 5PZ | B198: 39180 | C198: 0.03516671275 | D198: 0.04 | E198: 0 | F198: 0 | G198: 0 | K198: 0 | L198: 0 | M198: 0 | N198: 0 | O198: 0 | P198: 1 | S198: 0 | T198: 0 | U198: 0 | V198: 0 | W198: 0 | X198: 0 | Y198: 0 | Z198: 0 | AA198: 0 | AB198: 0 | AC198: 0
A199: 73 Bellamy Lane Wolverhampton WV11 1LH | B199: 39170 | C199: 0.0398834268 | D199: 0.04 | E199: 0 | F199: 0 | G199: 0 | K199: 0 | L199: 0 | M199: 0 | N199: 0 | O199: 0 | P199: 1 | S199: 0 | T199: 0 | U199: 0 | V199: 0 | W199: 0 | X199: 0 | Y199: 0 | Z199: 0 | AA199: 0 | AB199: 0 | AC199: 0
A200: 1 Kingsway Road Wolverhampton West Midlands WV10 0SD | B200: 39160 | C200: 0.02225828225 | D200: 0.02 | E200: 0 | F200: 0 | G200: 0 | K200: 0 | L200: 0 | M200: 0 | N200: 0 | O200: 0 | P200: 1 | S200: 0 | T200: 0 | U200: 0 | V200: 0.002042557472 | W200: 0.09176617716 | X200: 0.09176617716 | Y200: 0.09176617716 | Z200: 0.006770664319 | AA200: 0.2124201137 | AB200: 0.3041862909 | AC200: 0.2124201137
... 589 more rows
